Workbook

Sheet Cotizacion
B3: IMPORTACIONES FABIOLA DE CANCUN, S.A. DE C.V. | D3: Fecha | F3: =TODAY() -> 2026-04-16
B4: Av. Lopez Portillo, SM66, Mza3, Lotes 27 y 28, Cancun, Quintana Roo, Mex. C.P. 77510 | D4: N.º de presupuesto | F4: /2026MX
B5: Telefono 998 8875947, 8875514, 8873750, 8873848. | D5: Id. del cliente | F5: IFC930505GC1
B6: ventas@fabiolacom.mx | D6: Tipo de Cambio USD | F6: 18.05
B8: CLIENTE: | D8: Vigencia de la Cotizacion: | F8: =F3+15 -> 2026-05-01
B9: DOMICILIO: | D9: Autor: | F9: MAXIMO CHAN NOH
B10: ATENCION: | D10: Movil | F10: 9982169741
B11: TELEFONO: | D11: Movil | F11: 9981623186
B12: EMAIL: | D12: Email | F12: maxosan@hotmail.com
C14: Por este conducto anexo a la presente la cotizacion que muy amablemente solicita, esperando sea de su entera satisfaccion, quedamos a sus ordenes
B15: para cualquier comentario al respecto. Para nosotros es un placer poderle servir.
A17: PRECIOS SUJETOS A CAMBIO SIN PREVIO AVISO
A18: Cant. | B18: Clave | C18: Descripcion del Producto | D18: Precio Unitario | E18: IVA | F18: PRECIO C/IVA | G18: IMPORTES | H18: Moneda | I18: Marca | J18: Grupo | K18: Categoria
E19: =D19*16% -> 0 | F19: =D19+E19 -> 0 | G19: =F19*A19 -> 0
E20: 0 | F20: 0 | G20: 0
E21: 0 | F21: 0 | G21: 0
E22: 0 | F22: 0 | G22: 0
E23: 0 | F23: 0 | G23: 0
E24: 0 | F24: 0 | G24: 0
E25: 0 | F25: 0 | G25: 0
E26: 0 | F26: 0 | G26: 0
E27: 0 | F27: 0 | G27: 0
E28: 0 | F28: 0 | G28: 0
E29: 0 | F29: 0 | G29: 0
E30: 0 | F30: 0 | G30: 0
E31: =D31*16% -> 0 | F31: =D31+E31 -> 0 | G31: =F31*A31 -> 0
E32: 0 | F32: 0 | G32: 0
E33: 0 | F33: 0 | G33: 0
E34: =D34*16% -> 0 | F34: =D34+E34 -> 0 | G34: =F34*A34 -> 0
E35: 0 | F35: 0 | G35: 0
E36: 0 | F36: 0 | G36: 0
E37: 0 | F37: 0 | G37: 0
E38: 0 | F38: 0 | G38: 0
E39: 0 | F39: 0 | G39: 0
E40: 0 | F40: 0 | G40: 0
E41: 0 | F41: 0 | G41: 0
E42: 0 | F42: 0 | G42: 0
E43: 0 | F43: 0 | G43: 0
E44: 0 | F44: 0 | G44: 0
E45: =D45*16% -> 0 | F45: =D45+E45 -> 0 | G45: =F45*A45 -> 0
E46: 0 | F46: 0 | G46: 0
E47: 0 | F47: 0 | G47: 0
E48: 0 | F48: 0 | G48: 0
E49: 0 | F49: 0 | G49: 0
E50: =D50*16% -> 0 | F50: =D50+E50 -> 0 | G50: =F50*A50 -> 0
A51: =SUBTOTAL(109,SaleItems_Table9[Cant.]) -> 0 | B51: PIEZAS | C51: =PesosMN(G51) -> SON: ( PESO 00/100 M.N.) | F51: TOTAL M.N. | G51: =SUM(G19:G50) -> 0
A57: NOTAS IMPORTANTES:
A58: 1.- Tiempo de entrega: de 5 a 6 dias habiles despues de recibir su pedido o comprobante de pago.
A59: 2.- Forma de pago: Transferencia electronica, Efectivo o Cheque.
A60: 3.- Vigencia de la cotizacion: 15 dias habiles.
A61: 4.- Los precios cotizados son considerados para pago de contado o transferencia electronica.
B62: Esperando sea de su entera satisfaccion quedo a sus ordenes para cualquier comentario o duda que tenga al respecto.
C64: A T E N T A M E N T E
C65: IMPORTACIONES FABIOLA DE CANCUN, S.A. DE C.V.
C66: MAXIMO CHAN / VENTAS

Sheet Detectores de Metal (hidden)
B3: IMPORTACIONES FABIOLA DE CANCUN, S.A. DE C.V. | D3: Fecha | F3: =TODAY() -> 2026-04-16
B4: Av. Lopez Portillo, SM66, Mza3, Lotes 27 y 28, Cancun, Quintana Roo, Mex. C.P. 77510 | D4: N.º de presupuesto | F4: /2026MX
B5: Telefono 998 8875947, 8875514, 8873750, 8873848. | D5: Id. del cliente | F5: IFC930505GC1
B6: ventas@fabiolacom.mx | D6: Tipo de Cambio USD | F6: 18.05
B8: CLIENTE: | D8: Vigencia de la Cotizacion: | F8: =F3+15 -> 2026-05-01
B9: DOMICILIO: | D9: Autor: | F9: MAXIMO CHAN NOH
B10: ATENCION: | D10: Movil | F10: 9982169741
B11: TELEFONO: | D11: Movil | F11: 9981623186
B12: EMAIL: | D12: Email | F12: maxosan@hotmail.com
C14: Por este conducto anexo a la presente la cotizacion que muy amablemente solicita, esperando sea de su entera satisfaccion, quedamos a sus ordenes
B15: para cualquier comentario al respecto. Para nosotros es un placer poderle servir.
A17: PRECIOS SUJETOS A CAMBIO SIN PREVIO AVISO
A18: Cant. | B18: Clave | C18: Descripcion del Producto | D18: Precio Unitario | E18: IVA | F18: PRECIO C/IVA | G18: IMPORTES
C19: DETECTORES DE METALES MANUALES CEIA
B20: PD140E | C20: DETECTOR DE METALES MANUAL , MARCA CEIA, MOD. PD140E SIN KIT USD | D20: 204
B21: PD140N-SET | C21: DETECTOR DE METALES MANUAL MARCA CEIA, MOD. PD140N-SET CON KIT USD
B22: PD140E | C22: DETECTOR DE METALES MANUAL , MARCA CEIA, MOD. PD140E SIN KIT USD | D22: 366
B23: PD140N-SET | C23: DETECTOR DE METALES MANUAL MARCA CEIA, MOD. PD140N-SET CON KIT USD
B24: PD240-SET | C24: DETECTOR DE METALES MANUAL MARCA CEIA, MOD. PD140N-SET CON KIT USD CON KIT | D24: 474
B25: PD240CB-SET | C25: DETECTOR DE METALES MANUAL MARCA CEIA CON KIT | D25: 786
C26: DETECTORES DE METALES ARCO CEIA
B27: HIPE PLUS | C27: ARCO DETECTOR DE METALES MARCA CEIA 60 ZONAS DE DETECCION | D27: 4620
B28: SMD600 PLUS | C28: ARCO DETECTOR DE METALES MARCA CEIA 60 ZONAS DE DETECCION | D28: 10680
C29: DETECTORES DE METALES MANUALES GARRET
B30: 1165180 | C30: DETECTOR DE METALES PORTATIL TIPO PALETA CON ALARMA AUDIBLE, MODELO SUPERSCANNER.
C31: SIN KIT | D31: 184.80
C32: CON KIT | D32: 206.40
C33: KIT SOLO | D33: 48
B35: 1165190 | C35: DETECTOR DE METALES PORTATIL TIPO PALETACON ALARMA AUDIBLEY VRIBRATORIA, MOD. SUPERSCANNER V
C36: SIN KIT | D36: 216
C37: CON KIT | D37: 242.40
C38: KIT SOLO | D38: 48
B40: 1165800 | C40: DETECTOR DE METALES PORTATIL TIPO PALETA CON ALARMA AUDIBLE MOD. SUPERWAND
C41: SIN KIT | D41: 270
C42: CON KIT | D42: 288
C43: KIT SOLO | D43: 60
B45: 1173000 | C45: DETECTOR DE METALES PORTATIL TIPO PALETA CON ALARMA AUDIBLE Y VIBRATORIA, BATERIA RECARGABLE Y 7 NIVELES DE SENSIBILIDAD MODELO GUIDE
C46: SIN KIT | D46: 258
C47: CON KIT | D47: 348
C48: KIT SOLO | D48: 60
B50: 1168414 | C50: arco detector de metales marca garrett modelo pd6500i con 33 zonas de deteccion. | D50: 4620
B51: 1172001 | C51: arco detector de metales marca garrett modelo Paragon con 66 zonas de deteccion. | D51: 8250
A53: =SUBTOTAL(109,SaleItems_Table9[Cant.]) -> 0 | B53: PIEZAS | C53: =PesosMN(G53) -> SON: ( PESO 00/100 M.N.) | F53: TOTAL M.N. | G53: =SUM(G20:G52) -> 0
A59: NOTAS IMPORTANTES:
A60: 1.- Tiempo de entrega: de 5 a 6 dias habiles despues de recibir su pedido o comprobante de pago.
A61: 2.- Forma de pago: Transferencia electronica, Efectivo o Cheque.
A62: 3.- Vigencia de la cotizacion: 15 dias habiles.
A63: 4.- Los precios cotizados son considerados para pago de contado o transferencia electronica.
B64: Esperando sea de su entera satisfaccion quedo a sus ordenes para cualquier comentario o duda que tenga al respecto.
C66: A T E N T A M E N T E
C67: IMPORTACIONES FABIOLA DE CANCUN, S.A. DE C.V.
C68: MAXIMO CHAN / VENTAS

Sheet Lista Precios Electronica
B3: IMPORTACIONES FABIOLA DE CANCUN, S.A. DE C.V. | D3: Fecha | F3: =TODAY() -> 2026-04-16
B4: Av. Lopez Portillo, SM66, Mza3, Lotes 27 y 28, Cancun, Quintana Roo, Mex. C.P. 77510 | D4: N.º de presupuesto | F4: 000/2025MX
B5: Telefono 998 8875947, 8875514, 8873750, 8873848. | D5: Id. del cliente | F5: IFC930505GC1
B6: ventas@importacionesfabiola.com | D6: Tipo de Cambio USD | F6: 18.05
B8: Estimado Cliente o A Quien Corresponda: | D8: LISTA DEL 13 DE ABRIL DE 2026
B10: Por este conducto me permito hacerle llegar la lista de los productos que tenemos a su disponisicion, los cuales esta a precios muy accesibles para este
B11: ABRIL de 2026. Solicite su cotizacion apuntando la cantidad de productos que ocupa en la columna de CANT. Y reenvie este mismo formato
B12: para mandarle la cotizacion en forma.
B14: Sin mas de momento, quedamos a sus ordenes para cualquier comentario o solicitud de cotizacion, estos precios estan vigentes hasta el 30 de ABRIL de 2026 o
B15: hasta agotar existencias con el mayorista.
C16: VISITE NUESTRA PAGINA WWW.FABIOLACOM.MX/STORE
A17: PRECIOS SUJETOS A CAMBIO SIN PREVIO AVISO
A18: Cant. | B18: CLAVE | C18: DESCRIPCION DEL PRODUCTO | D18: Precio Unitario | E18: IVA | F18: PRECIO C/IVA | G18: IMPORTES | H18: Clave | I18: Marca | J18: Grupo | K18: Precio | L18: Moneda
E19: =D19*16% -> 0 | F19: =D19+E19 -> 0 | G19: =F19*A19 -> 0
B20: W051CE | C20: AIRE ACOND 5000 BTUS 115 V C/REMOTO TIPO VENTANA LG | D20: 3106.8 | E20: 497.088 | F20: 3603.888 | G20: 0
B21: W121CE | C21: AIRE ACOND 12000 BTUS 110V TIPO VENTANA MARCA LG | D21: 6212.4 | E21: 993.984 | F21: 7206.384 | G21: 0
B22: W122CE | C22: AIRE ACOND 12000 BTUS, 220 V TIPO VENTANA MARCA LG | D22: 6354 | E22: 1016.64 | F22: 7370.64 | G22: 0
B23: ZNESAJ121C | C23: AIRE ACOND 12000 BTUS 110V S/FRIO MARCA FROZEN | D23: 3597.6 | E23: 575.616 | F23: 4173.216 | G23: 0
B24: MAS12C1AGS | C24: AIRE ACOND 12000 BTUS S/FRIO ON/OFF 110V MIDEA | D24: 3883.2 | E24: 621.312 | F24: 4504.512 | G24: 0
B25: EBDOC101A | C25: AIRE ACOND. 12000 BTUS 110V S/F DAEWOO. | D25: 3954 | E25: 632.64 | F25: 4586.64 | G25: 0
B26: AC121CF | C26: AIRE ACOND 12000 BTUS S/FRIO 110V MARCA HISENSE | D26: 4005.6 | E26: 640.896 | F26: 4646.496 | G26: 0
B27: ACR121KG | C27: AIRE ACOND 12000 BTUS S/FRIO ON/OFF 110V GAS R32 HISENSE | D27: 4035.6 | E27: 645.696 | F27: 4681.296 | G27: 0
B28: AC121CK | C28: AIRE ACOND 12000 BTUS, SOLO FRIO, 110V ON/OFF HISENSE | D28: 4350 | E28: 696 | F28: 5046 | G28: 0
B29: AH121CK | C29: AIRE ACOND. 12000 BTUS ON/OFF FRIO/CALOR 110V HISENSE | D29: 4729.2 | E29: 756.672 | F29: 5485.872 | G29: 0
B30: S12P-ECV13 | C30: AIRE ACOND 12000 BTUS 110V INVERTER S/FRIO TCL | D30: 4002 | E30: 640.32 | F30: 4642.32 | G30: 0
B31: MAS12C1ECS | C31: AIRE ACOND. 12000 BTUS 110V GAS R32 INVERTER MIDEA | D31: 4503.6 | E31: 720.576 | F31: 5224.176 | G31: 0
B32: AT121CK | C32: AIRE ACOND 12000 SOLO FRIO, 110V INVERTER HISENSE | D32: 4590 | E32: 734.4 | F32: 5324.4 | G32: 0
B33: ART121KA | C33: AIRE ACOND 12000 BTUS INVERTER SOLO FRIO 110V GAS R32 HISENSE | D33: 4645.2 | E33: 743.232 | F33: 5388.432 | G33: 0
B34: EBDIC101D | C34: AIRE ACOND. INVERTER 12000 BTUS 110V S/F DAEWOO. | D34: 5118 | E34: 818.88 | F34: 5936.88 | G34: 0
B35: AP-12CWN2 | C35: AIRE ACOND 12000 BTUS 110V PORTATIL WIFI HISENSE | D35: 5685.6 | E35: 909.696 | F35: 6595.296 | G35: 0
B36: SETCQF120B | C36: AIRE ACOND. MINISPLIT INVERTER WI FI 12000BTUS S/FRIO 110V MATE 17 MIRAGE | D36: 5997.6 | E36: 959.616 | F36: 6957.216 | G36: 0
B37: MAS12C1FFV | C37: AIRE ACOND. 12000 BTUS 110V INVERTER 12 MARCA MIDEA | D37: 6446.4 | E37: 1031.424 | F37: 7477.824 | G37: 0
B38: VM121C9 | C38: AIRE ACOND 12000 BTUS 110V WIFI INVERTER MARCA LG | D38: 8073.6 | E38: 1291.776 | F38: 9365.376 | G38: 0
B39: S12P-ECF22 | C39: AIRE ACOND 12000 BTUS 220V ON/OFF S/FRIO C/REMOTO TCL | D39: 3494.4 | E39: 559.104 | F39: 4053.504 | G39: 0
B40: AH122CK | C40: AIRE ACOND 12000 BTUS ON/OFF FRIO/CALOR 220V HISENSE | D40: 4658.4 | E40: 745.344 | F40: 5403.744 | G40: 0
B41: MAS12C2ASP | C41: AIRE ACOND. FOREST 12000 BTUS 220V ON/OFF SOLO FRIO MIDEA | D41: 4994.4 | E41: 799.104 | F41: 5793.504 | G41: 0
B42: ZNESAJ122C | C42: AIRE ACOND 12000 BTUS 220V S/FRIO MARCA FROZEN | D42: 3805.2 | E42: 608.832 | F42: 4414.032 | G42: 0
B43: AC122CF | C43: AIRE ACOND 12000 BTUS S/FRIO 220V MARCA HISENSE | D43: 3955.2 | E43: 632.832 | F43: 4588.032 | G43: 0
B44: MW122C4 | C44: AIRE ACOND MINISPLIT ON/OFF S/FRIO 11000BTUS 220V LG | D44: 4051.2 | E44: 648.192 | F44: 4699.392 | G44: 0
B45: ACR122KG | C45: AIRE ACOND 12000 BTUS S/FRIO ON/OFF 220V GAS R32 HISENSE | D45: 4087.2 | E45: 653.952 | F45: 4741.152 | G45: 0
B46: AT122CB | C46: AIRE ACOND 12000 BTUS INVERTER S/FRIO 220V 17 SEER MARCA HISENSE. | D46: 4590 | E46: 734.4 | F46: 5324.4 | G46: 0
B47: ART122KA | C47: AIRE ACOND 12000 BTUS S/ FRIO INVERTER 220V GAS R32 HISENSE | D47: 4590 | E47: 734.4 | F47: 5324.4 | G47: 0
B48: ARU122KA | C48: AIRE ACOND 12000 BTUS FRIO/CALOR INVERTER 220V MARCA HISENSE | D48: 4798.8 | E48: 767.808 | F48: 5566.608 | G48: 0
B49: S12P-ECV23 | C49: AIRE ACOND 12000 BTUS 220V INVERTER S/FRIO C/REMOTO TCL | D49: 4002 | E49: 640.32 | F49: 4642.32 | G49: 0
B50: AR12BVHQASI/AX | C50: AIRE ACOND INVERTER 12000 BTUS 220V ADVANCE SAMSUNG | D50: 5707.2 | E50: 913.152 | F50: 6620.352 | G50: 0
B51: ART122HBWH | C51: AIRE ACOND 12000 BTUS WIFI S/FRIO INVERTER 220V NEGRO GAS R32 HISENSE | D51: 5930.4 | E51: 948.864 | F51: 6879.264 | G51: 0
B52: CS-US12XKV-6-KIT | C52: AIRE ACOND 12000 BTUS 220V S/ FRIO 21.00 SEER INVERTER PANASONIC R410A | D52: 6357.6 | E52: 1017.216 | F52: 7374.816 | G52: 0
B53: AR12BVFAMWK/AX | C53: AIRE ACOND INVERTER 12000 BTUS 220V WIFI WINDFREE SAMSUNG | D53: 7302 | E53: 1168.32 | F53: 8470.32 | G53: 0
B54: AR12BSEAMWK/AX | C54: AIRE ACOND INVERTER 12000 BTUS FRIO/CALOR 220V WIFI WINDFREE SAMSUNG | D54: 7302 | E54: 1168.32 | F54: 8470.32 | G54: 0
B55: AR12DVFAAWK/AX | C55: AIRE ACOND INVERTER 12000 BTUS 220V WINDFREE SAMSUNG | D55: 7302 | E55: 1168.32 | F55: 8470.32 | G55: 0
B56: VM122C9 | C56: AIRE ACOND 12000 17.5 SEER BTUS 220V DUAL INVERTER WI-FI MARCA LG | D56: 8073.6 | E56: 1291.776 | F56: 9365.376 | G56: 0
B57: AR12AVFCAWK/AX | C57: AIRE ACOND INVERTER 12000 BTUS 22.6 SEER 220V WIND-FREE WI/FI SAMSUNG | D57: 11913.6 | E57: 1906.176 | F57: 13819.776 | G57: 0
B58: AR12ASEAAWK/AX | C58: AIRE ACOND 12000 BTUS INVERTER WIFI 22.7 SEER 220V WIND-FREE R410 MARCA SAMSUNG | D58: 12831.6 | E58: 2053.056 | F58: 14884.656 | G58: 0
B59: S18P-ECF23 | C59: AIRE ACOND 18000 BTUS 220V ON/OFF S/FRIO TCL | D59: 5744.4 | E59: 919.104 | F59: 6663.504 | G59: 0
B60: ZNESAJ182C | C60: AIRE ACOND 18000 BTUS 220V S/FRIO MARCA FROZEN | D60: 6381.6 | E60: 1021.056 | F60: 7402.656 | G60: 0
B61: AC182CF | C61: AIRE ACOND 18000 BTUS SOLO FRIO 220V GOLDEN FIN PLUS ON OFF HISENSE | D61: 7120.8 | E61: 1139.328 | F61: 8260.128 | G61: 0
B62: ACR182KG | C62: AIRE ACOND 18000 BTUS S/FRIO ON/OFF 220V GAS R32 HISENSE | D62: 7120.8 | E62: 1139.328 | F62: 8260.128 | G62: 0
B63: MW182C4 | C63: AIRE ACOND SPLIT 17000 BTUS ON/OFF SOLO FRIO 220V LG | D63: 7438.8 | E63: 1190.208 | F63: 8629.008 | G63: 0
B64: AH182CF | C64: AIRE ACOND MINI SPLIT 18000 BTUS FRIO/CALOR ON/OFF 220V HISENSE | D64: 7527.6 | E64: 1204.416 | F64: 8732.016 | G64: 0
B65: S18P-ECV22 | C65: AIRE ACOND 18000 BTUS 220V INVERTER S/FRIO TCL. | D65: 7498.8 | E65: 1199.808 | F65: 8698.608 | G65: 0
B66: ART182KAW | C66: AIRE ACOND 1.5 TONELADAS INVERTER S/FRIO 220V WIFI HISENSE | D66: 8032.8 | E66: 1285.248 | F66: 9318.048 | G66: 0
B67: AR18BVHQASI/AX | C67: AIRE ACOND INVERTER 18000 BTUS 220V ADVANCE SAMSUNG | D67: 9249.6 | E67: 1479.936 | F67: 10729.536 | G67: 0
B68: AR18ASEAAWK/AX | C68: AIRE ACOND 18000 BTUS WIND FREE WIFI INVERTER 19.2 SEER FRIO/CALOR INVERTER SAMSUNG | D68: 15357.6 | E68: 2457.216 | F68: 17814.816 | G68: 0
B69: ZNESAJ242C | C69: AIRE ACOND 24000 BTUS 220V S/FRIO MARCA FROZEN | D69: 8517.6 | E69: 1362.816 | F69: 9880.416 | G69: 0
B70: ACR242KG | C70: AIRE ACOND 24000 BTUS S/FRIO ON/OFF 220V GAS R32 HISENSE | D70: 8894.4 | E70: 1423.104 | F70: 10317.504 | G70: 0
B71: MAS24C2AGS | C71: AIRE ACOND 24000 BTUS S/FRIO ON/OFF 220V MIDEA | D71: 9247.2 | E71: 1479.552 | F71: 10726.752 | G71: 0
B72: MW242H4 | C72: AIRE ACOND 22000 220V ON/OFF FRIO/CALOR LG | D72: 9266.4 | E72: 1482.624 | F72: 10749.024 | G72: 0
B73: MW242C4 | C73: AIRE ACOND SPLIT 22000 BTUS ON/OFF SOLO FRIO 220V LG | D73: 9266.4 | E73: 1482.624 | F73: 10749.024 | G73: 0
B74: AH242CF | C74: AIRE ACOND 24000 BTUS FRIO/CALOR, 220V ON/OFF HISENSE | D74: 10510.8 | E74: 1681.728 | F74: 12192.528 | G74: 0
B75: S24P-ECV23 | C75: AIRE ACOND 24000 BTUS 220V ELITE INVERTER S/FRIO TCL | D75: 8878.8 | E75: 1420.608 | F75: 10299.408 | G75: 0
B76: AR12BSHCMWK/AX | C76: AIRE ACOND INVERTER 12000 BTUS FRIO/CALOR 220V WINDFREE SAMSUNG | D76: 8956.8 | E76: 1433.088 | F76: 10389.888 | G76: 0
B77: VO242C1 | C77: AIRE ACOND INVERTER 24000 BTUS 220V 2 TON S/FRIO GAS R32 LG | D77: 9318 | E77: 1490.88 | F77: 10808.88 | G77: 0
B78: ART242KAW | C78: AIRE ACOND 24000 BTUS INVERTER S/FRIO 220V GAS R32 WIFI HISENSE | D78: 10328.4 | E78: 1652.544 | F78: 11980.944 | G78: 0
B79: AR24BVHQASI/AX | C79: AIRE ACOND INVERTER 24000 BTUS 220V ADVANCE SAMSUNG | D79: 10953.6 | E79: 1752.576 | F79: 12706.176 | G79: 0
B80: ART242HBWH | C80: AIRE ACOND 24000 BTUS INVERTE S/FRIO 220V NEGRO WIFI HISENSE | D80: 11728.8 | E80: 1876.608 | F80: 13605.408 | G80: 0
B81: S36P-ECF23 | C81: AIRE ACOND 36000 BTUS 220V ON/OFF S/FRIO TCL | D81: 11536.8 | E81: 1845.888 | F81: 13382.688 | G81: 0
B82: AR18BSHCMWK/AX | C82: AIRE ACOND INVERTER 18000 BTUS FRIO/CALOR 220V WINDFREE SAMSUNG | D82: 12093.6 | E82: 1934.976 | F82: 14028.576 | G82: 0
B83: S36P-ECV23 | C83: AIRE ACOND 36000 BTUS 220V INVERTER S/FRIO TCL | D83: 13186.8 | E83: =D83*16% -> 2109.888 | F83: =D83+E83 -> 15296.688 | G83: =F83*A83 -> 0
B84: ART362HBW | C84: AIRE ACOND 36000 BTUS INVERTER SOLO FRIO 220V 18 SEER HISENSE | D84: 16094.4 | E84: 2575.104 | F84: 18669.504 | G84: 0
B85: AR24ASEAAWK/AX | C85: AIRE ACOND 22000 BTUS WIND FREE WIFI R410 SEER 17.5 INVERTER FRIO/CALOR MARCA SAMSUNG | D85: 19197.6 | E85: 3071.616 | F85: 22269.216 | G85: 0
B86: ARU362HBW | C86: AIRE ACOND 36000 BTUS INVERTER FRIO/CALOR WIFI 18 SEER HISENSE | D86: 19369.2 | E86: 3099.072 | F86: 22468.272 | G86: 0
B87: MAS36H2AGV | C87: AIRE ACOND. 36000 BTUS FRIO/CALOR 220V INVERTER MIDEA | D87: 19411.2 | E87: 3105.792 | F87: 22516.992 | G87: 0
B88: AUC-36UWKK | C88: AIRE ACOND CASSETTE 36000 BTUS INVERTER HISENSE | D88: 23023.2 | E88: 3683.712 | F88: 26706.912 | G88: 0
B89: AUV-36UWKC | C89: AIRE ACOND PISO TECHO 36000 BTUS INVERTER MARCA HISENSE | D89: 24706.8 | E89: 3953.088 | F89: 28659.888 | G89: 0
B90: AUD-36UX4SEH5 | C90: AIRE ACOND DUCTED 36000 BTUS INVERTER HISENSE | D90: 24966 | E90: 3994.56 | F90: 28960.56 | G90: 0
B91: RGI-EFC36H2 | C91: AIRE ACOND 36000 BTUS INVERTER FRIO/CALOR 220V PISO/TECHO RHEEM | D91: 30438 | E91: 4870.08 | F91: 35308.08 | G91: 0
B92: AUC-48UWNK | C92: AIRE ACOND CASSETTE 48000 BTUS INVERTER HISENSE | D92: 31401.6 | E92: 5024.256 | F92: 36425.856 | G92: 0
B93: AUC-60UWNK | C93: AIRE ACOND CASSETTE 60000 BTUS INVERTER HISENSE | D93: 33795.6 | E93: 5407.296 | F93: 39202.896 | G93: 0
B94: AUV-48UWNC | C94: AIRE ACOND PISO TECHO 48000 BTUS INVERTER MARCA HISENSE | D94: 34213.2 | E94: 5474.112 | F94: 39687.312 | G94: 0
B95: AUV-60UWNC | C95: AIRE ACOND PISO TECHO 60000 BTUS INVERTER WIFI HISENSE | D95: 35577.6 | E95: 5692.416 | F95: 41270.016 | G95: 0
B96: 37538N | C96: ARROCERA 20 TAZAS COLOR ROJO HAMILTON BEACH | D96: 819.6 | E96: 131.136 | F96: 950.736 | G96: 0
B97: GM-D8701 | C97: AMPLIFICADOR CLASE D MONOAORAL, 1600 WATTS MARCA PIONEER | D97: 5708.4 | E97: 913.344 | F97: 6621.744 | G97: 0
B98: NAM3305 | C98: AUTOESTEREO 7" BT S/CD 2 DIN ANDROID AUTO APPLE CARPLAY MARCA NAKAMICHI | D98: 4494 | E98: 719.04 | F98: 5213.04 | G98: 0
B99: CURITIBA120 | C99: AUTOESTEREO BLAUPUNKT CARATULA FIJA C/RADIO BT | D99: 706.8 | E99: 113.088 | F99: 819.888 | G99: 0
B100: NAM1610 | C100: AUTOESTEREO C/PANTALLA 7" USB NAKAMICHI | D100: 2637.6 | E100: 422.016 | F100: 3059.616 | G100: 0
B101: DEH-S4250BT | C101: AUTOESTEREO CON CD Y BT MARCA PIONEER. | D101: 2334 | E101: 373.44 | F101: 2707.44 | G101: 0
B102: MVH-S235BT | C102: AUTOESTEREO CON USB Y BLUETOOTH LUZ ROJO Y BLANCA PIONEER | D102: 1350 | E102: 216 | F102: 1566 | G102: 0
B103: CSP-X1040D | C103: AUTOESTEREO DE CD C/BOCINAS AIWA | D103: 838.8 | E103: 134.208 | F103: 973.008 | G103: 0
B104: DMH-G225BT | C104: AUTOESTEREO LCD MARCA PIONEER | D104: 2989.2 | E104: 478.272 | F104: 3467.472 | G104: 0
B105: MVH-S145BT | C105: AUTOESTEREO LCD SMART SYNC PIONEER | D105: 944.4 | E105: 151.104 | F105: 1095.504 | G105: 0
B106: AW-A502BT | C106: AUTOESTEREO PANTALLA 2 DIN TOUCH LCD 7" AIWA | D106: 1694.4 | E106: 271.104 | F106: 1965.504 | G106: 0
B107: AW-A802BS | C107: AUTOESTEREO PANTALLA HD TOUCH 9" 2 DIN AIWA | D107: 2103.6 | E107: 336.576 | F107: 2440.176 | G107: 0
B108: ALPHA100 | C108: AUTOESTEREO UN DIN BT-SD-AUX MARCA INFINITY | D108: 1197.6 | E108: 191.616 | F108: 1389.216 | G108: 0
B109: CELEBRITY100 | C109: AUTOESTEREO UN DIN BT-SD-AUX MARCA JBL | D109: 1150.8 | E109: 184.128 | F109: 1334.928 | G109: 0
B110: AW-3269BT | C110: AUTOESTEREO USB BLUETOOTH C/CONTROL MP3 ASISTENTE DE VOZ AIWA | D110: 607.2 | E110: 97.152 | F110: 704.352 | G110: 0
B111: DMH-A245BT | C111: AUTOESTERIO C/PANTALLA MULTIMEDIA 6.2" 2 DIN ANDROID BT IPHONE PIONEER | D111: 3855.6 | E111: 616.896 | F111: 4472.496 | G111: 0
B112: TAW-1633 | C112: AUTOPARLANTES 6.5" 2 VIAS 16CM 200W COLOR NEGRO AIWA | D112: 354 | E112: 56.64 | F112: 410.64 | G112: 0
B113: HV-12 KG4 | C113: ASPIRADORA PORTATIL 12V COLOR ROJO/NEGRO MARCA KOBLENZ | D113: 406.8 | E113: 65.088 | F113: 471.888 | G113: 0
B114: HV-120 KG3 | C114: ASPIRADORA MANUAL MARCA KOBLENZ | D114: 572.4 | E114: 91.584 | F114: 663.984 | G114: 0
B115: RC-A1 | C115: ASPIRADORA DE MANO 600ML RCA | D115: 742.8 | E115: 118.848 | F115: 861.648 | G115: 0
B116: WD 5 MA | C116: ASPIRADORA 5 GAL SOLIDOS Y LIQUIDOS KOBLENZ | D116: 883.2 | E116: 141.312 | F116: 1024.512 | G116: 0
B117: WD-5 MA | C117: ASPIRADORA SECO MOJADO MARCA KOBLENZ | D117: 883.2 | E117: 141.312 | F117: 1024.512 | G117: 0
B118: WD-390S K2 | C118: ASPIRADORA SANITIZANTE 3 GAL MARCA KOBLENZ | D118: 931.2 | E118: 148.992 | F118: 1080.192 | G118: 0
B119: WDL 1 | C119: ASPIRADORA PARA SOLIDOS Y LIQUIDOS 10LTS COLOR NEGRO KARCHER | D119: 1038 | E119: 166.08 | F119: 1204.08 | G119: 0
B120: KC-1100 | C120: ASPIRADORA MISTYC MANUAL 1200W MARCA KOBLENZ | D120: 1058.4 | E120: 169.344 | F120: 1227.744 | G120: 0
B121: VC 1 | C121: ASPIRADORA PARA SOLIDOS VC 1 KARCHER | D121: 1480.8 | E121: 236.928 | F121: 1717.728 | G121: 0
B122: WD 6 L212 | C122: ASPIRADORA 6 GAL SOLIDO Y LIQUIDO MARCA KOBLENZ | D122: 1531.2 | E122: 244.992 | F122: 1776.192 | G122: 0
B123: WRSG-22D1W | C123: ASPIRADORA INALAMBRICA COLOR BLANCA 0.5 LTS MARCA WINIA | D123: 1798.8 | E123: 287.808 | F123: 2086.608 | G123: 0
B124: YCA-1300 | C124: ASPIRADORA CENTAURY COLOR NARANJA/GRIS, 1300W MARCA KOBLENZ | D124: 1870.8 | E124: 299.328 | F124: 2170.128 | G124: 0
B125: WD-12 L4 | C125: ASPIRADORA 12 GALONES SOLIDOS Y LIQUIDOS MARCA KOBLENZ | D125: 2862 | E125: 457.92 | F125: 3319.92 | G125: 0
B126: WD-16L4 | C126: ASPIRADORA SECO/MOJADO DE 16 GALONES MARCA KOBLENZ | D126: 3134.4 | E126: 501.504 | F126: 3635.904 | G126: 0
B127: AW-ACF1W | C127: AUDIFONOS INALAMBRICOS OVER-EAR DEPORTIVOS BLANCO AIWA | D127: 452.4 | E127: 72.384 | F127: 524.784 | G127: 0
B128: AW-ACF1B | C128: AUDIFONOS INALAMBRICOS OVER-EAR DEPORTIVOS NEGRO AIWA | D128: 452.4 | E128: 72.384 | F128: 524.784 | G128: 0
B129: AWSBC800WW | C129: BARRA DE SONIDO + SUBWOOFER + WIRELESS90W AIWA | D129: 1666.8 | E129: 266.688 | F129: 1933.488 | G129: 0
B130: AWSBH1W-W | C130: BARRA DE SONIDO 100W PMPO 300W RMS SUBWOOFER + WIRELESS AC 110-127V AIWA | D130: 2455.2 | E130: 392.832 | F130: 2848.032 | G130: 0
B131: HW-S700D/ZX | C131: BARRA DE SONIDO 3.1 CANALES C/SUBWOOFER SAMSUNG | D131: 4028.4 | E131: 644.544 | F131: 4672.944 | G131: 0
B132: AWSBH15 | C132: BARRA DE SONIDO 30W AIWA | D132: 790.8 | E132: 126.528 | F132: 917.328 | G132: 0
B133: HW-B400F/ZX | C133: BARRA DE SONIDO 2.0 CON WOOFER SAMSUNG | D133: 1558.8 | E133: 249.408 | F133: 1808.208 | G133: 0
B134: 86565 | C134: BATERIA 5 PZS DELEITE (70001337) NEGRO VASCONIA | D134: 514.8 | E134: 82.368 | F134: 597.168 | G134: 0
B135: 20598/646 | C135: BATERIA DE COCINA 4 PZS GRIS TRAMONTINA | D135: 633.6 | E135: 101.376 | F135: 734.976 | G135: 0
B136: 964174 | C136: BATERIA 7 PZS ADANA ESMALTADO NEGRO EKCO | D136: 728.4 | E136: 116.544 | F136: 844.944 | G136: 0
B137: 5821100 | C137: BATERIA VITAL 8 PZS COLOR NEGRO T-FAL | D137: 787.2 | E137: 125.952 | F137: 913.152 | G137: 0
B138: 900844 | C138: BATERIA PELTRE 8 PZAS COLOR NEGRO EKCO | D138: 986.4 | E138: 157.824 | F138: 1144.224 | G138: 0
B139: 27899/329 | C139: BATERIA DE COCINA 10 PZS PRIMAONE COLOR ROJO TRAMONTINA | D139: 987.6 | E139: 158.016 | F139: 1145.616 | G139: 0
B140: 0252800M | C140: BATERIA EXPERT CHEF 11PZS COLOR NEGRO T-FAL | D140: 1026 | E140: 164.16 | F140: 1190.16 | G140: 0
B141: 32300/409 | C141: BATERIA DE COCINA 10 PZAS ACERO INOX TRAMONTINA | D141: 1066.8 | E141: 170.688 | F141: 1237.488 | G141: 0
B142: 20399/782 | C142: BATERIA DE COCINA 5 PIEZAS LORETO ROJA TRAMONTINA | D142: 1125.6 | E142: 180.096 | F142: 1305.696 | G142: 0
B143: 27899/478 | C143: BATERIA DE COCINA 6 PIEZAS ATLANTIC ROJA TRAMONTINA | D143: 1198.8 | E143: 191.808 | F143: 1390.608 | G143: 0
B144: B4696384BF25 | C144: BATERIA DE 13 PZS NEGRA EXPERT CHEF (POZOLERA) T-FAL | D144: 1861.2 | E144: 297.792 | F144: 2158.992 | G144: 0
B145: 28855 | C145: BATERIA 12 PZAS PELTRE COLOR AZUL MARINO MARCA ECKO | D145: 1862.4 | E145: 297.984 | F145: 2160.384 | G145: 0
B146: RC-093 | C146: BATIDORA DE MANO 7 VEL COLOR BLANCO RCA | D146: 165.6 | E146: 26.496 | F146: 192.096 | G146: 0
B147: RC-095 | C147: BATIDORA MANUAL 5 VEL RCA | D147: 198 | E147: =D147*16% -> 31.68 | F147: =D147+E147 -> 229.68 | G147: =F147*A147 -> 0
B148: RC-72 | C148: BATIDORA DE MANO 5 VEL CON ESTUCHE DE ACCESORIOS RCA | D148: 297.6 | E148: 47.616 | F148: 345.216 | G148: 0
B149: FPSBHM4000-013 | C149: BATIDORA HAND MIXER 120V MARCA SUNBEAM | D149: 308.4 | E149: 49.344 | F149: 357.744 | G149: 0
B150: FPSTHM101-013 | C150: BATIDORA MANUAL BLANCA (2125950) OSTER | D150: 349.2 | E150: 55.872 | F150: 405.072 | G150: 0
B151: 002499-013-000 | C151: BATIDORA MANUAL (2499013000) COLOR BLANCO OSTER | D151: 423.6 | E151: 67.776 | F151: 491.376 | G151: 0
B152: FPSTHB2600W-013 | C152: BATIDORA DE INMERSION COLOR BLANCA PLASTICO MARCA OSTER | D152: 430.8 | E152: 68.928 | F152: 499.728 | G152: 0
B153: FPSTHM3532-013 | C153: BATIDORA DE MANO 6 VEL COLOR BLANCA 250W (2121773) MARCA OSTER | D153: 555.6 | E153: 88.896 | F153: 644.496 | G153: 0
B154: FPSTHB2610W-013 | C154: BATIDORA DE INMERSION COLOR BLANCA MARCA OSTER | D154: 597.6 | E154: 95.616 | F154: 693.216 | G154: 0
B155: 64640G | C155: BATIDORA DE PEDESTAL 6 VEL. 290 W ACERO INOX HAMILTON BEACH | D155: 848.4 | E155: 135.744 | F155: 984.144 | G155: 0
B156: FPSTHS3610 | C156: BATIDORA DE MANO Y PEDESTAL 3.7 LTS 6 VEL COLOR BLANCA (2121774) MARCA OSTER | D156: 987.6 | E156: 158.016 | F156: 1145.616 | G156: 0
B157: FPSTHS3611-013 | C157: BATIDORA DE PEDESTAL 6 VEL 250W VIDRIO (2121775) MARCA OSTER | D157: 1149.6 | E157: 183.936 | F157: 1333.536 | G157: 0
B158: TS-A1678S | C158: BOCINA 16 CM 3 VIAS 61/2" 320WATTS 91DB PIONEER | D158: 1015.2 | E158: 162.432 | F158: 1177.632 | G158: 0
B159: TS-R1651S-2 | C159: BOCINA 16 CM 3 VIAS PIONEER | D159: 538.8 | E159: 86.208 | F159: 625.008 | G159: 0
B160: TS-R1651S | C160: BOCINA 16 CM REDONDA MARCA PIONEER | D160: 538.8 | E160: 86.208 | F160: 625.008 | G160: 0
B161: TS-G6501 | C161: BOCINA 16CM, 1 VIA, 280 WATTS MARCA PIONEER | D161: 496.8 | E161: 79.488 | F161: 576.288 | G161: 0
B162: TS-G4620S | C162: BOCINA 4X6" 2 VIAS, MARCA PIONEER | D162: 951.6 | E162: 152.256 | F162: 1103.856 | G162: 0
B163: TS-A6968S | C163: BOCINA 6X9 4 VIAS 450WATTS 92DB PIONEER | D163: 1086 | E163: 173.76 | F163: 1259.76 | G163: 0
B164: TS-A6978S | C164: BOCINA 6X9 4 VIAS 650WATTS 92DB PIONEER | D164: 1498.8 | E164: 239.808 | F164: 1738.608 | G164: 0
B165: TS-A6988S | C165: BOCINA 6X9 5 VIAS MARCA PIONEER | D165: 1694.4 | E165: 271.104 | F165: 1965.504 | G165: 0
B166: TS-G6930F | C166: BOCINA 6X9" 2 VIAS, MARCA PIONEER | D166: 895.2 | E166: 143.232 | F166: 1038.432 | G166: 0
B167: TS-A6977S | C167: BOCINA 6X9", 3 VIAS, 100 WATTS MARCA PIONEER | D167: 1498.8 | E167: 239.808 | F167: 1738.608 | G167: 0
B168: TS-A6987S | C168: BOCINA 6X9", 5 VIAS, 700 WATTS MARCA PIONEER | D168: 1694.4 | E168: 271.104 | F168: 1965.504 | G168: 0
B169: MSA-2065 | C169: BOCINA 6.5" RECARGABLE DOBLE EN TORRE MARCA ROBSON | D169: 591.6 | E169: 94.656 | F169: 686.256 | G169: 0
B170: KSW-3508 | C170: BOCINA 8" C/LUZ FLAMA USB MICRO SD C/MICROFONO INAL KSR | D170: 597.6 | E170: 95.616 | F170: 693.216 | G170: 0
B171: AWS80BTB | C171: BOCINA BLUETOOTH WATERPROOF TWS NEGRA 20W RMS RADIO FM AIWA | D171: 711.6 | E171: 113.856 | F171: 825.456 | G171: 0
B172: AWKF4B | C172: BOCINA BLUETOOTH WATERPROOF TWS NEGRA 20W RMS CARGA 3 HRS CARGA USB MARCA AIWA | D172: 783.6 | E172: 125.376 | F172: 908.976 | G172: 0
B173: AWKF4R | C173: BOCINA BLUETOOTH WATERPROOF TWS ROJA 20W RMS CARGA 3 HRS CARGA USB MARCA AIWA | D173: 783.6 | E173: 125.376 | F173: 908.976 | G173: 0
B174: PL2 | C174: BOCINA PORTATIL XBOOM, BLUETOOTH MARCA LG | D174: 1059.6 | E174: 169.536 | F174: 1229.136 | G174: 0
B175: AWPOK400LD | C175: BOCINA BLUETOOTH TWS RADIO FM 50W COLOR NEGRO AIWA | D175: 2540.4 | E175: 406.464 | F175: 2946.864 | G175: 0
B176: AWSP15TWNB | C176: BOCINA 15" NO RECARGABLE 30W RMS BLUETOOTH FM MICROFONO TRIPIE AIWA | D176: 2667.6 | E176: 426.816 | F176: 3094.416 | G176: 0
B177: AWPOH1D | C177: BOCINA DOBLE 8" 80 W RMS LUZ LLAMEANTE RECARGABLE 110-127V MARCA AIWA | D177: 3033.6 | E177: 485.376 | F177: 3518.976 | G177: 0
B178: AWPOK3LD | C178: BOCINA DOBLE 8" 1000W PMPO 96W RMS RECARGABLE 110-127V MARCA AIWA | D178: 3078 | E178: 492.48 | F178: 3570.48 | G178: 0
B179: MX-ST50B/ZX | C179: BOCINA TIPO TORRE BT 240 WATTS MARCA SAMSUNG | D179: 3597.6 | E179: 575.616 | F179: 4173.216 | G179: 0
B180: AWPOH2D | C180: BOCINA DOBLE 10" 120 W RMS LUZ LLAMEANTE RECARGABLE 110-127V MARCA AIWA | D180: 4586.4 | E180: 733.824 | F180: 5320.224 | G180: 0
B181: AWPOC10L | C181: BOCINA DOBLE 12" 2500W PMPO 100W RMS BLUETOOTH AC110-127V MARCA AIWA | D181: 5371.2 | E181: 859.392 | F181: 6230.592 | G181: 0
B182: CD-I200 | C182: CABLE CON CONECTOR PIONEER | D182: 204 | E182: 32.64 | F182: 236.64 | G182: 0
B183: DMH-A345BT | C183: PANTALLA DE 6.8" BT MARCA PIONEER. | D183: 4407.6 | E183: 705.216 | F183: 5112.816 | G183: 0
B184: L-10K | C184: BOMBA DE AGUA LUA-10000 | D184: 1612.8 | E184: 258.048 | F184: 1870.848 | G184: 0
B185: 34300RG | C185: BUFETERA CHAROLA CALENTAMIENTO PLATA PROCTOR SILEX | D185: 1455.6 | E185: 232.896 | F185: 1688.496 | G185: 0
B186: BVSTDC05-013 | C186: CAFETERA ANÁLOGA 5TAZAS COLOR NEGRA (2128178) OSTER | D186: 330 | E186: 52.8 | F186: 382.8 | G186: 0
B187: RC-CAF2 | C187: CAFETERA DE 12 TAZAS 1.2L JARRA VIDRIO RCA | D187: 331.2 | E187: 52.992 | F187: 384.192 | G187: 0
B188: 49970-MX | C188: CAFETERA PERSONAL 1 TAZA MARCA HAMILTON BEACH | D188: 357.6 | E188: 57.216 | F188: 414.816 | G188: 0
B189: 48351G | C189: CAFETERA DE GOTEO 10 TAZAS COLOR NEGRO MARCA PROCTOR SILEX | D189: 418.8 | E189: 67.008 | F189: 485.808 | G189: 0
B190: 48351PS | C190: CAFETERA DE GOTEO 10 TAZAS COLOR NEGRO PROCTOR SILEX | D190: 418.8 | E190: 67.008 | F190: 485.808 | G190: 0
B191: 46299J | C191: CAFETERA PROGRAMABLE 12 TZ HAMILTON BEACH | D191: 438 | E191: 70.08 | F191: 508.08 | G191: 0
B192: BVSTDC12-013-02 | C192: CAFETERA 12 TAZAS C/FILTRO NEGRA (2183235) OSTER | D192: 454.8 | E192: 72.768 | F192: 527.568 | G192: 0
B193: 2183235 | C193: CAFETERA ANALOGA 12 TZ JARRA VIDRIO (BVSTDCS12BN) OSTER | D193: 456 | E193: 72.96 | F193: 528.96 | G193: 0
B194: CKM-212 PIN | C194: CAFETERA 12 TAZAS C/ NEGRO PROGRAMABLE KOBLENZ | D194: 490.8 | E194: 78.528 | F194: 569.328 | G194: 0
B195: RC-CAF3 | C195: CAFETERA DIGITAL PROGRAMABLE 12 TAZAS ACERO INOX RCA | D195: 579.6 | E195: 92.736 | F195: 672.336 | G195: 0
B196: BVSTDCP121B-013 | C196: CAFETERA 12 TAZAS COLOR NEGRO (2217257) OSTER | D196: 668.4 | E196: 106.944 | F196: 775.344 | G196: 0
B197: CKM-215 IN | C197: CAFETERA 15 TAZAS PROGRAMABLE ACERO INOX KOBLENZ | D197: 734.4 | E197: 117.504 | F197: 851.904 | G197: 0
B198: 40515G | C198: CAFETERA PERCOLADORA 45 TAZAS ACERO INOX HAMILTON BEACH | D198: 921.6 | E198: 147.456 | F198: 1069.056 | G198: 0
B199: 40515R | C199: CAFETERA PERCOLADORA 45 TZAS (40515RZ) MARCA HAMILTON BEACH | D199: 921.6 | E199: 147.456 | F199: 1069.056 | G199: 0
B200: 40519R | C200: CAFETERA PERCOLADORA 45 TAZAS C/NIVEL DE AGUA HAMILTON BEACH | D200: 922.8 | E200: 147.648 | F200: 1070.448 | G200: 0
B201: 40519 | C201: CAFETERA PARA 45 TAZAS C/ NIVEL DE AGUA MARCA HAMILTON BEACH | D201: 922.8 | E201: 147.648 | F201: 1070.448 | G201: 0
B202: 49976 | C202: CAFETERA 3 EN 1 FLEXBREW 12 TZ HAMILTON BEACH | D202: 1003.2 | E202: 160.512 | F202: 1163.712 | G202: 0
B203: RC-CAF4 | C203: CAFETERA CON MOLINO 4 TZAS PLATO TERMICO RCA | D203: 1197.6 | E203: 191.616 | F203: 1389.216 | G203: 0
B204: 40715 | C204: CAFETERA ESPRESSO 2TZS 1.4L COLOR NEGRO CON PLATA MARCA HAMILTON BEACH | D204: 1742.4 | E204: 278.784 | F204: 2021.184 | G204: 0
B205: RC-CAF5 | C205: CAFETERA PROFESIONAL CON ESPUMADOR 2 EN 1 RCA | D205: 1814.4 | E205: 290.304 | F205: 2104.704 | G205: 0
... 699 more rows

Sheet Computacion
B3: IMPORTACIONES FABIOLA DE CANCUN, S.A. DE C.V. | D3: Fecha | F3: =TODAY() -> 2026-04-16
B4: Av. Lopez Portillo, SM66, Mza3, Lotes 27 y 28, Cancun, Quintana Roo, Mex. C.P. 77510 | D4: N.º de presupuesto | F4: 000/2025MX
B5: Telefono 998 8875947, 8875514, 8873750, 8873848. | D5: Id. del cliente | F5: IFC930505GC1
B6: ventas@fabiolacom.mx | D6: Tipo de Cambio USD | F6: 17.51
B8: Estimado Cliente o A Quien Corresponda: | D8: LISTA DE PRECIOS DEL 10 DE ABRIL DE 2026.
B10: Por este conducto me permito hacerle llegar la lista de los productos que tenemos a su disponisicion, los cuales esta a precios muy accesibles para este
B11: mes de ABRIL DE 2026, Solicite su cotizacion apuntando la cantidad de productos que ocupa en la columna de CANT. Y reenvie este mismo formato
B12: para mandarle la cotizacion en forma.
B14: Sin mas de momento, quedamos a sus ordenes para cualquier comentario o solicutud de cotizacion, estos precios estan vigentes hasta el 31 DE ABRIL DE 2026 o
B15: hasta agotar existencias con el mayorista.
A17: CANT | B17: CLAVE | C17: DESCRIPCION DEL PRODUCTO | D17: PRECIO UNITARIO | E17: IVA | F17: PRECIO C/IVA | G17: IMPORTES | H17: MONEDA | I17: MARCA | J17: CODIGO | K17: CATEGORIA
B18: 6190034N-GP | C18: HUAWEI OPS OPS,I7-12700,DDR4 16GB,512GB SSD,WINDOWS11 IOT ENTERPRISE SAC,195MM,180MM,30MM | D18: 1152 | E18: =D18*16% -> 184.32 | F18: =D18+E18 -> 1336.32 | G18: =F18*A18 -> 0 | H18: Dolares | I18: HUAWEI | J18: AC-12839 | K18: ACCESO VIDEOCONFERENCIA
B19: 6190054N-DS | C19: HUAWEI OPS,I5-12450H,DDR4 8GB,256GB SSD,WINDOWS11 IOT ENTERPRISE SAC,DC19V | D19: 792 | E19: =D19*16% -> 126.72 | F19: =D19+E19 -> 918.72 | G19: =F19*A19 -> 0 | H19: Dolares | I19: HUAWEI | J19: AC-13418 | K19: ACCESO VIDEOCONFERENCIA
B20: 6190053N-DS | C20: HUAWEI /OPS,I7-13620H,/ DDR4 16GB / 512GB SSD/ WINDOWS11 IOT ENTERPRISE /SAC,DC19V | D20: 1152 | E20: 184.32 | F20: 1336.32 | G20: 0 | H20: Dolares | I20: HUAWEI | J20: AC-13419 | K20: ACCESO VIDEOCONFERENCIA
B21: K21-FLOORSTAND | C21: SOPORTE DE SUELO PARA KIOSCO K21-FLOORSTAND 3NSTAR | D21: 349.452 | E21: 55.91232 | F21: 405.36432 | G21: 0 | H21: Dolares | I21: 3NSTAR | J21: AC-12847 | K21: ACCESORIOS
B22: CT350 | C22: BANDEJA PARA CAJON DE DINERO CD350 3NSTAR MOD. CT350 355MM X 326MM, FABRICADA EN PLASTICO CON SUJETADOR DE BILLETES DE METAL 8 ESPACIOS PARA MONEDAS 5 ESPACIOS PARA BILLETES. | D22: 23.76 | E22: 3.8016 | F22: 27.5616 | G22: 0 | H22: Dolares | I22: 3NSTAR | J22: AC-5857 | K22: ACCESORIOS
B23: PTE0105-M10 | C23: PANTALLA PARA CLIENTE 3NSTAR, LCD DE 9.7 PULGADAS, COLOR GRIS OSCURO, NO TOUCH, VGA | D23: 188.7 | E23: 30.192 | F23: 218.892 | G23: 0 | H23: Dolares | I23: 3NSTAR | J23: AC-8866 | K23: ACCESORIOS
B24: AC-934695 | C24: CARCASA CASE ENCLOSURE PARA DISCO DURO ACTECK ARMOR CLEAR HC440 / SSD 2.5 / CONEXION USB C / SATA / TRANSPARENTE / AC-934695 | D24: 178.656 | E24: 28.58496 | F24: 207.24096 | G24: 0 | H24: Pesos | I24: ACTECK | J24: AC-10745 | K24: ACCESORIOS
B25: AC-934626 | C25: HUB ACTECK GATE 8 DH675 / USB C / 7 PUERTOS / USB C - 3X USB A - HDMI - RJ45 - LECTOR SD/TF / 15 CM / NEGRO / AC-934626 | D25: 717.048 | E25: 114.72768 | F25: 831.77568 | G25: 0 | H25: Pesos | I25: ACTECK | J25: AC-10746 | K25: ACCESORIOS
B26: AC-934688 | C26: CARCASA CASE ENCLOSURE PARA DISCO DURO ACTECK ARMOR CLEAR HC430 / HDD 2.5 / CONEXION USB MICRO B / SATA / TRANSPARENTE / AC-934688 | D26: 154.176 | E26: 24.66816 | F26: 178.84416 | G26: 0 | H26: Pesos | I26: ACTECK | J26: AC-10750 | K26: ACCESORIOS
B27: AC-934664 | C27: HUB ACTECK PORT X 3 DH425 / USB A / 4 PUERTOS USB 3.0 / 30 CM / NEGRO / AC-934664 | D27: 186.816 | E27: 29.89056 | F27: 216.70656 | G27: 0 | H27: Pesos | I27: ACTECK | J27: AC-10868 | K27: ACCESORIOS
B28: AC-934732 | C28: ADAPTADOR ACTECK SHIFT PLUS AE420 / USB A - RJ45 ETHERNET / 100 MBPS / WIN - MAC OS - LINUX - ANDROID / NEGRO / AC-934732 | D28: 154.176 | E28: 24.66816 | F28: 178.84416 | G28: 0 | H28: Pesos | I28: ACTECK | J28: AC-10869 | K28: ACCESORIOS
B29: AC-934763 | C29: ADAPTADOR ACTECK SHIFT PLUS AH435 / DISPLAYPORT A HDMI / 4K / 20 CM / NEGRO / AC-934763 | D29: 88.92 | E29: 14.2272 | F29: 103.1472 | G29: 0 | H29: Pesos | I29: ACTECK | J29: AC-10870 | K29: ACCESORIOS
B30: AC-934657 | C30: ADAPTADOR ACTECK SHIFT PLUS AV420 / USB C - HDMI VGA / 4K / 10 CM / NEGRO / AC-934657 | D30: 268.392 | E30: 42.94272 | F30: 311.33472 | G30: 0 | H30: Pesos | I30: ACTECK | J30: AC-10874 | K30: ACCESORIOS
B31: AC-934497 | C31: MOUSEPAD ACTECK VIBE FELT PLUS TF620 / ALFOMBRILLA PARA ESCRITORIO / ERGONOMICO / TEXTURA AFELPADA / BASE ANTIDESLIZANTE / 90X40CM / GRIS CLARO / AC-934497 | D31: 137.868 | E31: 22.05888 | F31: 159.92688 | G31: 0 | H31: Pesos | I31: ACTECK | J31: AC-10888 | K31: ACCESORIOS
B32: AC-934510 | C32: MOUSEPAD ACTECK VIBE LEATHER TP670 / ALFOMBRILLA PARA ESCRITORIO / ERGONOMICO / PIEL VEGANA / DOBLE VISTA / GRIS OSCURO Y CLARO / ANTIDERRAPANTE / 90X40CM / AC-934510 | D32: 235.764 | E32: 37.72224 | F32: 273.48624 | G32: 0 | H32: Pesos | I32: ACTECK | J32: AC-10889 | K32: ACCESORIOS
B33: AC-934329 | C33: MOUSEPAD ACTECK MG210 / MOUSE PAD REPOSAMU?ECAS DE GEL / BASE ANTIDESLIZANTE / ERGONOMICO / 24X21X2.5 CM / NEGRO / AC-934329 | D33: 129.708 | E33: 20.75328 | F33: 150.46128 | G33: 0 | H33: Pesos | I33: ACTECK | J33: AC-10904 | K33: ACCESORIOS
B34: AC-934824 | C34: LECTOR DE MEMORIA DUAL ACTECK / USB A - USB C / MICRO SD/TF / NEGRO / AC-934824 | D34: 146.016 | E34: 23.36256 | F34: 169.37856 | G34: 0 | H34: Pesos | I34: ACTECK | J34: AC-10907 | K34: ACCESORIOS
B35: AC-934619 | C35: HUB ACTECK GATE 6 DH660 / USB C / 5 PUERTOS / USB C - 2X USB A - LECTOR DE MEMORIAS - HDMI / 15 CM / NEGRO / AC-934619 | D35: 382.584 | E35: 61.21344 | F35: 443.79744 | G35: 0 | H35: Pesos | I35: ACTECK | J35: AC-10909 | K35: ACCESORIOS
B36: AC-934633 | C36: HUB ACTECK GATE 5 DH640 / USB C / 4 PUERTOS / USB A - HDMI - LECTOR DE MEMORIAS / 10 CM / NEGRO / AC-934633 | D36: 317.34 | E36: 50.7744 | F36: 368.1144 | G36: 0 | H36: Pesos | I36: ACTECK | J36: AC-10929 | K36: ACCESORIOS
B37: AC-934756 | C37: ADAPTADOR ACTECK SHIFT PLUS AV400 / HDMI A VGA / 20 CM / 4K / NEGRO / AC-934756 | D37: 80.76 | E37: 12.9216 | F37: 93.6816 | G37: 0 | H37: Pesos | I37: ACTECK | J37: AC-10939 | K37: ACCESORIOS
B38: AC-934817 | C38: ADAPTADOR ACTECK SHIFT PLUS AU210 / USB A - USB C / GARANTIA 1 A?O / NEGRO / AC-934817 | D38: 39.972 | E38: 6.39552 | F38: 46.36752 | G38: 0 | H38: Pesos | I38: ACTECK | J38: AC-10955 | K38: ACCESORIOS
B39: AC-934848 | C39: ADAPTADOR ACTECK SHIFT PLUS AL405 / LIGHTNING A AUX 3.5 MM / 11 CM / BLANCO / AC-934848 | D39: 105.228 | E39: 16.83648 | F39: 122.06448 | G39: 0 | H39: Pesos | I39: ACTECK | J39: AC-10957 | K39: ACCESORIOS
B40: AC-934503 | C40: MOUSEPAD XL ACTECK MOUSE PAD TF620 / TEXTURA AFELPADA / BASE ANTIDESLIZANTE / 90X40CM / GRIS CLARO / AC-934503 | D40: 137.868 | E40: 22.05888 | F40: 159.92688 | G40: 0 | H40: Pesos | I40: ACTECK | J40: AC-10959 | K40: ACCESORIOS
B41: AC-935562 | C41: CARGADOR DE PARED ACTECK ENERGON PLUS CP38W / 38 W / CARGA RAPIDA / USB C - 20 W / USB A - 18 W / GARANTIA 1 A?O / NEGRO / AC-935562 | D41: 197.196 | E41: 31.55136 | F41: 228.74736 | G41: 0 | H41: Pesos | I41: ACTECK | J41: AC-11108 | K41: ACCESORIOS
B42: AC-935579 | C42: CARGADOR DE PARED ACTECK ENERGON PRIME CP65W / 65W / 2X USB-C / 1X USB A / NEGRO / AC-935579 | D42: 402.78 | E42: 64.4448 | F42: 467.2248 | G42: 0 | H42: Pesos | I42: ACTECK | J42: AC-11112 | K42: ACCESORIOS
B43: AC-937245 | C43: SILLA ERGONOMICA ACTECK FLOE PRO EC737 / INCLINACION 35 GRADOS / MARIPOSA CLASE 4 / MAX 120 KG / PISTON CLASE 4 / REPOSABRAZOS FIJO / BLANCO / AC-937245 | D43: 2957.64 | E43: 473.2224 | F43: 3430.8624 | G43: 0 | H43: Pesos | I43: ACTECK | J43: AC-11464 | K43: ACCESORIOS
B44: AC-937184 | C44: CARGADOR ACTECK ENERGON LUMIMATE CI711 / INALAMBRICO QI / 15 W / APPLE - SAMSUNG / QI / 1 DISPOSITIVO / INCLUYE LAMPARA / NEGRO / AC-937184 | D44: 151.512 | E44: 24.24192 | F44: 175.75392 | G44: 0 | H44: Pesos | I44: ACTECK | J44: AC-11773 | K44: ACCESORIOS
B45: AC-937139 | C45: CARGADOR ACTECK ENERGON S-MATE CI740 / INALAMBRICO QI / 15 W / 3 DISPOSITIVOS / COMPATIBLE CON APPLE / AC-937139 | D45: 326.628 | E45: 52.26048 | F45: 378.88848 | G45: 0 | H45: Pesos | I45: ACTECK | J45: AC-11774 | K45: ACCESORIOS
B46: AC-936163 | C46: BASE ENFRIADORA ACTECK FROOST MAX B480 / 2 PUERTOS USB / 16 PULGADAS / 7 NIVELES / 6 VENTILADORES 10 W RMS / ALUMINIO / ANTIDERRAPANTE / BLANCO / AC-936163 | D46: 273.924 | E46: 43.82784 | F46: 317.75184 | G46: 0 | H46: Pesos | I46: ACTECK | J46: AC-11775 | K46: ACCESORIOS
B47: AC-936156 | C47: BASE ENFRIADORA ACTECK FROOST EX BE650 / 4 PUERTOS USB / 16 PULGADAS / PESO 0.750 G /1 VENTILADOR / ALUMINIO / ANTIDERRAPANTE / RGB / AC-936156 | D47: 513.972 | E47: 82.23552 | F47: 596.20752 | G47: 0 | H47: Pesos | I47: ACTECK | J47: AC-11777 | K47: ACCESORIOS
B48: AC-937214 | C48: KIT DESCANSA MU?ECAS ACTECK MOUSEPAD CUSHY PRO TR430 / ERGONMICO / MEMORY FOAM / COLOR GRAFITO / ANTIDESLIZANTE / 460 X 85 X 20 MM / AC-937214 | D48: 162.336 | E48: 25.97376 | F48: 188.30976 | G48: 0 | H48: Pesos | I48: ACTECK | J48: AC-11778 | K48: ACCESORIOS
B49: AC-937146 | C49: CARGADOR ACTECK ENERGON S-MATE CI730 / INALAMBRICO QI / 3W - 15 W / APPLE - SAMSUNG / 3 DISPOSITIVOS / RELOJ DIGITAL / NEGRO / AC-937146 | D49: 303.78 | E49: 48.6048 | F49: 352.3848 | G49: 0 | H49: Pesos | I49: ACTECK | J49: AC-11797 | K49: ACCESORIOS
B50: AC-937313 | C50: REPOSAPIES ACTECK ERGO TUFF ER505 / ACERO Y PLSTICO / INCLINACIN AJUSTABLE / HASTA 20 KG / AC-937313 | D50: 431.532 | E50: 69.04512 | F50: 500.57712 | G50: 0 | H50: Pesos | I50: ACTECK | J50: AC-11821 | K50: ACCESORIOS
B51: AC-937191 | C51: CARGADOR UNIVERSAL ACTECK ENERGON ROAM CU494 / PARA LAPTOP / SALIDA 90 W / ADAPTADOR / 12 CONECTORES / AC-937191 | D51: 349.464 | E51: 55.91424 | F51: 405.37824 | G51: 0 | H51: Pesos | I51: ACTECK | J51: AC-11844 | K51: ACCESORIOS
B52: AC-937160 | C52: CARGADOR DE ESCRITORIO ACTECK ENERGON S-MATE CI710 / PARA CELULAR / INALAMBRICO QI CARGA RAPIDA / 15 W - 5 W / PLEGABLE / CARGA SIMULTANEA / USB TIPO C / NEGRO / AC-937160 | D52: 136.296 | E52: 21.80736 | F52: 158.10336 | G52: 0 | H52: Pesos | I52: ACTECK | J52: AC-11846 | K52: ACCESORIOS
B53: AC-937061 | C53: HUB ACTECK PORT X4 DH422 / HUB 4 EN 1 USB / 1X USB 3.0 / 3 X USB 2.0 / NEGRO / AC-937061 | D53: 121.548 | E53: 19.44768 | F53: 140.99568 | G53: 0 | H53: Pesos | I53: ACTECK | J53: AC-11847 | K53: ACCESORIOS
B54: AC-936514 | C54: CARGADOR ACTECK ENERGON MATE CE676 / EXTENSIN DE ESCRITORIO / 2 X USB / 2 X TIPO C / 3 X CONTACTOS / SUPRESOR DE PICOS / INDICADOR LED / RESISTENTE AL FUEGO / 1.85 M / AC-936514 | D54: 319.02 | E54: 51.0432 | F54: 370.0632 | G54: 0 | H54: Pesos | I54: ACTECK | J54: AC-11852 | K54: ACCESORIOS
B55: AC-936521 | C55: CARGADOR ACTECK ENERGON MATE CE676 / EXTENSIN DE ESCRITORIO / 2 X USB / 2 X TIPO C / 3 X CONTACTOS / SUPRESOR DE PICOS / BLANCO / INDICADOR LED / RESISTENTE AL FUEGO / 1.85 M / AC-936521 | D55: 319.02 | E55: 51.0432 | F55: 370.0632 | G55: 0 | H55: Pesos | I55: ACTECK | J55: AC-11853 | K55: ACCESORIOS
B56: AC-936484 | C56: CARGADOR DE PARED ACTECK ENERGON LUMINA CP515 / 11 EN 1 / 7 X TOMACORRIENTE / 2 USB / 2 TIPO C / RESISTENTE AL FUEGO / SUPRESOR DE PICOS 540 J / SENSOR TOUCH / BLANCO /AC-936484 | D56: 364.704 | E56: 58.35264 | F56: 423.05664 | G56: 0 | H56: Pesos | I56: ACTECK | J56: AC-11855 | K56: ACCESORIOS
B57: AC-936460 | C57: CARCASA CASE ENCLOSURE ACTECK ARMOR PLUS HC650 / DISCO DURO SSD M.2 / M.2 M KEY PORT - NVME / COMPATIBLE USB 3.1 - PCI-E - UASP / 10 GBPS / LED AZUL / ALUMINIO / MAX 4 TB / NEGRO / AC-936460 | D57: 284.7 | E57: 45.552 | F57: 330.252 | G57: 0 | H57: Pesos | I57: ACTECK | J57: AC-11880 | K57: ACCESORIOS
B58: AC-933476 | C58: SOPORTE ACTECK FREZZE BOOK PRIMEBE220 / BASE PARA LAPTOP / COMPATIBLE 15.5 PUL / ANTIDESLIZANTE / HASTA 15 KG / INCLINACION 35 GRADOS / NEGRO / AC-933476 | D58: 121.548 | E58: 19.44768 | F58: 140.99568 | G58: 0 | H58: Pesos | I58: ACTECK | J58: AC-11967 | K58: ACCESORIOS
B59: AC-937047 | C59: HUB ACTECK GATE 14V DH696 / HUB TIPO C 14 EN 1 / USB A 2.0 X3 - USB A 3.1 X2 - HDMI X1 - DP X 1 - 1X TF2.0 - 1X SD2.0 - VGA X1 - RJ45 X1 - USB C DATA X1 -USB C DP X1 / NEGRO / AC-937047 | D59: 1222.836 | E59: 195.65376 | F59: 1418.48976 | G59: 0 | H59: Pesos | I59: ACTECK | J59: AC-12031 | K59: ACCESORIOS
B60: AC-934770 | C60: ADAPTADOR ACTECK SHIFT PLUS AH430 / MINI DISPLAYPORT - HDMI / 4K / 20 CM / NEGRO / AC-934770 | D60: 80.76 | E60: 12.9216 | F60: 93.6816 | G60: 0 | H60: Pesos | I60: ACTECK | J60: AC-12117 | K60: ACCESORIOS
B61: AC-936453 | C61: CARCASA CASE ENCLOSURE ACTECK ARMOR PRO HC660 / DISCO DURO SSD M.2 / USB C 3.1 / 10 GPBS / PROTOCOLO UASP - TRIM / MAX 4 TB / ALUMINIO / NEGRO / AC-936453 | D61: 382.584 | E61: 61.21344 | F61: 443.79744 | G61: 0 | H61: Pesos | I61: ACTECK | J61: AC-12289 | K61: ACCESORIOS
B62: AC-937177 | C62: CARGADOR ACTECK ENERGON LUMIMATE CI722 / DE ESCRITORIO / LAMPARA LED / CARGA INALMBRICA QI / PORTALAPICES / 15 W / PARA SMARTPHONES / NEGRO / AC-937177 | D62: 212.424 | E62: 33.98784 | F62: 246.41184 | G62: 0 | H62: Pesos | I62: ACTECK | J62: AC-12291 | K62: ACCESORIOS
B63: AC-937108 | C63: ADAPTADOR ACTECK SHIFT PLUS AV410 / VIDEO USB 3.0 / USB A VGA / MACHO A HEMBRA / NEGRO / AC-937108 | D63: 235.764 | E63: 37.72224 | F63: 273.48624 | G63: 0 | H63: Pesos | I63: ACTECK | J63: AC-12385 | K63: ACCESORIOS
B64: AC-939744 | C64: SOPORTE ACTECK VAULT STOW BN430 / PARA LAPTOP / 11- 17 PULG / HASTA 5 KG / ANCHURA AJUSTABLE / NEGRO / AC-939744 | D64: 374.436 | E64: 59.90976 | F64: 434.34576 | G64: 0 | H64: Pesos | I64: ACTECK | J64: AC-12410 | K64: ACCESORIOS
B65: AC-939768 | C65: ADAPTADOR ACTECK SHIFT PLUS AA415 / USB C - 2X USB C / AUDIO - TIPO C DP / ANDROID - IOS / BLANCO / AC-939768 | D65: 186.816 | E65: 29.89056 | F65: 216.70656 | G65: 0 | H65: Pesos | I65: ACTECK | J65: AC-12411 | K65: ACCESORIOS
B66: AC-937153 | C66: CARGADOR DE ESCRITORIO ACTECK ENERGON S-MATE CI720 / INALAMBRICO / IPHONE - SAMSUNG - CARGA QI / 3W - 15W / PARA 3 DISPOSITIVOS / CONEXION USB C / NEGRO / AC-937153 | D66: 227.652 | E66: 36.42432 | F66: 264.07632 | G66: 0 | H66: Pesos | I66: ACTECK | J66: AC-12430 | K66: ACCESORIOS
B67: AC-939706 | C67: SOPORTE ACTECK PARA MICROFONO ENFORCE ZONE MICRO BM400 / INCLINACION Y GIRO AJUSTABLE / 1 KG / LED RGB / ALCANCE 357 MM / FIJACION C-CLAMP / ADVANCED SERIES / NEGRO / AC-939706 | D67: 692.58 | E67: 110.8128 | F67: 803.3928 | G67: 0 | H67: Pesos | I67: ACTECK | J67: AC-12434 | K67: ACCESORIOS
B68: AC-939737 | C68: BASE ACTECK PARA BOCINAS VAULT ACOUSTIC BB400 / MEJORA LA ACUSTICA / INCLINACION 15* / AISLA LA VIBRACION / ADVANCED SERIES / NEGRO / AC-939737 | D68: 137.868 | E68: 22.05888 | F68: 159.92688 | G68: 0 | H68: Pesos | I68: ACTECK | J68: AC-12435 | K68: ACCESORIOS
B69: AC-939751 | C69: BANDEJA ACTECK DE TECLADO Y MOUSE VAULT BOW KEY BT444 / PARA DEBAJO DEL ESCRITORIO / HASTA 5 KG / INCLINACION 15* / FIJACION C-CLAMP ADVANCED SERIES / NEGRO / AC-939751 | D69: 774.156 | E69: 123.86496 | F69: 898.02096 | G69: 0 | H69: Pesos | I69: ACTECK | J69: AC-12436 | K69: ACCESORIOS
B70: AC-939690 | C70: SOPORTE ACTECK ENFORCE TRAY BL404 / BASE PARA LAPTOP / 10 - 15.6 PUL / VESA - BRAZOS AJUSTABLES / RANURAS DE VENTILACION / ANTIDERRAPANTE / MAX 4.5 KG / NEGRO / AC-939690 | D70: 284.7 | E70: 45.552 | F70: 330.252 | G70: 0 | H70: Pesos | I70: ACTECK | J70: AC-12437 | K70: ACCESORIOS
B71: AC-939775 | C71: RECEPTOR ACTECK SHIFT PLUS AB424 / BLUETOOTH / TIPO C / SWITCH TX-RX / ADVANCED SERIES / NEGRO / AC-939775 | D71: 235.764 | E71: 37.72224 | F71: 273.48624 | G71: 0 | H71: Pesos | I71: ACTECK | J71: AC-12492 | K71: ACCESORIOS
B72: AC-941044 | C72: MOUSE PAD XL ACTECK FLOW WORLD MT494W / TELA + GOMA / DISE?O MUNDO / ALTA RESISTENCIA / ANTIDESTIZANTE / GRIS /AC-941044 | D72: 178.656 | E72: 28.58496 | F72: 207.24096 | G72: 0 | H72: Pesos | I72: ACTECK | J72: AC-12714 | K72: ACCESORIOS
B73: AC-941037 | C73: MOUSE PAD XL ACTECK FLOW WORLD MT494W / DISE?O MUNDO / TELA + GOMA / ALTA RESISTENCIA / ANTIDESTIZANTE / NEGRO /AC-941037 | D73: 178.656 | E73: 28.58496 | F73: 207.24096 | G73: 0 | H73: Pesos | I73: ACTECK | J73: AC-12719 | K73: ACCESORIOS
B74: AC-941082 | C74: MOUSE PAD XL ACTECK FLOW WORLD MT494H / TELA + GOMA / DISE?O HERRAMIENTAS / ALTA RESISTENCIA / ANTIDESTIZANTE / BLANCO / AC-941082 | D74: 178.656 | E74: 28.58496 | F74: 207.24096 | G74: 0 | H74: Pesos | I74: ACTECK | J74: AC-12720 | K74: ACCESORIOS
B75: AC-941075 | C75: MOUSE PAD XL ACTECK FLOW TOOLS MT494H / TELA + GOMA / DISE?O HERRAMIENTAS / ALTA RESISTENCIA / ANTIDESTIZANTE / NEGRO / AC-941075 | D75: 178.656 | E75: 28.58496 | F75: 207.24096 | G75: 0 | H75: Pesos | I75: ACTECK | J75: AC-12726 | K75: ACCESORIOS
B76: AC-940764 | C76: BASE ENFRIADORA FROOST EPIC BE670 / ALTURA AJUSTABLE 5 NIVELES / LAPTOP DE 15.6 PULG / 5 VENTILADORES / 10 MODOS DE ILUMINACION / CONTROL DE VELOCIDAD / ALUMINIO / AC-940764 | D76: 652.212 | E76: 104.35392 | F76: 756.56592 | G76: 0 | H76: Pesos | I76: ACTECK | J76: AC-12801 | K76: ACCESORIOS
B77: AC-940771 | C77: BASE ENFRIADORA ACTECK FROOST RAW BE630 / 15.6 PULG / 6 VENTILADORES / 2X USB 2.0 / AJUSTABLE 8 NIVELES / ILUMINACION 10 MODOS / POTENCIA ABSOLUTA / ALUMINIO / AC-940771 | D77: 325.5 | E77: 52.08 | F77: 377.58 | G77: 0 | H77: Pesos | I77: ACTECK | J77: AC-12850 | K77: ACCESORIOS
B78: AC-940788 | C78: BASE ENFRIADORA ACTECK FROOST EPIC BE640 / 15.6 PULG / 6 VENTILADORES / 2X USB 2.0 / AJUSTABLE 7 NIVELES / ILUMINACION 7 MODOS / SILENCIO ABSOLUTO / ALUMINIO / AC-940788 | D78: 488.64 | E78: 78.1824 | F78: 566.8224 | G78: 0 | H78: Pesos | I78: ACTECK | J78: AC-12851 | K78: ACCESORIOS
B79: AC-940986 | C79: MOUSEPAD ACTECK VIBE LEATHER TP676LC / ALFOMBRILLA MOUSE PAD / CUERO SINTETICO (PU), CORCHO / 80 X 35 CM / DOBLE CARA / COLOR CARBONO - CORCHO / AC-940986 | D79: 154.176 | E79: 24.66816 | F79: 178.84416 | G79: 0 | H79: Pesos | I79: ACTECK | J79: AC-13435 | K79: ACCESORIOS
B80: AC-940993 | C80: MOUSEPAD ACTECK VIBE LEATHER TP676LC / ALFOMBRILLA MOUSE PAD / CUERO SINTETICO PU, CORCHO / 80 X 35 CM / DOBLE CARA / COLOR CAMEL - CORCHO / AC-940993 | D80: 154.176 | E80: 24.66816 | F80: 178.84416 | G80: 0 | H80: Pesos | I80: ACTECK | J80: AC-13436 | K80: ACCESORIOS
B81: AC-941006 | C81: MOUSEPAD ACTECK VIBE LEATHER TP676LC / ALFOMBRILLA MOUSE PAD / CUERO SINTETICO (PU) / 80 X 35 CM / DOBLE CARA / AZUL - GRIS / AC-941006 | D81: 154.176 | E81: 24.66816 | F81: 178.84416 | G81: 0 | H81: Pesos | I81: ACTECK | J81: AC-13437 | K81: ACCESORIOS
B82: AC-941013 | C82: MOUSEPAD ACTECK VIBE LEATHER TP676LC / ALFOMBRILLA MOUSE PAD / CUERO SINTETICO (PU) / 80 X 35 CM / DOBLE CARA / ROSA - LILA / AC-941013 | D82: 154.176 | E82: 24.66816 | F82: 178.84416 | G82: 0 | H82: Pesos | I82: ACTECK | J82: AC-13438 | K82: ACCESORIOS
B83: AC-941020 | C83: MOUSEPAD ACTECK VIBE LEATHER TP676LC / ALFOMBRILLA MOUSE PAD / CUERO SINTETICO (PU) / 80 X 35 CM / DOBLE CARA / AZUL - VERDE / AC-941020 | D83: 154.176 | E83: =D83*16% -> 24.66816 | F83: =D83+E83 -> 178.84416 | G83: =F83*A83 -> 0 | H83: Pesos | I83: ACTECK | J83: AC-13439 | K83: ACCESORIOS
B84: AC-941051 | C84: MOUSEPAD ACTECK VIBE FLOW TERRAIN MT494T / ALFOMBRILLA MOUSE PAD / TELA + GOMA / 80 X 35 CM / ALTA RESISTENCIA / FACIL DE LIMPIAR / DISE?O CARTOGRAFICO NEGRO / AC-941051 | D84: 178.656 | E84: 28.58496 | F84: 207.24096 | G84: 0 | H84: Pesos | I84: ACTECK | J84: AC-13440 | K84: ACCESORIOS
B85: AC-941068 | C85: MOUSEPAD ACTECK VIBE FLOW TERRAIN MT494T / ALFOMBRILLA MOUSE PAD / TELA + GOMA / 80 X 35 CM / ALTA RESISTENCIA / FACIL DE LIMPIAR / DISE?O CARTOGRAFICO BLANCO / AC-941068 | D85: 178.656 | E85: 28.58496 | F85: 207.24096 | G85: 0 | H85: Pesos | I85: ACTECK | J85: AC-13441 | K85: ACCESORIOS
B86: AC-941099 | C86: MOUSEPAD ACTECK VIBE FLOW KALEIDO MT464M / ALFOMBRILLA MOUSE PAD / TELA + GOMA / 80 X 35 CM / ALTA RESISTENCIA / FACIL DE LIMPIAR / DISE?O CALEIDOSCOPIO / AC-941099 | D86: 162.336 | E86: 25.97376 | F86: 188.30976 | G86: 0 | H86: Pesos | I86: ACTECK | J86: AC-13442 | K86: ACCESORIOS
B87: AC-941105 | C87: MOUSEPAD ACTECK VIBE FLOW VITRO MT464T / ALFOMBRILLA MOUSE PAD / TELA + GOMA / 80 X 35 CM / ALTA RESISTENCIA / FACIL DE LIMPIAR / DISE?O MODERNO / AC-941105 | D87: 162.336 | E87: 25.97376 | F87: 188.30976 | G87: 0 | H87: Pesos | I87: ACTECK | J87: AC-13443 | K87: ACCESORIOS
B88: AC-933551 | C88: MOUSEPAD ACTECK CUSHY PRIME MG200 / REPOSAMU?ECAS / BASE ANTIDERRAPANTE / MEMORY FOAM / ERGONOMICO / 44 X 8.2 CM / NEGRO / AC-933551 | D88: 113.388 | E88: 18.14208 | F88: 131.53008 | G88: 0 | H88: Pesos | I88: ACTECK | J88: AC-13444 | K88: ACCESORIOS
B89: AC-944014 | C89: CARGADOR DE PARED ACTECK ENERGON PLUS CP440 / 40 W / CARGA RAPIDA / USB C + USB A / 1 A?O DE GARANTIA / NEGRO / AC-944014 | D89: 197.208 | E89: 31.55328 | F89: 228.76128 | G89: 0 | H89: Pesos | I89: ACTECK | J89: AC-13468 | K89: ACCESORIOS
B90: AC-937030 | C90: HUB ACTECK PORT X7C DH607 / HUB 7 EN 1 USB / ALUMINIO / 7 PUERTOS / USB A / USB 3.0 / 30 CM / 5GB / WINDOWS, MAC OS, LINUX / NEGRO / AC-937030 | D90: 260.232 | E90: 41.63712 | F90: 301.86912 | G90: 0 | H90: Pesos | I90: ACTECK | J90: AC-13506 | K90: ACCESORIOS
B91: AC-937054 | C91: HUB ACTECK PORT X7C DH470 / HUB 7 EN 1 USB CON SWITCH / PUERTOS USB 7 / USB A / USB 3.0 / 30 CM / 5GB / WINDOWS, MAC OS, LINUX / NEGRO / AC-937054 | D91: 243.912 | E91: 39.02592 | F91: 282.93792 | G91: 0 | H91: Pesos | I91: ACTECK | J91: AC-13509 | K91: ACCESORIOS
B92: AC-936767 | C92: HUB ACTECK GATE 6 DH665 / HUB TIPO C 6 EN 1 / USB 3.1 / HDMI / RJ45 / TIPO C PD 100 W / ALUMINIO / NEGRO / AC-936767 | D92: 611.016 | E92: 97.76256 | F92: 708.77856 | G92: 0 | H92: Pesos | I92: ACTECK | J92: AC-13522 | K92: ACCESORIOS
B93: AC-932950 | C93: DOCKING STATION HUB ACTECK PORT X DH690 / USB C / 14 PUERTOS / 5X USB A - 2X USB C - HDMI - VGA - RJ45 - 3.5 MM - SD - MICRO SD / NEGRO / AC-932950 | D93: 1781.484 | E93: 285.03744 | F93: 2066.52144 | G93: 0 | H93: Pesos | I93: ACTECK | J93: AC-9770 | K93: ACCESORIOS
B94: AP9335TH | C94: SENSOR DE TEMPERATURA Y HUMEDAD APC C/CABLE CAT5/6 ESTANDAR | D94: 223.788 | E94: 35.80608 | F94: 259.59408 | G94: 0 | H94: Dolares | I94: APC | J94: AC-1395 | K94: ACCESORIOS
B95: ACAC75009 | C95: RECEPTOR SUMERGIDO 17 LIBRAS, R410A, DIAMETRO 6, LONG. 18 | D95: 2224.884 | E95: 355.98144 | F95: 2580.86544 | G95: 0 | H95: Dolares | I95: APC | J95: AC-2869 | K95: ACCESORIOS
B96: SRTRK2 | C96: RIELES APC PARA MONTAJE EN GABINETE DE 19 PARA SRT 5/6/8/10 KVAS | D96: 223.32 | E96: 35.7312 | F96: 259.0512 | G96: 0 | H96: Dolares | I96: APC | J96: AC-4369 | K96: ACCESORIOS
B97: SBP40KFC1M1 | C97: BYPASS DE MANTENIMIENTO APC 40KW 208V 3PH | D97: 3223.788 | E97: 515.80608 | F97: 3739.59408 | G97: 0 | H97: Dolares | I97: APC | J97: AC-4693 | K97: ACCESORIOS
B98: SRTRK4 | C98: KIT DE RIELES DE SMART-UPS RT DE APC DE 19 PARA SRT 22/3 KVA | D98: 152.976 | E98: 24.47616 | F98: 177.45216 | G98: 0 | H98: Dolares | I98: APC | J98: AC-5088 | K98: ACCESORIOS
B99: MUWA3AM/A | C99: APPLE PENCIL USB-C | D99: 2015.184 | E99: 322.42944 | F99: 2337.61344 | G99: 0 | H99: Pesos | I99: APPLE | J99: AC-12570 | K99: ACCESORIOS
B100: MX2D3AM/A | C100: APPLE PENCIL PRO | D100: 3359.112 | E100: 537.45792 | F100: 3896.56992 | G100: 0 | H100: Pesos | I100: APPLE | J100: AC-12571 | K100: ACCESORIOS
B101: MWVV3AM/A | C101: ADAPTADOR DE CORRIENTE USB-C DE 20 W | D101: 539.892 | E101: 86.38272 | F101: 626.27472 | G101: 0 | H101: Pesos | I101: APPLE | J101: AC-12572 | K101: ACCESORIOS
B102: BR-934534 | C102: SILLA GAMER BALAM RUSH POWER RUSH V2 BLACK EDITION / INCLINACION 135 GRADOS / TELA Y PIEL SINTETICA / MAX 120 KG / COJIN LUMBAR / PISTON CLASE 3 / REPOSABRAZOS FIJO / NEGRO / BR-934534 | D102: 1645.716 | E102: 263.31456 | F102: 1909.03056 | G102: 0 | H102: Pesos | I102: BALAM RUSH | J102: AC-10928 | K102: ACCESORIOS
B103: BR-931564 | C103: TIRA LED GAMER BALAM RUSH GAMING RBG STRIP SLX10 / 328 MODOS RGB / COBERTURA SELLADA / CONTROL REMOTO / 80 CM / 20 COLORES / 8 RANGOS DE VELOCIDAD / ADHESIVO / IP65 / CONEXION USB / BR-931564 | D103: 82.284 | E103: 13.16544 | F103: 95.44944 | G103: 0 | H103: Pesos | I103: BALAM RUSH | J103: AC-11171 | K103: ACCESORIOS
B104: BR-937467 | C104: MOUSEPAD BALAM RUSH GLIDER CORDURA PG727 / ANTIDESLIZANTE / IMPERMEABLE / MATERIALES DE USO MILITAR / 800 X 300 X 3 MM / NEGRO / BR-937467 | D104: 260.232 | E104: 41.63712 | F104: 301.86912 | G104: 0 | H104: Pesos | I104: BALAM RUSH | J104: AC-11854 | K104: ACCESORIOS
B105: BR-935920 | C105: SILLA GAMER BALAM RUSH LIGHTNING FROST / ILUMINACION LED RGB / COJINES AJUSTABLES / PISTON CLASE 4 / MAX 120 KG / INCLINACION 90? A 180? / CONTROL 356 MODOS / BLANCO / BR-935920 | D105: 3827.784 | E105: 612.44544 | F105: 4440.22944 | G105: 0 | H105: Pesos | I105: BALAM RUSH | J105: AC-11891 | K105: ACCESORIOS
B106: BR-938228 | C106: SILLA GAMER BALAM RUSH THUNDER NEAT / PISTON CLASE 3 / INCLINACION 180? / MAX 120 KG / MECANISMO DE MARIPOSA / REPOSABRAZOS 2D / GRIS / BR-938228 | D106: 3479.724 | E106: 556.75584 | F106: 4036.47984 | G106: 0 | H106: Pesos | I106: BALAM RUSH | J106: AC-11892 | K106: ACCESORIOS
B107: BR-937856 | C107: SILLA GAMER BALAM RUSH THUNDER NEAT / PISTON CLASE 3 / INCLINACION 180? / MAX 120 KG / MECANISMO DE MARIPOSA / REPOSABRAZOS 2D / GARANTIA 1 A?O / NEGRO / BR-937856 | D107: 3479.724 | E107: 556.75584 | F107: 4036.47984 | G107: 0 | H107: Pesos | I107: BALAM RUSH | J107: AC-11895 | K107: ACCESORIOS
B108: BR-940597 | C108: SILLA GAMER BALAM RUSH THUNDER MAX V7 / TELA NYLON TRANSPIRABLE / REPOSABRAZOS,REPOSA PIES,COJIN LUMBAR / 140 / 150KG / NEGRO / BR-940597 | D108: 3565.716 | E108: 570.51456 | F108: 4136.23056 | G108: 0 | H108: Pesos | I108: BALAM RUSH | J108: AC-12523 | K108: ACCESORIOS
B109: BR-940559 | C109: SILLA GAMER BALAM RUSH BOLT NOU G / HASTA 130 KG / INCLINACION 140 GRADOS / PISTON CLASE 3 / REPOSAPIES ACOJINADO / COJIN CERVICAL / CABECERA ADAPTABLE / GRIS / BR-940559 | D109: 2605.716 | E109: 416.91456 | F109: 3022.63056 | G109: 0 | H109: Pesos | I109: BALAM RUSH | J109: AC-12558 | K109: ACCESORIOS
B110: BR-940627 | C110: SILLA GAMER BALAM RUSH FORCE SUPER Z5 / HASTA 150 KG / INCLINACION 180 GRADOS / REPOSABRAZOS 2D / SOPORTE LUBAR Y REPOSACABEZAS / PISTON CLASE 4 / NEGRO / BR-940627 | D110: 2715.432 | E110: 434.46912 | F110: 3149.90112 | G110: 0 | H110: Pesos | I110: BALAM RUSH | J110: AC-12560 | K110: ACCESORIOS
B111: BR-940757 | C111: SILLA GAMER BALAM RUSH FORCE PLUS Z1 / RECLINABLE 135 GRADOS / PISTON CLASE 2 / MAX 150 KG / SOPORTE LUMBAR ERGONOMICO CON TERMOGEL / REPOSACABEZAS Y REPOSAPIES ACOLCHADO / GRIS / BR-940757 | D111: 2262.852 | E111: 362.05632 | F111: 2624.90832 | G111: 0 | H111: Pesos | I111: BALAM RUSH | J111: AC-12684 | K111: ACCESORIOS
B112: BR-940498 | C112: SILLA GAMER BALAM RUSH ULTIMATE SUPERB / REPOSACABEZA MAGNETICO MEMORY FOAM / COJIN LUMBAR / REPOSABRAZO 4D / MAX 150 KG / INCLINACION 135? / PISTON CLASE 4 / TAMA?O XL / NEGRO - ROJO / BR-940498 | D112: 6090.156 | E112: 974.42496 | F112: 7064.58096 | G112: 0 | H112: Pesos | I112: BALAM RUSH | J112: AC-12774 | K112: ACCESORIOS
B113: BR-941112 | C113: BASE ENFRIADORA GAMER BALAM RUSH EOLOX CRYOTECH EF780 / LAPTOP 17 PULG / VELOCIDAD AJUSTABLE / 7 NIVELES DE ALTURA / 10 MODOS DE ILUMINACION / SOPORTE P- CELULAR / PLACA METALICA / NEGRO / BR-941112 | D113: 896.532 | E113: 143.44512 | F113: 1039.97712 | G113: 0 | H113: Pesos | I113: BALAM RUSH | J113: AC-12827 | K113: ACCESORIOS
B114: BR-941129 | C114: BASE ENFRIADORA GAMER BALAM RUSH EOLOX FROST PRO EF760 / LAPTOP 17 PULG / 8 VENTILADORES / 6 NIVELES / ILUMINACION RGB / VELOCIDAD AJUSTABLE / SOPORTE P CELULAR / PUERTO USB / NEGRO / BR-941129 | D114: 570.216 | E114: 91.23456 | F114: 661.45056 | G114: 0 | H114: Pesos | I114: BALAM RUSH | J114: AC-12829 | K114: ACCESORIOS
B115: BR-941136 | C115: BASE ENFRIADORA GAMER BALAM RUSH EOLOX FROST EF740 / LAPTOP 17 PULG / 15 VENTILADORES / AJUSTE DE ALTURA Y VELOCIDAD / ILUMINACION RGB / SOPORTE P CELULAR / PUERTO USB A - USB C / NEGRO / BR-941136 | D115: 488.64 | E115: 78.1824 | F115: 566.8224 | G115: 0 | H115: Pesos | I115: BALAM RUSH | J115: AC-12830 | K115: ACCESORIOS
B116: BR-942324 | C116: TORRE DE ILUMINACION GAMER BALAM RUSH SPLENDOR GLOW IT5000 / ILUMINACION PERSONALIZABLE 360 / APP - CONTROL REMOTO - BOTONES / 72 LEDS POR BARRA / RGB INMERSIVO / NEGRO / BR-942324 | D116: 397.716 | E116: 63.63456 | F116: 461.35056 | G116: 0 | H116: Pesos | I116: BALAM RUSH | J116: AC-12841 | K116: ACCESORIOS
B117: BR-940566 | C117: SILLA GAMER BALAM RUSH LIGHTNING RUSH V2 / MAX 150 KG / SOPORTE LUMBAR Y CERVICAL / PISTON CLASE 4 / INLCINACION 135? / REPOSABRAZOS 3D / ILUMINACION LED / TACTOPIEL / NEGRO / BR-940566 | D117: 3977.148 | E117: 636.34368 | F117: 4613.49168 | G117: 0 | H117: Pesos | I117: BALAM RUSH | J117: AC-12843 | K117: ACCESORIOS
B118: BR-940573 | C118: SILLA GAMER BALAM RUSH LIGHTNING RUSH V2 / MAX 150 KG / SOPORTE LUMBAR Y CERVICAL / PISTON CLASE 4 / INLCINACION 135? / REPOSABRAZOS 3D / ILUMINACION LED / TACTOPIEL / BLANCO / BR-940573 | D118: 3977.148 | E118: 636.34368 | F118: 4613.49168 | G118: 0 | H118: Pesos | I118: BALAM RUSH | J118: AC-12844 | K118: ACCESORIOS
B119: BR-940580 | C119: SILLA GAMER BALAM RUSH THUNDER EUPHORIA / MAX 150 KG / INCLINACION 160? / PISTON CLASE 4 / REPOSABRAZOS 2D / COJIN CERVICAL / MECANISMO DE MARIPOSA / NEGRO / BR-940580 | D119: 3908.568 | E119: 625.37088 | F119: 4533.93888 | G119: 0 | H119: Pesos | I119: BALAM RUSH | J119: AC-12845 | K119: ACCESORIOS
B120: BR-943635 | C120: BASE CARGADORA BALAM RUSH CHARGECORE QUAD BC400 / 4 BATERIAS XBOX ONE Y SERIES / LITIO / 1400 MAH / 10 A 15 HRS TIEMPO DE USO/ NEGRO / BR-943635 | D120: 370.284 | E120: 59.24544 | F120: 429.52944 | G120: 0 | H120: Pesos | I120: BALAM RUSH | J120: AC-13394 | K120: ACCESORIOS
B121: BR-944502 | C121: SILLA GAMER BALAM RUSH POWER RUSH V2 / ERGONOMICA / INCLINACION 135 GRADOS / MECANISMO MARIPOSA / MAX 120 KG / PISTON CLASE 3 / REPOSABRAZOZ FIJO / AZUL-GUINDA / BR-944502 | D121: 1645.716 | E121: 263.31456 | F121: 1909.03056 | G121: 0 | H121: Pesos | I121: BALAM RUSH | J121: AC-13479 | K121: ACCESORIOS
B122: BR-944496 | C122: SILLA GAMER BALAM RUSH POWER RUSH V2 / ERGONOMICA / INCLINACION 135 GRADOS / MECANISMO MARIPOSA / MAX 120 KG / PISTON CLASE 3 / REPOSABRAZOZ FIJO / AZUL-CAMEL / BR-944496 | D122: 1645.716 | E122: 263.31456 | F122: 1909.03056 | G122: 0 | H122: Pesos | I122: BALAM RUSH | J122: AC-13480 | K122: ACCESORIOS
B123: BR-944489 | C123: SILLA GAMER BALAM RUSH POWER RUSH V2 / ERGONOMICA / INCLINACION 135 GRADOS / MECANISMO MARIPOSA / MAX 120 KG / PISTON CLASE 3 / REPOSABRAZOZ FIJO / ROSA-NEGRO / BR-944489 | D123: 1645.716 | E123: 263.31456 | F123: 1909.03056 | G123: 0 | H123: Pesos | I123: BALAM RUSH | J123: AC-13481 | K123: ACCESORIOS
B124: BR-931502 | C124: BASE GAMER BALAM RUSH ATLAS HR760 / SOPORTE PARA DIADEMA / ILUMINACION RGB / 2X USB A / NEGRO / BR-931502 | D124: 246.852 | E124: 39.49632 | F124: 286.34832 | G124: 0 | H124: Pesos | I124: BALAM RUSH | J124: AC-9386 | K124: ACCESORIOS
B125: BR-931434 | C125: MOUSEPAD XL RAGNAROK BALAM RUSH / BR-931434 / ANTIDERRAPANTE / RGB / USB / | D125: 335.028 | E125: 53.60448 | F125: 388.63248 | G125: 0 | H125: Pesos | I125: BALAM RUSH | J125: AC-9393 | K125: ACCESORIOS
B126: BR-932875 | C126: SILLA GAMER BALAM RUSH THUNDER TOUR DARK-LIGHT EDITION XL PLUS / TELA / MEC MARIPOSA / CLASE 4 / INCLINACION DE 90 A 180 GRADOS/ COLOR GRIS-AMARILLO/ BR-932875 | D126: 4546.284 | E126: 727.40544 | F126: 5273.68944 | G126: 0 | H126: Pesos | I126: BALAM RUSH | J126: AC-9786 | K126: ACCESORIOS
B127: BR-932844 | C127: SILLA GAMER BALAM RUSH THUNDER RUSH V2 GRAY EDITION / TELA / REPOSABRAZOS 4D / PISTON CLASE 4 / INCLINACION DE 90 A 180 GRADOS / MAXIMO 150 KG / NEGRO - GRIS / BR-932844 | D127: 3291.432 | E127: 526.62912 | F127: 3818.06112 | G127: 0 | H127: Pesos | I127: BALAM RUSH | J127: AC-9794 | K127: ACCESORIOS
B128: BR-937429 | C128: BASE ENFRIADORA BALAM RUSH EOLOX FREEZ EF707 / 17 PULG / 6 VENTILADORES / 2X USB / PANTALLA LCD / AJUSTABLE 8 NIVELES / ILUMINACION RGB / ANTIDERRAPANTE / NEGRO / BR-937429 | D128: 456.012 | E128: 72.96192 | F128: 528.97392 | G128: 0 | H128: Pesos | I128: BALAM RUSH | J128: CF-431 | K128: ACCESORIOS
B129: P10111606213-00 | C129: CARGADOR DE PARED BASEUS, CARGA RAPIDA TIPO C 30W, COLOR BLANCO | D129: 278.388 | E129: 44.54208 | F129: 322.93008 | G129: 0 | H129: Pesos | I129: BASEUS | J129: AC-12653 | K129: ACCESORIOS
B130: P10111606113-00 | C130: CARGADOR DE PARED BASEUS, CARGA RAPIDA TIPO C 30W, COLOR NEGRO | D130: 278.388 | E130: 44.54208 | F130: 322.93008 | G130: 0 | H130: Pesos | I130: BASEUS | J130: AC-12654 | K130: ACCESORIOS
B131: P1011160B213-00 | C131: CARGADOR DE PARED 2 PUERTOS BASEUS, CARGA RPIDA, 1 TIPO C1 USB-A 30W, COLOR BLANCO | D131: 371.484 | E131: 59.43744 | F131: 430.92144 | G131: 0 | H131: Pesos | I131: BASEUS | J131: AC-12657 | K131: ACCESORIOS
B132: P1011160B113-00 | C132: CARGADOR DE PARED 2 PUERTOS BASEUS, CARGA RPIDA, 1 TIPO C1 USB-A 30W, COLOR NEGRO | D132: 371.484 | E132: 59.43744 | F132: 430.92144 | G132: 0 | H132: Pesos | I132: BASEUS | J132: AC-12658 | K132: ACCESORIOS
B133: WKYY030313 | C133: HUB TIPO C DE 8 PUERTOS BASEUS, 1- HDMI 4K60HZ,1-USB 3.0,2- USB 2.0, 1- PD,1- RJ45,1-SD/TF | D133: 837 | E133: 133.92 | F133: 970.92 | G133: 0 | H133: Pesos | I133: BASEUS | J133: AC-12662 | K133: ACCESORIOS
B134: B0005280B811-08 | C134: HUB TIPO C 5V DE 4 PUERTOS BASEUS, 4-USB 3.0 | D134: 418.032 | E134: 66.88512 | F134: 484.91712 | G134: 0 | H134: Pesos | I134: BASEUS | J134: AC-12663 | K134: ACCESORIOS
B135: C40351700111-00 | C135: SOPORTE UNIVERSAL PARA AUTOMVIL BASEUS, CON SUJECIN AUTOMTICA, CARGA DE HASTA 6 KG, COLOR NEGRO | D135: 259.764 | E135: 41.56224 | F135: 301.32624 | G135: 0 | H135: Pesos | I135: BASEUS | J135: AC-12664 | K135: ACCESORIOS
B136: SUWX010001 | C136: SOPORTE UNIVERSAL PARA AUTOMVIL BASEUS, GRAVITY AIR VENT, COLOR NEGRO | D136: 185.28 | E136: 29.6448 | F136: 214.9248 | G136: 0 | H136: Pesos | I136: BASEUS | J136: AC-12665 | K136: ACCESORIOS
B137: PSLA030101 | C137: CARGADOR DE ESCRITORIO 6 PUERTOS BASEUS, POWERSTRIP 3 AC,2 TIPO C,1 USB-A 30W, CON CABLE DE ALIMENTACIN DE 1.5 M, COLOR NEGRO | D137: 743.904 | E137: 119.02464 | F137: 862.92864 | G137: 0 | H137: Pesos | I137: BASEUS | J137: AC-12668 | K137: ACCESORIOS
B138: ACWDJ-01 | C138: ORGANIZADOR DE CABLES BASEUS 3CLIPS MAGNETICOS, COLOR NEGRO | D138: 120.096 | E138: 19.21536 | F138: 139.31136 | G138: 0 | H138: Pesos | I138: BASEUS | J138: AC-12817 | K138: ACCESORIOS
B139: P10111609113-00 | C139: CARGADOR DE PARED 2 PUERTOS BASEUS, CARGA RPIDA, 1 TIPO C1 USB-A 20W, COLOR NEGRO | D139: 241.14 | E139: 38.5824 | F139: 279.7224 | G139: 0 | H139: Pesos | I139: BASEUS | J139: AC-12820 | K139: ACCESORIOS
B140: P10111609213-00 | C140: CARGADOR DE PARED 2 PUERTOS BASEUS, CARGA RPIDA, 1 TIPO C1 USB-A 20W, COLOR BLANCO | D140: 241.14 | E140: 38.5824 | F140: 279.7224 | G140: 0 | H140: Pesos | I140: BASEUS | J140: AC-12821 | K140: ACCESORIOS
B141: B00052803811-00 | C141: HUB TIPO C FLITE SERIES HUB DE 7 PUERTOS BASEUS HDMI4K60HZ1USB3,03PD1SD/TF1COLOR GRIS | D141: 743.904 | E141: 119.02464 | F141: 862.92864 | G141: 0 | H141: Pesos | I141: BASEUS | J141: AC-12823 | K141: ACCESORIOS
B142: 5A.JJR26.11E | C142: POINTWRITE BENQ MODULO PARA CAMARA PW31U PARA PROYECTOR UST M2855UST MH856UST | D142: 11236.872 | E142: 1797.89952 | F142: 13034.77152 | G142: 0 | H142: Pesos | I142: BENQ | J142: AC-10884 | K142: ACCESORIOS
B143: 5A.JH328.004 | C143: ADAPTADOR BENQ DONGLE INALAMBRICO HDMI QCAST MIRROR PARA PROYECTOR | D143: 1940.724 | E143: 310.51584 | F143: 2251.23984 | G143: 0 | H143: Pesos | I143: BENQ | J143: AC-11032 | K143: ACCESORIOS
B144: 9H.K0EBY.E0A | C144: PRESENTADOR INALAMBRICO BENQ INSTASHOW INALAMBRICO WDC15 FULL HD INCLUYE UN HOST Y 2 BOTONES HDMI/USB | D144: 13134.192 | E144: 2101.47072 | F144: 15235.66272 | G144: 0 | H144: Pesos | I144: BENQ | J144: AC-13364 | K144: ACCESORIOS
B145: 9H.JF878.N4A | C145: PRESENTADOR INALAMBRICO BENQ INSTASHOW INALAMBRICO WDC10 FULL HD INCLUYE UN HOST Y 2 BOTONES HDMI/USB | D145: 13134.192 | E145: 2101.47072 | F145: 15235.66272 | G145: 0 | H145: Pesos | I145: BENQ | J145: AC-5282 | K145: ACCESORIOS
B146: 810533 | C146: RACK BROBOTIX 19 PULGADAS 1.20 MTS 24U CON TORNILLERIA M6 | D146: 98.844 | E146: 15.81504 | F146: 114.65904 | G146: 0 | H146: Dolares | I146: BROBOTIX | J146: AC-10295 | K146: ACCESORIOS
B147: 6000298 | C147: CANDADO BROBOTIX DE SEGURIDAD, NANO DE COMBINACION, 1.80 MTS PARA PORTATILES | D147: 20.136 | E147: =D147*16% -> 3.22176 | F147: =D147+E147 -> 23.35776 | G147: =F147*A147 -> 0 | H147: Dolares | I147: BROBOTIX | J147: AC-10320 | K147: ACCESORIOS
B148: 110910 | C148: CONVERTIDOR BROBOTIX HDMI MACHO A VGA HEMBRA, BLANCO | D148: 9.516 | E148: 1.52256 | F148: 11.03856 | G148: 0 | H148: Dolares | I148: BROBOTIX | J148: AC-10386 | K148: ACCESORIOS
B149: 110964B | C149: CONVERTIDOR BROBOTIX HDMI MACHO A VGA HEMBRA CON AUDIO, BLANCO | D149: 11.964 | E149: 1.91424 | F149: 13.87824 | G149: 0 | H149: Dolares | I149: BROBOTIX | J149: AC-10387 | K149: ACCESORIOS
B150: 150620 | C150: CONVERTIDOR BROBOTIX VGA + AUDIO A HDMI CON USB, NEGRO | D150: 30.504 | E150: 4.88064 | F150: 35.38464 | G150: 0 | H150: Dolares | I150: BROBOTIX | J150: AC-10395 | K150: ACCESORIOS
B151: 569441 | C151: CONVERTIDOR BROBOTIX USB-C A HDMI HEMBRA | D151: 12.084 | E151: 1.93344 | F151: 14.01744 | G151: 0 | H151: Dolares | I151: BROBOTIX | J151: AC-10409 | K151: ACCESORIOS
B152: 651879 | C152: CONVERTIDOR BROBOTIX USB-C MACHO A RJ45 HEMBRA, GIGABIT, BLANCO | D152: 20.136 | E152: 3.22176 | F152: 23.35776 | G152: 0 | H152: Dolares | I152: BROBOTIX | J152: AC-10449 | K152: ACCESORIOS
B153: 830878 | C153: ORGANIZADOR DE CABLES BROBOTIX HORIZONTAL DE 2U, 19 PULGADAS, NEGRO | D153: 25.632 | E153: 4.10112 | F153: 29.73312 | G153: 0 | H153: Dolares | I153: BROBOTIX | J153: AC-10450 | K153: ACCESORIOS
B154: 104540 | C154: ADAPTADOR BROBOTIX DISPLAYPORT MACHO A HDMI HEMBRA, BLANCO | D154: 10.248 | E154: 1.63968 | F154: 11.88768 | G154: 0 | H154: Dolares | I154: BROBOTIX | J154: AC-10478 | K154: ACCESORIOS
B155: 6001639 | C155: CANDADO BROBOTIX DE SEGURIDAD, NANO DE LLAVE, 1.80 MTS PARA PORTATILES | D155: 19.404 | E155: 3.10464 | F155: 22.50864 | G155: 0 | H155: Dolares | I155: BROBOTIX | J155: AC-10513 | K155: ACCESORIOS
B156: 6001189 | C156: DOCKING STATION BROBOTIX 4 EN 1, USB-C MACHO X1 A USB-A V3.0 X4, CON SWITCH, NEGRO | D156: 15.252 | E156: 2.44032 | F156: 17.69232 | G156: 0 | H156: Dolares | I156: BROBOTIX | J156: AC-10516 | K156: ACCESORIOS
B157: 6006658 | C157: CARGADOR 18W CARGA RAPIDA DUAL USB V3.0, 1 PUERTO TIPO A Y 1 PUERTO TIPO C, NEGRO | D157: 6.996 | E157: 1.11936 | F157: 8.11536 | G157: 0 | H157: Dolares | I157: BROBOTIX | J157: AC-13445 | K157: ACCESORIOS
B158: AIR-MNT-VERT1 | C158: ACCESORIO CISCO VERTICAL POLE/WALL MOUNTING KIT FOR CATALYST APS AIR-MNT-VERT1 | D158: 2270.592 | E158: 363.29472 | F158: 2633.88672 | G158: 0 | H158: Pesos | I158: CISCO | J158: AC-11843 | K158: ACCESORIOS
B159: BCA20N250A | C159: GABINETE DE BATERIAS CYBERPOWER (BCA20N250A) 240VDC TRIFASICO CON CAPACIDAD DE HASTA 40 BATERIAS 20AH 12VDC. 1 A?O DE GARANTIA. | D159: 23605.14 | E159: 3776.8224 | F159: 27381.9624 | G159: 0 | H159: Pesos | I159: CYBERPOWER | J159: AC-10606 | K159: ACCESORIOS
B160: CRA50004 | C160: CHAROLA DESLIZABLE CYBERPOWER (CRA50004) PARA TECLADO DE 19 Y 1U, PROFUNDIDAD DE 500MM (19.6), CAPACIDAD DE 20KG, 5 A?OS DE GARANTIA. | D160: 4946.256 | E160: 791.40096 | F160: 5737.65696 | G160: 0 | H160: Pesos | I160: CYBERPOWER | J160: AC-11072 | K160: ACCESORIOS
B161: CR42U11001 | C161: GABINETE CYBERPOWER (CR42U11001) DE 42U, PUERTAS METALICAS, CON RUEDAS, CAPACIDAD DE CARGA DE 1365KG, GARANTIA DE 5 A?OS. | D161: 35594.316 | E161: 5695.09056 | F161: 41289.40656 | G161: 0 | H161: Pesos | I161: CYBERPOWER | J161: AC-9810 | K161: ACCESORIOS
B162: CR6U61001 | C162: GABINETE DE MONTAJE EN PARED CYBERPOWER (CR6U61001) 6U, NEGRO, CAPACIDAD DE CARGA DE 60 KG. GARANTIA DE 5 A?OS. | D162: 5106.048 | E162: 816.96768 | F162: 5923.01568 | G162: 0 | H162: Pesos | I162: CYBERPOWER | J162: AC-9949 | K162: ACCESORIOS
B163: DH-PFM800B-4K | C163: PAR DE TRANSCEPTORES DAHUA PASIVOS 4K/ RESOLUCIN DE HASTA 8 MEGAPXELES/ DISTANCIA DE HASTA 200 METROS EN 4K/ SOPORTA 720P/1080P/4MP/5MP/4K/ Y FORMATOS HDCVI/TVI/AHD/CVBS | D163: 2.592 | E163: 0.41472 | F163: 3.00672 | G163: 0 | H163: Dolares | I163: DAHUA | J163: AC-10720 | K163: ACCESORIOS
B164: DH-PFM800-E | C164: PAR DE TRANSCEPTORES PASIVOS/ DAHUA HDCVI/ 1080P A 250 MTS/ 720P A 400 MTS/ SOPORTA AHD/ TVI/ CBVS/ | D164: 2.292 | E164: 0.36672 | F164: 2.65872 | G164: 0 | H164: Dolares | I164: DAHUA | J164: AC-10994 | K164: ACCESORIOS
B165: DH-PFA138 | C165: ACCESORIOS/DAHUA/DH-PFA138/CAJA DE CONEXIONES COMPATIBLE CON SERIES HDBW1/ INCLUIDOS HDBW3231/3802E-Z/ HDBW5231/5431/5631/5831E-Z5E, HDB5331E, HDBW5331E, HDBW8242E-Z4FD, HDBW8242E-Z4FR/5231/5431/5631 | D165: 16.884 | E165: 2.70144 | F165: 19.58544 | G165: 0 | H165: Dolares | I165: DAHUA | J165: AC-11178 | K165: ACCESORIOS
B166: DH-PFA137 | C166: ACCESORIOS/DAHUA/DH-PFA137 CAJA DE CONEXIONES COMPATIBLE CON SERIES / T3A / HDW8 / HDW7 / H DBW4 / SD22 / D3A / H DBW6 | D166: 9.852 | E166: 1.57632 | F166: 11.42832 | G166: 0 | H166: Dolares | I166: DAHUA | J166: AC-11179 | K166: ACCESORIOS
B167: DH-PFB203W | C167: BRAZO/ DAHUA/ PFB203W/ BRAZO DE PARED PARA CAMARAS DOMO DAHUA / HDW2120 / 2220 / 2221RZ / HDW1000 / 1100R / HDW1120 / 1220 / 1320S / HDW2120 | D167: 11.412 | E167: 1.82592 | F167: 13.23792 | G167: 0 | H167: Dolares | I167: DAHUA | J167: AC-11465 | K167: ACCESORIOS
B168: DH-PFT1200 | C168: INYECTOR POE/ DAHUA/ PFT1200 INYECTOR HI-POE MIDSPAN GIGABIT/ SOPORTA POE/POE+/ SOPORTA HI-POE 60 WATTS PARA PTZ/ INDICADORES LED DE STATUS | D168: 35.448 | E168: 5.67168 | F168: 41.11968 | G168: 0 | H168: Dolares | I168: DAHUA | J168: AC-11473 | K168: ACCESORIOS
B169: DH-PFM907-E | C169: PROBADOR DE VIDEO IP Y HDCVI/ DAHUA/ PFM907/SOPORTA COMPRESION H.265 Y H.264/ CTRL PTZ/AUDIO/ MULTIMETRO INTEGRADO/ PROBADOR DE RED Y SENAL WIFI/ PROTOCOLO ONVIF/ SALIDA DE 12V 2 AMP/LINUX | D169: 901.872 | E169: 144.29952 | F169: 1046.17152 | G169: 0 | H169: Dolares | I169: DAHUA | J169: AC-11994 | K169: ACCESORIOS
B170: PFM802 | C170: TRANSCEPTOR/ DAHUA PFM802 - PAR DE TRANSCEPTORES PASIVOS DE HASTA 4 MEGAPIXELES PARA VIDEO Y ENERGIA/ DISTANCIA DE HASTA 150 METROS/ VOLTAJE DE ENTRADA DE 12-15V DC/ CABLEADO POR RJ-45 | D170: 9.564 | E170: 1.53024 | F170: 11.09424 | G170: 0 | H170: Dolares | I170: DAHUA | J170: AC-12293 | K170: ACCESORIOS
B171: DH-HAP100 | C171: MICROFONO/ DAHUA/ HAP100 MICROFONO AMPLIFICADO OMNIDIRECCIONAL/ ALCANCE HASTA 40M2/ SNR 70DB/ RANGO DINAMICO 104 DB/ PRESION DE SONIDO MAXIMO 120DB | D171: 10.2 | E171: 1.632 | F171: 11.832 | G171: 0 | H171: Dolares | I171: DAHUA | J171: AC-12294 | K171: ACCESORIOS
B172: DH-PFB300C | C172: MONTAJE DE TECHO /DAHUA /PFB300C MONTAJE DE TECHO PARA CAMARAS PTZ DAHUA SD65 / SD69 / SD6A Y COMPATIBLES CON SAXXON | D172: 28.344 | E172: 4.53504 | F172: 32.87904 | G172: 0 | H172: Dolares | I172: DAHUA | J172: AC-12386 | K172: ACCESORIOS
B173: EUHA+12120-070D | C173: FUENTE DE PODER/ DAHUA/ EUHA12120-070D PFM322/ REGULADA DE 12 VCC 2.8 AMPERES/ SALIDA TIPO PULPO DE 4 CANALES CON CONECTOR MACHO/ 0.7 AMPER POR CANAL/ PROTECCION DE TEMPERATURA/ COLOR NEGRO | D173: 15.672 | E173: 2.50752 | F173: 18.17952 | G173: 0 | H173: Dolares | I173: DAHUA | J173: AC-12387 | K173: ACCESORIOS
B174: DHI-ARA24-W2 | C174: CONTROL REMOTO/ DAHUA/ DHI-ARA24-W2/ TIPO LLAVERO DE 4 BOTONES / ARMADO - DESARMADO - EN CASA - EMERGENCIA / FUNCION DE SALTO DE FRECUENCIA / LED INDICADOR DE ESTADO COLOR ROJO O VERDE | D174: 15.36 | E174: 2.4576 | F174: 17.8176 | G174: 0 | H174: Dolares | I174: DAHUA | J174: AC-12415 | K174: ACCESORIOS
B175: S042-1A120300HU | C175: DAHUA S042-1A120300HU - FUENTE DE PODER DE 12 VCC 3 AMPERES/ VOLTAJE DE ENTRADA DE 90 A 264 VAC/ CON PROTECCION CONTRA DESCARGAS/ CERTIFICACION UL | D175: 8.112 | E175: 1.29792 | F175: 9.40992 | G175: 0 | H175: Dolares | I175: DAHUA | J175: AC-12416 | K175: ACCESORIOS
B176: DH-PFM320-020US | C176: FUENTE DE PODER/ DAHUA/ DH-PFM320-020US /DE 12 VCC 2 AMPER/ ENTRADA DE 100-240 VAC/ ESPECIAL PARA CAMARAS DE CCTV/ CABLE DE 1.5 METROS/ CERTIFICACION FCC | D176: 4.992 | E176: 0.79872 | F176: 5.79072 | G176: 0 | H176: Dolares | I176: DAHUA | J176: AC-12417 | K176: ACCESORIOS
B177: IC-M1 | C177: TARJETA MIFARE/ DAHUA/ IC-M1/ 13.56 MHZ/ IC CARD/ PVC/ RANGO DE LETURA DE 2 A 8 CM/ 8 KBIT/ PARA CONTROL DE ACCESO, IDENTIFICACIONES CORPORATIVAS, TRANSPORTE URBANO | D177: 0.624 | E177: 0.09984 | F177: 0.72384 | G177: 0 | H177: Dolares | I177: DAHUA | J177: AC-12420 | K177: ACCESORIOS
B178: ID-SM | C178: LLAVERO/ DAHUA/ ID-SM LLAVERO DE PROXIMIDAD ID PARA CONTROL DE ACCESO/ 125KHZ/ (TIPO EM) | D178: 0.372 | E178: 0.05952 | F178: 0.43152 | G178: 0 | H178: Dolares | I178: DAHUA | J178: AC-12421 | K178: ACCESORIOS
B179: DH-PFA139 | C179: CAJA DE CONEXIONES/ DAHUA/ PFA139- PARA CAMARAS DOMO/ MODELOS HDBW2241F-A / IPC-HDBW3241F-FD / IPC-HDBW3241F-AS-M / IPC-HDBW3241F-FD-M / HDW1400EM-A / HDW1230EM-A / HDW2241T-A / HDW2249T-A-NI | D179: 9.888 | E179: 1.58208 | F179: 11.47008 | G179: 0 | H179: Dolares | I179: DAHUA | J179: AC-12527 | K179: ACCESORIOS
B180: DH-PFM904 | C180: PROBADOR/ DAHUA/ PFM904/ TESTER DE VIDEO/ COMPACTO Y PORTABLE/ SOPORTA CONTROL PTZ/ LINUX/ PANTALLA DE 4.3 PULGADAS/ HDCVI; HDTVI; AHD; CVBS/ SOPORTA CAMARAS 1080P, 4 MP Y 8 MP (NO SOPORTA 5 MP) | D180: 87.492 | E180: 13.99872 | F180: 101.49072 | G180: 0 | H180: Dolares | I180: DAHUA | J180: AC-12590 | K180: ACCESORIOS
B181: DH-PFA150-T | C181: MONTAJE/ DAHUA/ DH-PFA150-T/ PARA POSTE COMPATIBLE CON CAMARAS PTZ/ COLOR BLANCO/ INSTALACION EN EXTERIORES | D181: 50.7 | E181: 8.112 | F181: 58.812 | G181: 0 | H181: Dolares | I181: DAHUA | J181: AC-12625 | K181: ACCESORIOS
B182: DH-PFA13A-E | C182: CAJA DE CONEXIONES/ DAHUA/ PFA13A-E/ PARA CAMARAS DOMO DAHUA SERIE HDW1000 / 1100 / 1200 / 1220 / 1400 / 2231 / 2401M / HDW1100RVF / 1200 / 1220 / 1400 | D182: 7.74 | E182: 1.2384 | F182: 8.9784 | G182: 0 | H182: Dolares | I182: DAHUA | J182: AC-12853 | K182: ACCESORIOS
B183: DHI-DS04-AI400 | C183: CAJA MULTIMEDIA/ DAHUA/ DHI-DS04-AI400/ PLAYER PARA PUBLICIDAD/ SENALIZACION DIGITAL/ ANDROID/ COMPATIBLE CON SOFTWARE MPS PARA ADMINISTRACION/ ETHERNET | D183: 348.36 | E183: 55.7376 | F183: 404.0976 | G183: 0 | H183: Dolares | I183: DAHUA | J183: AC-13040 | K183: ACCESORIOS
B184: DH-PFM325D-1210US | C184: FUENTE DE PODER/ DAHUA/ DH-PFM325D-1210US/REGULADA DE 12 VCC 1 AMPER. IDEAL PARA CAMARAS DE CCTV, CON PROTECCION TERMICA AVANZADA Y LED INDICADOR DE FUNCIONAMIENTO, GARANTIZA UN RENDIMIENTO ESTABLE Y | D184: 4.8 | E184: 0.768 | F184: 5.568 | G184: 0 | H184: Dolares | I184: DAHUA | J184: AC-13272 | K184: ACCESORIOS
B185: SAX-FC06 | C185: LECTOR ENROLADOR SAXXON FC06 ENROLADOR USB Y ENCRIPTACION DE TARJETAS UHF 902 MHZ &#8210; 928 MHZ / COMPATIBLE CON LECTORAS SAXXON SAXR2656, SAXR2657 | D185: 77.184 | E185: 12.34944 | F185: 89.53344 | G185: 0 | H185: Dolares | I185: DAHUA | J185: AC-13584 | K185: ACCESORIOS
B186: SAX-THF02 | C186: TAG DE PAPEL SAXXON THF02 TAG DE PAPEL ADHERIBLE / ALTAS TEMPERATURAS /COMPATIBLE CON LECTORAS SAXR2656 & SAXR2657/FOLIO IMPRESO | D186: 1.164 | E186: 0.18624 | F186: 1.35024 | G186: 0 | H186: Dolares | I186: DAHUA | J186: AC-13586 | K186: ACCESORIOS
B187: DH-PFM320D-015 | C187: FUENTE DE PODER DE 12VCC 1.5 AMP DAHUA PFM320D-015 TIPO CONVERTIDOR DE 110 VCA A 12 VCC 1.5A LED INDICADOR/ FACIL INSTALACION/ CERTIFICACIONES CE, FCC | D187: 6.72 | E187: 1.0752 | F187: 7.7952 | G187: 0 | H187: Dolares | I187: DAHUA | J187: AC-13587 | K187: ACCESORIOS
B188: DH-PFM800-N | C188: TRANSCEPTOR DAHUA DH-PFM800-N PAR DE TRANSCEPTORES PASIVOS HDCVI 4K / 1 CANAL DE TRANSMISION DE VIDEO / 720P HASTA 400M (1312.34FT) 1080PHASTA 250M(820.21FT) / UTP CAT 5E & CAT6 / ANTI INTERTFERENCIA | D188: 2.052 | E188: 0.32832 | F188: 2.38032 | G188: 0 | H188: Dolares | I188: DAHUA | J188: AC-13588 | K188: ACCESORIOS
B189: DH-PFM976-531 | C189: PLUGS RJ45 CAT5E DAHUA DH-PFM976-531 CAJA CON 100 PLUGS RJ45 CAT5E/ CHAPADO DE ORO DE 15 U/ CLASIFICACION DE RESISTENCIA AL FUEGO UL94V-2 | D189: 8.796 | E189: 1.40736 | F189: 10.20336 | G189: 0 | H189: Dolares | I189: DAHUA | J189: AC-13589 | K189: ACCESORIOS
B190: DH-PFM976-531-PT | C190: PLUGS RJ45 CAT5E DAHUA PFM976-531-PT CAJA CON 100 PLUGS PASS THROUGH RJ45 CAT5E/ CHAPADO DE ORO DE 15 U/ CLASIFICACION DE RESISTENCIA AL FUEGO UL94V-2 | D190: 9.468 | E190: 1.51488 | F190: 10.98288 | G190: 0 | H190: Dolares | I190: DAHUA | J190: AC-13590 | K190: ACCESORIOS
B191: DH-PFM976-631-PT | C191: PLUGS RJ45 CAT6 DAHUA DH-PFM976-631-PT CAJA CON 100 PLUGS PASS THROUGH RJ45 CAT6/ CHAPADO DE ORO DE 15 U/ CLASIFICACION DE RESISTENCIA AL FUEGO UL94V-2 | D191: 11.352 | E191: 1.81632 | F191: 13.16832 | G191: 0 | H191: Dolares | I191: DAHUA | J191: AC-13591 | K191: ACCESORIOS
B192: DH-PFM320-010US | C192: CAJA DE CONEXIONES DAHUA PFA13G METALICA COMPATIBLE CON DOMO Y BALA CONSULTE LA SELECCION DE ACCESORIOS/ SERIES: HAC-HDW1200/1230/1500/1220SL, IPC-T1B20/40/ IPC-T1B20-L/HAC-HDW1801TL-A/HAC-HDW1200TL- | D192: 3.768 | E192: 0.60288 | F192: 4.37088 | G192: 0 | H192: Dolares | I192: DAHUA | J192: AC-13592 | K192: ACCESORIOS
B193: DH-PFM344D-4CH-US | C193: FUENTE DE PODER DAHUA DH-PFM344D-4CH-US FUENTE DE PODER DE 12 VCD/ 2 AMPERES/ PARA 4 CAMARAS | D193: 16.788 | E193: 2.68608 | F193: 19.47408 | G193: 0 | H193: Dolares | I193: DAHUA | J193: AC-13593 | K193: ACCESORIOS
B194: DH-PFB2204W | C194: BRAZO DE PARED DAHUA PFB2204W PARA CAMARAS DOMO DAHUA / HDAW1100M / HDAW1200M / HDABW2120F / HDABW2220FM / HDAW1200EMA | D194: 11.268 | E194: 1.80288 | F194: 13.07088 | G194: 0 | H194: Dolares | I194: DAHUA | J194: AC-13594 | K194: ACCESORIOS
B195: DHI-NKB1000 | C195: TECLADO DAHUA CONTROL PTZ ANALOGA E IP/DVR/NVR/ PELCO D P/ PANTALLA LCD/ RS485/ RS422/ USB/ RS232 | D195: 221.232 | E195: 35.39712 | F195: 256.62912 | G195: 0 | H195: Dolares | I195: DAHUA | J195: AC-4825 | K195: ACCESORIOS
B196: PSU1220-D9 | C196: FUENTE DE PODER SAXXON REGULADA/ 12V/ 20 AMPERES/ DISTRIBUIDOR PARA 9 CAMARAS/ 2.22 AMP POR CANAL | D196: 56.724 | E196: 9.07584 | F196: 65.79984 | G196: 0 | H196: Dolares | I196: DAHUA | J196: AC-5293 | K196: ACCESORIOS
B197: PSU1220-D18 | C197: FUENTE DE PODER SAXXON CON DISTRIBUIDOR DE ENERGIA / 12V/ 20 AMPERES/ PARA 18 CAMARAS | D197: 64.752 | E197: 10.36032 | F197: 75.11232 | G197: 0 | H197: Dolares | I197: DAHUA | J197: AC-5550 | K197: ACCESORIOS
B198: PSU1210D9 | C198: FUENTE DE PODER SAXXON REGULADA/ 12V/ 10 AMPERES/ DISTRIBUIDOR PARA 9 CAMARAS | D198: 39.516 | E198: 6.32256 | F198: 45.83856 | G198: 0 | H198: Dolares | I198: DAHUA | J198: AC-5809 | K198: ACCESORIOS
B199: PSU12015E | C199: FUENTE DE PODER SAXXON REGULADA / 12V DC/ 1.5 AMP/ IDEAL PARA EQUIPOS DE CCTV/ CABLE DE 1.2 MTS | D199: 4.248 | E199: 0.67968 | F199: 4.92768 | G199: 0 | H199: Dolares | I199: DAHUA | J199: AC-5990 | K199: ACCESORIOS
B200: PFA134 | C200: CAJA DE CONEXIONES DAHUA PARA CAMARAS BULLET HFAW1000R/ HFAW1100S/ HFAW1200RM/ HFAW2401S/ HFW1120S/ HFW1320S/ HFW1320SW | D200: 8.664 | E200: 1.38624 | F200: 10.05024 | G200: 0 | H200: Dolares | I200: DAHUA | J200: AC-6001 | K200: ACCESORIOS
B201: DH-PFM340-5CH | C201: FUENTE DE PODER DAHUA DISTRIBUIDOR DE ENERGIA 5 CANALES/ 12 VDC/ 4 AMP/ FUSIBLES INTERCAMBIABLES/ PROTECCION DE SOBRECARGA/ COLOR BLANCO | D201: 39.984 | E201: 6.39744 | F201: 46.38144 | G201: 0 | H201: Dolares | I201: DAHUA | J201: AC-6650 | K201: ACCESORIOS
B202: PFB302S | C202: MONTAJE DE PARED COMPATIBLE CON ADAPTADORES PFA100 PARA CAMARAS DOMO HDBW5300/ HDBW5501/ HDBW8301/ | D202: 19.14 | E202: 3.0624 | F202: 22.2024 | G202: 0 | H202: Dolares | I202: DAHUA | J202: AC-6810 | K202: ACCESORIOS
B203: PFA101 | C203: ADAPTADOR PARA MONTAJE DE PARED PFB302S/ TECHO PFB300C/ CAMARAS HDBW5121/5220/5221/5421/8231/8331EZ/ HDC | D203: 7.224 | E203: 1.15584 | F203: 8.37984 | G203: 0 | H203: Dolares | I203: DAHUA | J203: AC-6811 | K203: ACCESORIOS
B204: PSUWB07 | C204: DIVISOR DE ENERGIA SAXXON / TIPO PULPO/ 4 CONECTORES MACHO/ 2.1MM/ 1 CONECTOR HEMBRA | D204: 1.572 | E204: 0.25152 | F204: 1.82352 | G204: 0 | H204: Dolares | I204: DAHUA | J204: AC-7749 | K204: ACCESORIOS
B205: PSU1230-D18 | C205: FUENTE DE PODER SAXXON 12V CD/ 30 AMPERES/ DISTRIBUIDOR PARA 18 CAMARAS/ 1.65 AMPERES POR CANAL/CE/ FCC/ CERTIFICACION UL | D205: 74.484 | E205: 11.91744 | F205: 86.40144 | G205: 0 | H205: Dolares | I205: DAHUA | J205: AC-7810 | K205: ACCESORIOS
B206: PFA136 | C206: CAJA DE CONEXIONES PARA CAMARAS DOMO DAHUA SERIES H DB1 / HDW1 / H DBW3 / H DBW2 | D206: 9.828 | E206: 1.57248 | F206: 11.40048 | G206: 0 | H206: Dolares | I206: DAHUA | J206: AC-8836 | K206: ACCESORIOS
... 7845 more rows

Sheet Radiocomunicacion (hidden)
B3: IMPORTACIONES FABIOLA DE CANCUN, S.A. DE C.V. | D3: Fecha | F3: =TODAY() -> 2026-04-16
B4: Av. Lopez Portillo, SM66, Mza3, Lotes 27 y 28, Cancun, Quintana Roo, Mex. C.P. 77510 | D4: N.º de presupuesto | F4: 000/2022MX
B5: Telefono 998 8875947, 8875514, 8873750, 8873848. | D5: Id. del cliente | F5: IFC930505GC1
B6: ventas@importacionesfabiola.com | D6: Tipo de Cambio USD | F6: 19.54
B8: Estimado Cliente o A Quien Corresponda:
B10: Por este conducto me permito hacerle llegar la lista de los productos que tenemos a su disponisicion, los cuales esta a precios muy accesibles para esta
B11: proxima TEMPORADA NAVIDEÑA, Solicite su cotizacion apuntando la cantidad de productos que ocupa en la columna de CANT. Y reenvie este mismo formato
B12: para mandarle la cotizacion en forma.
B14: Sin mas de momento, quedamos a sus ordenes para cualquier comentario o solicutud de cotizacion, estos precios estan vigentes hasta el 31 de Diciembre o
B15: hasta agotar existencias con el mayorista.
A17: PRECIOS SUJETOS A CAMBIO SIN PREVIO AVISO
A18: Cant. | B18: Descripcion del Producto | C18: Clave | D18: Precio Unitario | E18: IVA | F18: PRECIO C/IVA | G18: IMPORTES | H18: Clave | I18: Marca | J18: Grupo | K18: Precio | L18: Moneda
B19: ANT1 | C19: ANTICIPO DE BIEN O SERVICIO | D19: 0 | E19: =D19*16% -> 0 | F19: =D19+E19 -> 0 | G19: =F19*A19 -> 0
A20: 1 | B20: WJBRR01 | C20: RECEPTOR REMOTO BARRERA VEHICULAR WEJOIN / MOTOR | D20: 2 | E20: 0.32 | F20: 2.32 | G20: 2.32
B21: IDS7216HQHIM1S(C | C21: (ACUSENSE / EVITA FALSAS ALARMAS) DVR 4 MEGAPIXEL | D21: 0 | E21: 0 | F21: 0 | G21: 0
B22: S16TURBOG2/A | C22: (AUDIO POR COAXITRON) DVR 2 MEGAPIXEL (1080P) LITE | D22: 2757.38 | E22: 441.1808 | F22: 3198.5608 | G22: 0
B23: S16TURBOG3 | C23: (AUDIO POR COAXITRON) DVR 2 MEGAPIXEL (1080P) LITE | D23: 2 | E23: 0.32 | F23: 2.32 | G23: 0
B24: RBGROOVEA52HP | C24: (GROOVEA 52) PUNTO DE ACCESO, DOBLE BANDA (2.4 Ó 5 | D24: 3296.87 | E24: 527.4992 | F24: 3824.3692 | G24: 0
B25: RB9412NDTC | C25: (HAP LITE) ROUTERBOARD, 4 PUERTOS FAST ETHERNET, W | D25: 863.18 | E25: 138.1088 | F25: 1001.2888 | G25: 0
B26: EP308019 | C26: (HASTA 1 KILÓMETRO) AMPLIFICADOR PARA AMPLIAR COBE | D26: 13187.46 | E26: 2109.9936 | F26: 15297.4536 | G26: 0
B27: RBLHG5ND | C27: (LHG 5) CLIENTE EN 5 GHZ CON ANTENA DE REJILLA DE | D27: 2373.74 | E27: 379.7984 | F27: 2753.5384 | G27: 0
B28: RBMAPL2ND | C28: (MAP LITE) MINI ACCESS POINT 1 PUERTO FAST ETHERNE | D28: 983.07 | E28: 157.2912 | F28: 1140.3612 | G28: 0
B29: MGBLXV2 | C29: (MGB-LX V2) TRANSCEPTOR MINI-GBIC SFP 1G LC DUPLEX | D29: 767.27 | E29: 122.7632 | F29: 890.0332 | G29: 0
B30: RB960PGSPB | C30: (POWERBOX PRO) ROUTER PARA EXTERIOR 5 PUERTOS GIGA | D30: 4196.01 | E30: 671.3616 | F30: 4867.3716 | G30: 0
B31: IDS7216HQHIM1/FA | C31: (RECONOCIMIENTO DE ROSTROS / ACUSENSE) DVR 4 MEGAP | D31: 2 | E31: 0.32 | F31: 2.32 | G31: 0
B32: SLY287GRN | C32: (SLU22) CABLE ELECT. 8 AWG THW-LS VERDE | D32: 0 | E32: 0 | F32: 0 | G32: 0
B33: RBSXTG5HPACDSA | C33: (SXT SA5 AC)PUNTO DE ACCESO EN 5GHZ A/N/AC, ANTENA | D33: 4483.74 | E33: 717.3984 | F33: 5201.1384 | G33: 0
B34: VOUCHER1MSIM30 | C34: (VOUCHER) MES DE SERVICIO PARA SIM SIM30M2M (25MB) | D34: 130.84 | E34: 20.9344 | F34: 151.7744 | G34: 0
B35: NX3720HGK | C35: 136-174 MHZ, 512 CANALES, 50 W, NXDN-DMR-ANÁLOGO, | D35: 2 | E35: 0.32 | F35: 2.32 | G35: 0
B36: NX1200NK | C36: 136-174 MHZ, NXDN-ANALÓGICO, 5 WATTS, 64 CANALES, | D36: 0 | E36: 0 | F36: 0 | G36: 0
B37: MS2MICWIR | C37: 2 MICROFONOS INALAMBRICOS | D37: 0 | E37: 0 | F37: 0 | G37: 0
B38: VARIS-RNG-SP2 | C38: 2 WAY SPLITTER | D38: 0 | E38: 0 | F38: 0 | G38: 0
B39: KXDT543XB | C39: 24 TECLAS PANTALLA 3 LINEAS NEGRO MANOS LIBRES | D39: 0 | E39: 0 | F39: 0 | G39: 0
B40: DS2CE56F1TIT3 | C40: 3 MEGAPIXELES TURBOHD / DOMO TURRET LENTE 2.8MM / | D40: 0 | E40: 0 | F40: 0 | G40: 0
B41: VARIS-RNG-SP3 | C41: 3 WAY SPLITTER | D41: 0 | E41: 0 | F41: 0 | G41: 0
B42: VARIS-RNG-H36 | C42: 36 VDC HEAD END | D42: 0 | E42: 0 | F42: 0 | G42: 0
B43: LXT610VP3 | C43: 4 PACK RADIOS 2 VIAS MIDLAND | D43: 0 | E43: 0 | F43: 0 | G43: 0
B44: NX320K6 | C44: 400 - 470 MHZ, 5 W, 260 CANALES CON PANTALLA Y DTM | D44: 22346.75 | E44: 3575.48 | F44: 25922.23 | G44: 0
B45: TK3312K2 | C45: 400-470 MHZ, 5 W, 128 CANALES, 9 TECLAS PROGRAMABL | D45: 9566.9 | E45: 1530.704 | F45: 11097.604 | G45: 0
B46: NX3820HGK2 | C46: 400-470 MHZ, 512 CANALES, 45 W, NXDN-DMR-ANÁLOGO, | D46: 2 | E46: 0.32 | F46: 2.32 | G46: 0
B47: NX1300DK4 | C47: 400-470 MHZ, DMR-ANALÓGICO, 5 WATTS, 64 CANALES, R | D47: 2 | E47: 0.32 | F47: 2.32 | G47: 0
B48: 1015186H01 | C48: 4015186H02 CONTROL DE VOLUMEN DGP | D48: 0 | E48: 0 | F48: 0 | G48: 0
B49: TK3230DX | C49: 450-470 MHZ, 16 CANALES, 1.5 WATTS, VOX, SCANER, I | D49: 4963.28 | E49: 794.1248 | F49: 5757.4048 | G49: 0
B50: NXP500K | C50: 450-470 MHZ, 16 CANALES. NXDN/ANALÓGICO, SUMERGIBL | D50: 8152.04 | E50: 1304.3264 | F50: 9456.3664 | G50: 0
B51: NX820HGK | C51: 450-520 MHZ, 260 CANALES, 45 W, IP54, GPS, MENSAJE | D51: 21555.5 | E51: 3448.88 | F51: 25004.38 | G51: 0
B52: NX320K3 | C52: 450-520 MHZ, 260 CANALES, 5 W, BOTÓN DE PÁNICO, HO | D52: 17791.08 | E52: 2846.5728 | F52: 20637.6528 | G52: 0
B53: NX1300AK2 | C53: 450-520 MHZ, ANALÓGICO, 5 WATTS, 260 CANALES, 9 TE | D53: 0 | E53: 0 | F53: 0 | G53: 0
B54: PKT23K | C54: 451-470 MHZ , 1.5 W, 4 CANALES, SCAN, VOX, MIL-STD | D54: 3835.94 | E54: 613.7504 | F54: 4449.6904 | G54: 0
B55: WP712 | C55: 712 BNP BATERIA RECARGABLE 12 V 7 AH | D55: 596.54 | E55: 95.4464 | F55: 691.9864 | G55: 0
B56: NS2 | C56: A/POINT CLIENTE 2.4 GHZ CON SMA INV 10DB | D56: 3332.83 | E56: 533.2528 | F56: 3866.0828 | G56: 0
B57: ABRAZADERA | C57: ABRAZADERA DE 1/2 | D57: 0 | E57: 0 | F57: 0 | G57: 0
B58: LPCC1/4 | C58: ABRAZADERA NATURAL 1/4 IN C/100 PZAS | D58: 37.41 | E58: 5.9856 | F58: 43.3956 | G58: 0
B59: ABRAOMG | C59: ABRAZADERA OMEGA 2 C.30 | D59: 0 | E59: 0 | F59: 0 | G59: 0
B60: 42396A9 | C60: ABRAZADERA PARA CABLE D/5/8",0.00" | D60: 16 | E60: 2.56 | F60: 18.56 | G60: 0
B61: 483 | C61: ABRAZADERA PARA MASTIL ANT. MARINA | D61: 3812.37 | E61: 609.9792 | F61: 4422.3492 | G61: 0
B62: ABRA | C62: ABRAZADERA REFORZADA TIPO UÑA 1 C.40 | D62: 0 | E62: 0 | F62: 0 | G62: 0
B63: ABRA1 | C63: ABRAZADERA REFORZADA TIPO UÑA 1/2 C.40 | D63: 0 | E63: 0 | F63: 0 | G63: 0
B64: ABRA2 | C64: ABRAZADERA REFORZADA TIPO UÑA 3/4 C 40 | D64: 0 | E64: 0 | F64: 0 | G64: 0
B65: ABRAGALV | C65: ABRAZADERA SINFIN GALVANIZADA 2",10.00" | D65: 16 | E65: 2.56 | F65: 18.56 | G65: 0
B66: SNU635 | C66: ABRAZADERA TIPO PERRO O NUDO, PARA CABLE DE 1/4." | D66: 17.16 | E66: 2.7456 | F66: 19.9056 | G66: 0
B67: AN4 | C67: ACC. ANTENA | D67: 22.94 | E67: 3.6704 | F67: 26.6104 | G67: 0
B68: TSR1W33 | C68: ACCESORIO CODO INTERNO | D68: 0 | E68: 0 | F68: 0 | G68: 0
B69: AN8 | C69: ACCESORIOS ANTENA | D69: 181.28 | E69: 29.0048 | F69: 210.2848 | G69: 0
B70: ACCA | C70: ACCESORIOS PARA PATRULLAS | D70: 0 | E70: 0 | F70: 0 | G70: 0
B71: NS5 | C71: ACCESS POINT 5GHZ ANTENA PANEL 14DBI | D71: 3692.49 | E71: 590.7984 | F71: 4283.2884 | G71: 0
B72: PS5 | C72: ACCESS POINT 5GHZ, ANTENA INTEG 22BDI | D72: 6286.57 | E72: 1005.8512 | F72: 7292.4212 | G72: 0
B73: CNPILOTE410 | C73: ACCESS POINT DOBLE BANDA + HOSTSPOT 802.11AC WAVE | D73: 8295.9 | E73: 1327.344 | F73: 9623.244 | G73: 0
B74: CNPILOTE501S | C74: ACCESS POINT DOBLE BANDA + HOTSPOT + FICHAS(BOUCHE | D74: 19877.1 | E74: 3180.336 | F74: 23057.436 | G74: 0
B75: XV22T0XA00RW | C75: ACCESS POINT EXTERIOR CNPILOT XV2-2T WIFI 6 802.11 | D75: 2 | E75: 0.32 | F75: 2.32 | G75: 0
B76: UAPACLR | C76: ACCESS POINT UNIFI DE LARGO ALCANCE DOBLE BANDA 80 | D76: 4771.46 | E76: 763.4336 | F76: 5534.8936 | G76: 0
B77: UAPACHD | C77: ACCESS POINT UNIFI HD 802.11AC WAVE 2 MU-MIMO 4X4 | D77: 14841.89 | E77: 2374.7024 | F77: 17216.5924 | G77: 0
B78: UAPACMPRO | C78: ACCESS POINT UNIFI PARA MESH EN EXTERIOR, ANTENA | D78: 8847.59 | E78: 1415.6144 | F78: 10263.2044 | G78: 0
B79: UAPACM | C79: ACCESS POINT UNIFI PARA MESH EN EXTERIOR, ANTENAS | D79: 4411.8 | E79: 705.888 | F79: 5117.688 | G79: 0
B80: UAPACLITE | C80: ACCESS POINT UNIFI, DOBLE BANDA 802.11AC, MIMO 2X2 | D80: 3812.37 | E80: 609.9792 | F80: 4422.3492 | G80: 0
B81: ACBAC | C81: ACCESS POINT/ROUTER WI-FI AIRCUBE AC, MIMO 2X2, DO | D81: 3476.69 | E81: 556.2704 | F81: 4032.9604 | G81: 0
B82: TSC12 | C82: ACOPLADOR DIRECC 12 DB ATENUACION TIPO T | D82: 839.82 | E82: 134.3712 | F82: 974.1912 | G82: 0
B83: TSC6 | C83: ACOPLADOR DIRECCIONAL 6 DB ATENUACION T | D83: 839.82 | E83: =D83*16% -> 134.3712 | F83: =D83+E83 -> 974.1912 | G83: =F83*A83 -> 0
B84: TSC9 | C84: ACOPLADOR DIRECCIONAL 9DB ATEN. TIPO T | D84: 839.82 | E84: 134.3712 | F84: 974.1912 | G84: 0
B85: LPFOAD6126 | C85: ACOPLADOR KEYSTONE DE FIBRA ÓPTICA MONOMODO SC/PC | D85: 0 | E85: 0 | F85: 0 | G85: 0
B86: 859907 | C86: ACOPLADOR TAP-10DB CONECT N HEMBRA | D86: 2 | E86: 0.32 | F86: 2.32 | G86: 0
B87: PL100D12 | C87: ACUMULADOR 12 VCD 100AH TEC BRLA AGM CICLO PROF. | D87: 8128.27 | E87: 1300.5232 | F87: 9428.7932 | G87: 0
B88: ITA2000 | C88: ADAOT P/ITR1000 GAITRONICS | D88: 18318.58 | E88: 2930.9728 | F88: 21249.5528 | G88: 0
B89: SAW1201000 | C89: ADAPT D/PARED 120 VCA/12VCD 1A 60HZ | D89: 206.49 | E89: 33.0384 | F89: 239.5284 | G89: 0
B90: RFB11301 | C90: ADAPT T BNC MACHO A 2BNC HEMBRA | D90: 60.77 | E90: 9.7232 | F90: 70.4932 | G90: 0
B91: HT503 | C91: ADAPT VOIP GS D/1 PUERTO FXO/FXS CONFI. | D91: 2157.74 | E91: 345.2384 | F91: 2502.9784 | G91: 0
B92: RFB1705 | C92: ADAPT. BNC MACHO GIRAT. P/RG59 | D92: 107.69 | E92: 17.2304 | F92: 124.9204 | G92: 0
B93: RSA3477 | C93: ADAPT. BNC MACHO GIRAT.P/RG59 | D93: 225.51 | E93: 36.0816 | F93: 261.5916 | G93: 0
B94: BC147 | C94: ADAPT. CORRIENTE P/CARGADOR BC15201/BC14 | D94: 367.1 | E94: 58.736 | F94: 425.836 | G94: 0
B95: BC147SA | C95: ADAPT. ICOM P/CARG. BC146 P/ICF11/21/F21S/3G/4G/30 | D95: 0 | E95: 0 | F95: 0 | G95: 0
B96: ADAPTADORAG3 | C96: ADAPT. P/ANAL W. W P/KNB15,KNB14 | D96: 1330.73 | E96: 212.9168 | F96: 1543.6468 | G96: 0
B97: RSA3475 | C97: ADAPT. SMA HEMBRE A UHF HEMBRA | D97: 229.23 | E97: 36.6768 | F97: 265.9068 | G97: 0
B98: RSA34031 | C98: ADAPT. SMA MACHO A N HEMBRA | D98: 0 | E98: 0 | F98: 0 | G98: 0
B99: RSA3453 | C99: ADAPT. SMA MACHO A N MACHO PTO | D99: 0 | E99: 0 | F99: 0 | G99: 0
B100: RFT12416 | C100: ADAPT. SMA MACHO A TNC | D100: 227.16 | E100: 36.3456 | F100: 263.5056 | G100: 0
B101: RSA3401 | C101: ADAPT. TRIPLE SMA HEMBRA | D101: 228.61 | E101: 36.5776 | F101: 265.1876 | G101: 0
B102: SBP300HM3 | C102: ADAPT/INDISP. P/SCV3080R | D102: 0 | E102: 0 | F102: 0 | G102: 0
B103: AP0096 | C103: ADAPTADOR 3.5MM | D103: 0 | E103: 0 | F103: 0 | G103: 0
B104: RMN5104 | C104: ADAPTADOR BLUETOOTH P/RADIO | D104: 0 | E104: 0 | F104: 0 | G104: 0
B105: RFB1135 | C105: ADAPTADOR BNC HEMBRA A BNC HEMBRA | D105: 160.61 | E105: 25.6976 | F105: 186.3076 | G105: 0
B106: RFN10391 | C106: ADAPTADOR BNC HEMBRA A N HEMBRA | D106: 254.24 | E106: 40.6784 | F106: 294.9184 | G106: 0
B107: RFN10371 | C107: ADAPTADOR BNC HEMBRA A N MACHO | D107: 245.56 | E107: 39.2896 | F107: 284.8496 | G107: 0
B108: RFB1137 | C108: ADAPTADOR BNC HEMBRA A PL259 MACHO | D108: 200.5 | E108: 32.08 | F108: 232.58 | G108: 0
B109: RFB1145 | C109: ADAPTADOR BNC HEMBRA A ROSCA P/KENWOOD | D109: 204.01 | E109: 32.6416 | F109: 236.6516 | G109: 0
B110: RFN10311 | C110: ADAPTADOR BNC HEMBRA PL MACHO | D110: 0 | E110: 0 | F110: 0 | G110: 0
B111: RFU627 | C111: ADAPTADOR BNC MACHO A MINI UHF HEMBRA | D111: 212.69 | E111: 34.0304 | F111: 246.7204 | G111: 0
B112: RFN10381 | C112: ADAPTADOR BNC MACHO A N HEMBRA | D112: 259 | E112: 41.44 | F112: 300.44 | G112: 0
B113: RFN1136 | C113: ADAPTADOR BNC MACHO A PL259 HEMBRA | D113: 195.95 | E113: 31.352 | F113: 227.302 | G113: 0
B114: RFB1139 | C114: ADAPTADOR BNC MACHO A RCA HEMBRA P/FONO | D114: 120.3 | E114: 19.248 | F114: 139.548 | G114: 0
B115: RFB1141 | C115: ADAPTADOR BNC P/ANTENA EXTERNA P110 | D115: 162.67 | E115: 26.0272 | F115: 188.6972 | G115: 0
B116: AG3002 | C116: ADAPTADOR CORRIENTE USB 240VCA | D116: 0 | E116: 0 | F116: 0 | G116: 0
B117: P5DC1A | C117: ADAPTADOR D/5VCD 1A | D117: 215.79 | E117: 34.5264 | F117: 250.3164 | G117: 0
B118: PLDC1000 | C118: ADAPTADOR D/PARED 120VCA/12VCD 1250MA | D118: 215.79 | E118: 34.5264 | F118: 250.3164 | G118: 0
B119: EBU10101 | C119: ADAPTADOR DE ALIMENTACION VIA CABLE UTP | D119: 298.27 | E119: 47.7232 | F119: 345.9932 | G119: 0
B120: RLN4802 | C120: ADAPTADOR DE ANTENA | D120: 2707.36 | E120: 433.1776 | F120: 3140.5376 | G120: 0
B121: 5886564Z01 | C121: ADAPTADOR DE ANTENA REMOTA EP450 | D121: 2294.37 | E121: 367.0992 | F121: 2661.4692 | G121: 0
B122: HLN9716D | C122: ADAPTADOR DE AUDIO P/LINEA PRO MOTOROLA | D122: 1261.9 | E122: 201.904 | F122: 1463.804 | G122: 0
B123: RFB1140 | C123: ADAPTADOR DE BNC HEMBRA A RCA MACHO | D123: 117.41 | E123: 18.7856 | F123: 136.1956 | G123: 0
B124: RFB1155 | C124: ADAPTADOR DE CONECTOR BNC MACHO A F HEMBRA (75 OHM | D124: 81.23 | E124: 12.9968 | F124: 94.2268 | G124: 0
B125: RFU628 | C125: ADAPTADOR DE CONECTOR MINI UHF HEMBRA A TNC MACHO | D125: 166.81 | E125: 26.6896 | F125: 193.4996 | G125: 0
B126: RFT1230 | C126: ADAPTADOR DE CONECTOR TNC HEMBRA A BNC MACHO. | D126: 227.99 | E126: 36.4784 | F126: 264.4684 | G126: 0
B127: 17308 | C127: ADAPTADOR DE CONRRIENTE CARG. MULTIPLE | D127: 0 | E127: 0 | F127: 0 | G127: 0
B128: BC123SA | C128: ADAPTADOR DE CORRIENTE DE 12V/1A PARA CARGADORES: | D128: 623.41 | E128: 99.7456 | F128: 723.1556 | G128: 0
B129: EDC19A | C129: ADAPTADOR DE CORRIENTE DIRECTA HX600S | D129: 0 | E129: 0 | F129: 0 | G129: 0
B130: BC174 | C130: ADAPTADOR DE CORRIENTE P/BC173 | D130: 275.32 | E130: 44.0512 | F130: 319.3712 | G130: 0
B131: AC4836 | C131: ADAPTADOR DE CORRIENTE UNIVERSDAL PERFECT CHOISE | D131: 0 | E131: 0 | F131: 0 | G131: 0
B132: PA402 | C132: ADAPTADOR DE MONTAJE TUBO P/CAMARA PELCO | D132: 1720.78 | E132: 275.3248 | F132: 1996.1048 | G132: 0
B133: PSD1202DT | C133: ADAPTADOR DE PARED DE 12 VCC REGULADO / 2 AMP / VO | D133: 2 | E133: 0.32 | F133: 2.32 | G133: 0
B134: HTN8232 | C134: ADAPTADOR DE PARED MOTOROLA | D134: 183.55 | E134: 29.368 | F134: 212.918 | G134: 0
B135: PSD1202D | C135: ADAPTADOR DE PARED REGULADO DE 12 VCD A 2 AMPER | D135: 0 | E135: 0 | F135: 0 | G135: 0
B136: 1603168 | C136: ADAPTADOR DE PICOS PARA BARRERA 1603-180 / PERMITE | D136: 2 | E136: 0.32 | F136: 2.32 | G136: 0
B137: 17105 | C137: ADAPTADOR DE PODER SOBRE ETHERNET | D137: 848.92 | E137: 135.8272 | F137: 984.7472 | G137: 0
B138: UE300 | C138: ADAPTADOR DE RED ETHERNET USB 3.0 A RJ45 10/100/10 | D138: 485.54 | E138: 77.6864 | F138: 563.2264 | G138: 0
B139: HT802 | C139: ADAPTADOR DE TELÉFONO ANALÓGICO (ATA) DE 2 PUERTO | D139: 1378.69 | E139: 220.5904 | F139: 1599.2804 | G139: 0
B140: HT813 | C140: ADAPTADOR DE TELÉFONO ANALÓGICO (ATA) HÍBRIDO DE 1 | D140: 2457.66 | E140: 393.2256 | F140: 2850.8856 | G140: 0
B141: AC6443 | C141: ADAPTADOR DISPLAYPORT M A HDMI/VGA H PASIVO BL MAN | D141: 0 | E141: 0 | F141: 0 | G141: 0
B142: KTI5M | C142: ADAPTADOR ETHERNET P/ADMON D/SISTEMAS TRONCALES | D142: 2 | E142: 0.32 | F142: 2.32 | G142: 0
B143: HLN9087 | C143: ADAPTADOR EXTERNO P/ANTENA SP50 | D143: 275.32 | E143: 44.0512 | F143: 319.3712 | G143: 0
B144: MG6004W | C144: ADAPTADOR FXS D/4 LINEAS | D144: 0 | E144: 0 | F144: 0 | G144: 0
B145: RFU532 | C145: ADAPTADOR L PL259 MACHO A PL259 HEMBRA | D145: 222.62 | E145: 35.6192 | F145: 258.2392 | G145: 0
B146: RFN10121 | C146: ADAPTADOR LN MACHO A N HEMBRA | D146: 397.28 | E146: 63.5648 | F146: 460.8448 | G146: 0
B147: AP0030A | C147: ADAPTADOR M5 A M1 P/AUDIFONO VOXTECH | D147: 0 | E147: =D147*16% -> 0 | F147: =D147+E147 -> 0 | G147: =F147*A147 -> 0
B148: AD301 | C148: ADAPTADOR MANHATTAN TAR RED RJ45 USB 2.0 F10/100 | D148: 0 | E148: 0 | F148: 0 | G148: 0
B149: HKN9557 | C149: ADAPTADOR MINI UHF A PL259 HEMBRA | D149: 435.93 | E149: 69.7488 | F149: 505.6788 | G149: 0
B150: RFU621 | C150: ADAPTADOR MINI UHF A PL259 MACHO | D150: 201.33 | E150: 32.2128 | F150: 233.5428 | G150: 0
B151: RFU630 | C151: ADAPTADOR MINI UHF MACHO A MINI UHF HEMB | D151: 217.45 | E151: 34.792 | F151: 252.242 | G151: 0
B152: RFU620 | C152: ADAPTADOR MINI UHF MACHO A N HEMBRA | D152: 225.72 | E152: 36.1152 | F152: 261.8352 | G152: 0
B153: RFU622 | C153: ADAPTADOR MINI UHF MACHO BNC HEMBRA | D153: 118.85 | E153: 19.016 | F153: 137.866 | G153: 0
B154: RFU623 | C154: ADAPTADOR MINI UHF MACHO TNC HEMBRA | D154: 183.55 | E154: 29.368 | F154: 212.918 | G154: 0
B155: RFU537 | C155: ADAPTADOR MONT.CHASIS DOBLE PL259 HEMBRA | D155: 182.93 | E155: 29.2688 | F155: 212.1988 | G155: 0
B156: AP0025 | C156: ADAPTADOR MOTOROLA PRO5150 7150 9150 | D156: 0 | E156: 0 | F156: 0 | G156: 0
B157: RFN10235 | C157: ADAPTADOR N HEMBRA A BNC | D157: 313.56 | E157: 50.1696 | F157: 363.7296 | G157: 0
B158: RFN10341 | C158: ADAPTADOR N HEMBRA A PL259 HEMBRA | D158: 216.21 | E158: 34.5936 | F158: 250.8036 | G158: 0
B159: RFN10351 | C159: ADAPTADOR N HEMBRA A PL259 MACHO | D159: 257.34 | E159: 41.1744 | F159: 298.5144 | G159: 0
B160: RFN10361 | C160: ADAPTADOR N HEMBRA A PL259 MACHO | D160: 245.35 | E160: 39.256 | F160: 284.606 | G160: 0
B161: PATK0111 | C161: ADAPTADOR P/ MIC P/TK280/480/380 | D161: 0 | E161: 0 | F161: 0 | G161: 0
B162: HLN9482 | C162: ADAPTADOR P/ACC AUDIO MOTOROLA | D162: 575.45 | E162: 92.072 | F162: 667.522 | G162: 0
B163: HLN9756 | C163: ADAPTADOR P/ANTENA REMOTA | D163: 1032.47 | E163: 165.1952 | F163: 1197.6652 | G163: 0
B164: PMDN4041 | C164: ADAPTADOR P/ANTENA REMOTO A8/DGP MOTOTUR | D164: 1078.35 | E164: 172.536 | F164: 1250.886 | G164: 0
B165: NTN8370 | C165: ADAPTADOR P/AUDIFONO (RUIDO EXTREMO) | D165: 1055.41 | E165: 168.8656 | F165: 1224.2756 | G165: 0
B166: NTN8371 | C166: ADAPTADOR P/AUDIFONO (RUIDO MODERADO) | D166: 665.37 | E166: 106.4592 | F166: 771.8292 | G166: 0
B167: AD50 | C167: ADAPTADOR P/BC119/11P | D167: 596.54 | E167: 95.4464 | F167: 691.9864 | G167: 0
B168: AAHLN9716 | C168: ADAPTADOR P/CONECTAR ACCESORIOS DE AUDIO | D168: 1216.02 | E168: 194.5632 | F168: 1410.5832 | G168: 0
B169: INS-8023AF-O | C169: ADAPTADOR P/EXTERIOR 802.3AF A POE 24VD | D169: 803.03 | E169: 128.4848 | F169: 931.5148 | G169: 0
B170: AAHLN9742 | C170: ADAPTADOR P/FLASHING | D170: 0 | E170: 0 | F170: 0 | G170: 0
B171: EBEPMP | C171: ADAPTADOR P/INSTALAR RAD EPMP5C UBIQUITI AIRMAX | D171: 0 | E171: 0 | F171: 0 | G171: 0
B172: SCX300HM | C172: ADAPTADOR P/SCCC6455 | D172: 1353.68 | E172: 216.5888 | F172: 1570.2688 | G172: 0
B173: PMLN4455 | C173: ADAPTADOR PARA ACC DE AUDIO MOTOROLA | D173: 1261.9 | E173: 201.904 | F173: 1463.804 | G173: 0
B174: HLN8262 | C174: ADAPTADOR PARA ANTENA REMOTA PRO2150 | D174: 665.37 | E174: 106.4592 | F174: 771.8292 | G174: 0
B175: RLN6232 | C175: ADAPTADOR PARA AUDIO MOTOROLA TUBO ACUST | D175: 596.54 | E175: 95.4464 | F175: 691.9864 | G175: 0
B176: CT91 | C176: ADAPTADOR PARA MICROFONO | D176: 0 | E176: 0 | F176: 0 | G176: 0
B177: AF5GOMTS45 | C177: ADAPTADOR PARA RD5G30 Y RD5G34 Y AIRFIBERX | D177: 0 | E177: 0 | F177: 0 | G177: 0
B178: RFB1136 | C178: ADAPTADOR PL259 HEMBRA A BNC MACHO | D178: 160.61 | E178: 25.6976 | F178: 186.3076 | G178: 0
B179: RFT1235 | C179: ADAPTADOR PL259 HEMBRA A TNC MACHO | D179: 193.88 | E179: 31.0208 | F179: 224.9008 | G179: 0
B180: RFU626 | C180: ADAPTADOR PL259 MACHO A MINI UHF HEMBRA | D180: 189.96 | E180: 30.3936 | F180: 220.3536 | G180: 0
B181: POE15 | C181: ADAPTADOR POE 15 VCD 0.8A | D181: 383.64 | E181: 61.3824 | F181: 445.0224 | G181: 0
B182: POE24 | C182: ADAPTADOR POE 24VDC | D182: 575.45 | E182: 92.072 | F182: 667.522 | G182: 0
B183: WPOE55V*B | C183: ADAPTADOR POE P/ESTACION BASE | D183: 0 | E183: 0 | F183: 0 | G183: 0
B184: POE2424W | C184: ADAPTADOR POE UBIQUITI DE 24 VDC, 1.0 A | D184: 539.49 | E184: 86.3184 | F184: 625.8084 | G184: 0
B185: LS5H | C185: ADAPTADOR PV CON 5 SALIDAS | D185: 71.93 | E185: 11.5088 | F185: 83.4388 | G185: 0
B186: JRR591 | C186: ADAPTADOR RCA MACHO C/TERMINAL ATORNILLABLE | D186: 0 | E186: 0 | F186: 0 | G186: 0
B187: RFU642 | C187: ADAPTADOR SMA HEMBRA MUHF HEMBRA | D187: 0 | E187: 0 | F187: 0 | G187: 0
B188: SKN9557 | C188: ADAPTADOR SYSCOM MINI UHF A PL259 | D188: 367.1 | E188: 58.736 | F188: 425.836 | G188: 0
B189: RFN10101 | C189: ADAPTADOR T, 2N HEMBRA, 1N MACHO | D189: 397.69 | E189: 63.6304 | F189: 461.3204 | G189: 0
B190: RFN10111 | C190: ADAPTADOR T, TRIPLE N HEMBRA, MCA RF | D190: 378.88 | E190: 60.6208 | F190: 439.5008 | G190: 0
B191: TKAC342 | C191: ADAPTADOR TAIKA P/LAPTOP ACER/19V-3.4A | D191: 2 | E191: 0.32 | F191: 2.32 | G191: 0
B192: RFB1734 | C192: ADAPTADOR TIPO BARRIL PARA 75 OHM DE CONECTORES BN | D192: 127.53 | E192: 20.4048 | F192: 147.9348 | G192: 0
B193: RFT1212 | C193: ADAPTADOR TNC HEMBRA | D193: 182.1 | E193: 29.136 | F193: 211.236 | G193: 0
B194: RFT1233 | C194: ADAPTADOR TNC HEMBRA A CONECTOR N MACHO | D194: 242.25 | E194: 38.76 | F194: 281.01 | G194: 0
B195: RFT1231 | C195: ADAPTADOR TNC MACHO A CONECTOR BNC HEMBR | D195: 175.49 | E195: 28.0784 | F195: 203.5684 | G195: 0
B196: RFT1234 | C196: ADAPTADOR TNC MACHO A N HEMBRA | D196: 0 | E196: 0 | F196: 0 | G196: 0
B197: RFU534 | C197: ADAPTADOR T-TRIPLE PL-259 HEMBRA | D197: 258.38 | E197: 41.3408 | F197: 299.7208 | G197: 0
B198: TPASMA | C198: ADAPTADOR TWISTPORT CONECTORIZADO SMA 5180-6400 MH | D198: 1774.31 | E198: 283.8896 | F198: 2058.1996 | G198: 0
B199: TKUNI65 | C199: ADAPTADOR UNI P/LAPTOP SALIDA 15V-20V 8PTOS | D199: 0 | E199: 0 | F199: 0 | G199: 0
B200: MPADAPUNI | C200: ADAPTADOR UNIVERSAL | D200: 930.15 | E200: 148.824 | F200: 1078.974 | G200: 0
B201: EUB9801 | C201: ADAPTADOR USB 300MBPS DOBLE | D201: 1514.28 | E201: 242.2848 | F201: 1756.5648 | G201: 0
B202: USBSER | C202: ADAPTADOR USB A SERIEAL DB9 DE 1.8M C/SOF | D202: 3956.24 | E202: 632.9984 | F202: 4589.2384 | G202: 0
B203: EUB9603H | C203: ADAPTADOR USB D/600MW 2.4GHZ | D203: 1353.68 | E203: 216.5888 | F203: 1570.2688 | G203: 0
B204: VIP156 | C204: ADAPTADOR VOIP 1 LINEA FXS | D204: 1894.2 | E204: 303.072 | F204: 2197.272 | G204: 0
B205: VIP157S | C205: ADAPTADOR VOIP 2 LINEAS FXS | D205: 2038.06 | E205: 326.0896 | F205: 2364.1496 | G205: 0
B206: VGW400FO | C206: ADAPTADOR VOIP 4 LINEAS FXO | D206: 0 | E206: 0 | F206: 0 | G206: 0
... 7400 more rows

Sheet Torres y Estructuras (hidden)
B3: IMPORTACIONES FABIOLA DE CANCUN, S.A. DE C.V. | D3: Fecha | F3: =TODAY() -> 2026-04-16
B4: Av. Lopez Portillo, SM66, Mza3, Lotes 27 y 28, Cancun, Quintana Roo, Mex. C.P. 77510 | D4: N.º de presupuesto | F4: 000/2022MX
B5: Telefono 998 8875947, 8875514, 8873750, 8873848. | D5: Id. del cliente | F5: IFC930505GC1
B6: ventas@importacionesfabiola.com | D6: Tipo de Cambio USD | F6: 19.54
B8: CLIENTE: | D8: Vigencia de la Cotizacion: | F8: 44927
B9: DOMICILIO: | D9: Autor: | F9: MAXIMO CHAN NOH
B10: ATENCION: | D10: Movil | F10: 9982169741
B11: TELEFONO: | D11: Movil | F11: 9981623186
B12: EMAIL: | D12: Email | F12: maxosan@hotmail.com
C14: Por este conducto anexo a la presente la cotizacion que muy amablemente solicita, esperando sea de su entera satisfaccion, quedamos a sus ordenes
B15: para cualquier comentario al respecto. Para nosotros es un placer poderle servir.
A17: PRECIOS SUJETOS A CAMBIO SIN PREVIO AVISO
A18: Cant. | B18: Descripcion del Producto | C18: Clave | D18: Precio Unitario | E18: IVA | F18: PRECIO C/IVA | G18: IMPORTES | H18: Distribuidor | I18: Marca | J18: Grupo | K18: Precio | L18: Moneda
B19: T30/3M | C19: TRAMO NORMAL T30 DE 3 METROS. | D19: 2223 | E19: 0 | F19: 0 | G19: 0 | H19: 1976
B20: T30/3R | C20: TRAMO REMATE T30 DE 3 METROS | D20: 2403 | E20: 0 | F20: 0 | G20: 0 | H20: 2136
B21: T30/3C | C21: TRAMO COPETE T30 DE 1 METRO | D21: 990 | E21: 0 | F21: 0 | G21: 0 | H21: 880
B22: T30/BC | C22: BASE CON ANCLA DE CENTRO T30 | D22: 828 | E22: 0 | F22: 0 | G22: 0 | H22: 736
B23: T30/BR | C23: JUEGO DE BRIDAS "Y" MOD. T30 | D23: 454 | E23: 0 | F23: 0 | G23: 0 | H23: 408
B24: T30/TE | C24: TRIANGULO ESTABILIZADOR T30 | D24: 2520 | E24: 0 | F24: 0 | G24: 0 | H24: 2240
E25: 0 | F25: 0 | G25: 0
B26: T35/3M | C26: TRAMO NORMAL T35 DE 3 METROS. | D26: 3168 | E26: 0 | F26: 0 | G26: 0 | H26: 2816
B27: T35/3R | C27: TRAMO REMATE T35 DE 3 METROS | D27: 3348 | E27: 0 | F27: 0 | G27: 0 | H27: 2976
B28: T35/3C | C28: TRAMO COPETE T35 DE 1 METRO | D28: 1080 | E28: 0 | F28: 0 | G28: 0 | H28: 960
B29: T35/BC | C29: BASE CON ANCLA DE CENTRO T35 | D29: 1314 | E29: 0 | F29: 0 | G29: 0 | H29: 1168
B30: T35/BR | C30: JUEGO DE BRIDAS "Y" MOD. T35 | D30: 513 | E30: 0 | F30: 0 | G30: 0 | H30: 456
B31: T35/TE | C31: TRIANGULO ESTABILIZADOR T35 | D31: 2826 | E31: 0 | F31: 0 | G31: 0 | H31: 2512
E32: 0 | F32: 0 | G32: 0
B33: T45/3M | C33: TRAMO NORMAL T45 DE 3 METROS. | D33: 4446 | E33: 0 | F33: 0 | G33: 0 | H33: 4384
B34: T45/3R | C34: TRAMO REMATE T45 DE 3 METROS | D34: 4626 | E34: 0 | F34: 0 | G34: 0 | H34: 4112
B35: T45/3C | C35: TRAMO COPETE T45 DE 1 METRO | D35: 1551.6 | E35: 0 | F35: 0 | G35: 0 | H35: 1379.2
B36: T45/BC | C36: BASE CON ANCLA DE CENTRO T45 | D36: 1782 | E36: 0 | F36: 0 | G36: 0 | H36: 1584
B37: T45/BR | C37: JUEGO DE BRIDAS "Y" MOD. T45 | D37: 684 | E37: 0 | F37: 0 | G37: 0 | H37: 608
B38: T45/TE | C38: TRIANGULO ESTABILIZADOR T45 | D38: 3375 | E38: 0 | F38: 0 | G38: 0 | H38: 3000
E39: 0 | F39: 0 | G39: 0
B40: ANCLA1/2.60M | C40: ANCLA DE 1/2" X 0.60M CON PLACA (PARED) | D40: 387 | E40: 0 | F40: 0 | G40: 0 | H40: 344
B41: ANCLA1/2.120M | C41: ANCLA DE 1/2" X 1.20 M CON PLACA (PISO) | D41: 342 | E41: 0 | F41: 0 | G41: 0 | H41: 304
B42: ANCLA5/8.60M | C42: ANCLA DE 5/8" X 0.60M CON PLACA (PARED | D42: 432 | E42: 0 | F42: 0 | G42: 0 | H42: 384
B43: ANCLA5/8.120M | C43: ANCLA DE 5/8" X 1.20M CON GANCHO (PISO) | D43: 495 | E43: 0 | F43: 0 | G43: 0 | H43: 440
B44: ANCLA3/4.60M | C44: ANCLA DE 3/4" X 0.60M CON PLACA (PARED) | D44: 558 | E44: 0 | F44: 0 | G44: 0 | H44: 496
B45: ANCLA3/4.120M | C45: ANCLA DE 3/4" X 1.20M CON PLACA (PISO) | D45: 1170 | E45: 0 | F45: 0 | G45: 0 | H45: 1046
B46: ANCLA7/8.180M | C46: ANCLA DE 7/8" X 1.80M CON PERFIL U | D46: 1620 | E46: 0 | F46: 0 | G46: 0 | H46: 1440
B47: ANCLA1.180M | C47: ANCLA DE 1" X 1.80M CON PERFIL U | D47: 1710 | E47: 0 | F47: 0 | G47: 0 | H47: 1520
E48: 0 | F48: 0 | G48: 0
B49: CRET3/16 | C49: CABLE DE ACERO TIPO RETENIDA DE 3/16" | D49: 20.7 | E49: 0 | F49: 0 | G49: 0 | H49: 18.4
B50: CRET1/4 | C50: CABLE DE ACERO TIPO RETENIDA DE 1/4" | D50: 26.1 | E50: 0 | F50: 0 | G50: 0 | H50: 23.2
B51: CRET5/16 | C51: CABLE DE ACERO TIPO RETENIDA DE 5/16" | D51: 49.5 | E51: 0 | F51: 0 | G51: 0 | H51: 44
E52: 0 | F52: 0 | G52: 0
B53: LOVDA | C53: LAMPARA DE OBSTRUCCION VDA. | D53: 3330 | E53: 0 | F53: 0 | G53: 0 | H53: 2960
B54: SLOP | C54: FOTOCELDA CON BASE Y MENSULA | D54: 360 | E54: 0 | F54: 0 | G54: 0 | H54: 320
B55: CABLERUDO2/16 | C55: CABLE DE USO RUDO 2/16 | D55: 36 | E55: 0 | F55: 0 | G55: 0 | H55: 32
B56: CABLERUDO2/14 | C56: CABLE DE USO RUDO 2X14 | D56: 45 | E56: 0 | F56: 0 | G56: 0 | H56: 40
E57: 0 | F57: 0 | G57: 0
B58: PLACAIGUAL3P | C58: PLACA IGUALADORA DE ESFUERZOS 3 PERFORACIONES | D58: 456 | E58: 0 | F58: 0 | G58: 0 | H58: 400
B59: PLACAIGUAL4P | C59: PLACA IGUALADORA DE ESFUERZOS 4 PERFORACIONES | D59: 540 | E59: 0 | F59: 0 | G59: 0 | H59: 480
B60: PLACAIGUAL5P | C60: PLACA IGUALADORA DE ESFUERZOS 5 PERFORACIONES | D60: 666 | E60: 0 | F60: 0 | G60: 0 | H60: 592
B61: PLACAIGUAL6P | C61: PLACA IGUALADORA DE ESPUERZOS 6 PERFORACIONES | D61: 882 | E61: 0 | F61: 0 | G61: 0 | H61: 784
B62: PLACAIGUAL7P | C62: PLACA IGUALADORA DE ESFUERZOS 7 PERFORACIONES | D62: 1026 | E62: 0 | F62: 0 | G62: 0 | H62: 912
E63: 0 | F63: 0 | G63: 0
B64: TOREXA1/4 | C64: TORNILLO EXAGONAL DE 1/4" X 1 1/2" | D64: 6.3 | E64: 0 | F64: 0 | G64: 0 | H64: 5.6
B65: TOREXA5/16 | C65: TORNILLO EXAGONAL DE 5/16" X 2" | D65: 7.2 | E65: 0 | F65: 0 | G65: 0 | H65: 6.4
B66: TOREXA3/8 11/4 | C66: TORNILLO EXAGONAL 3/8" X 1 1/4" | D66: 8.1 | E66: 0 | F66: 0 | G66: 0 | H66: 7.2
B67: TOREXA3/8 21/2 | C67: TORNILLO EXAGONAL 3/8" X 2 1/2" | D67: 10.8 | E67: 0 | F67: 0 | G67: 0 | H67: 13.2
B68: TOREXA7/16 3 | C68: TORNILLO EXAGONAL 7/16" X 3" | D68: 18.9 | E68: 0 | F68: 0 | G68: 0 | H68: 16.5
B69: TOREXA7/16 31/2 | C69: TORNILLO EXAGONAL 7/16" X 3 1/2" | D69: 19.8 | E69: 0 | F69: 0 | G69: 0 | H69: 17
B70: TOREXA1/2 11/2 | C70: TORNILLO EXAGONAL 1/2" X 1 1/2" | D70: 17.1 | E70: 0 | F70: 0 | G70: 0 | H70: 15.5
B71: TOREXA1/2 11/2 2 | C71: TORNILLO EXAGONAL 1/2" X 2" | D71: 20.7 | E71: 0 | F71: 0 | G71: 0 | H71: 17.5
B72: TOREXA1/2 4 | C72: TORNILLO EXAGONAL 1/2" X 4" | D72: 28.8 | E72: 0 | F72: 0 | G72: 0 | H72: 22
B73: TOREXA5/8 2 | C73: TORNILLO EXAGONAL 5/8" X 2" | D73: 33.3 | E73: 0 | F73: 0 | G73: 0 | H73: 24.5
B74: TOREXA3/4 21/2 | C74: TORNILLO EXAGONAL 3/4" X 2 1/2" | D74: 59.4 | E74: 0 | F74: 0 | G74: 0 | H74: 30
B75: TOREXA1 3 | C75: TORNILLO EXAGONAL 1" X 3" | D75: 108 | E75: 0 | F75: 0 | G75: 0 | H75: 66
E76: 0 | F76: 0 | G76: 0
B77: ROZADERA1/4 | C77: ROZADERA DE 1/4" | D77: 12.6 | E77: 0 | F77: 0 | G77: 0 | H77: 11.2
B78: ROZADERA5/16 | C78: ROZADERA DE 5/16" | D78: 13.5 | E78: 0 | F78: 0 | G78: 0 | H78: 12
B79: ROZADERA3/8 | C79: ROZADERA DE 3/8" | D79: 18 | E79: 0 | F79: 0 | G79: 0 | H79: 16
E80: 0 | F80: 0 | G80: 0
B81: TENSOR3/8 6OO | C81: TENSOR DE 3/8" X 6" OJO-OJO | D81: 225 | E81: 0 | F81: 0 | G81: 0 | H81: 200
B82: TENSOR3/8 6OG | C82: TENSOR DE 3/8" X 6 OJO-GANCHO | D82: 208.8 | E82: 0 | F82: 0 | G82: 0 | H82: 185.6
B83: TENSOR1/2 6OO | C83: TENSOR DE 1/2" X 6 OJO-OJO | D83: 320.4 | E83: 0 | F83: 0 | G83: 0 | H83: 284.8
B84: TENSOR1/2 6OG | C84: TENSOR DE 1/2" X 6 OJO-GANCHO | D84: 298.8 | E84: 0 | F84: 0 | G84: 0 | H84: 265.6
B85: TENSOR 5/8 9OO | C85: TENSOR DE 5/8" X 9 OJO-OJO | D85: 574.2 | E85: 0 | F85: 0 | G85: 0 | H85: 510.4
B86: TENSOR 3/4 12OO | C86: TENSOR DE 3/4 X 12" OJO-OJO | D86: 1047.6 | E86: 0 | F86: 0 | G86: 0 | H86: 931.2
A88: =SUBTOTAL(109,SaleItems_Table12[Cant.]) -> 0 | B88: PIEZAS | C88: =PesosMN(G88) -> SON: ( PESO 00/100 M.N.) | F88: TOTAL M.N. | G88: =SUM(G19:G87) -> 0
A90: NOTAS IMPORTANTES:
A91: 1.- Tiempo de entrega: DE 5 A 6 Dias Habiles despues de recibir su pedido o comprobante de pago.
A92: 2.- Forma de pago: Transferencia electronica, Efectivo o Cheque.
A93: 3.- Vigencia de la cotizacion: 15 dias habiles.
A94: 4.- Los precios cotizados son considerados para pago de contado o transferencia electronica.
B95: Esperando sea de su entera satisfaccion quedo a sus ordenes para cualquier comentario o duda que tenga al respecto.
C96: A T E N T A M E N T E
C97: IMPORTACIONES FABIOLA DE CANCUN, S.A. DE C.V.
C98: MAXIMO CHAN / VENTAS

Sheet Controles Remotos (hidden)
A2: IMPORTACIONES FABIOLA DE CANCUN, S.A. DE C.V. | D2: Fecha | F2: =TODAY() -> 2026-04-16
A3: Av. Lopez Portillo, SM66, Mza3, Lotes 27 y 28, Cancun, Quintana Roo, Mex. C.P. 77510 | D3: N.º de presupuesto | F3: 000/2022MX
A4: Telefono 998 8873848, 8875514, 8875947, 8873750. | D4: Id. del cliente | F4: IFC930505GC1
A5: ventas@importacionesfabiola.com | D5: Tipo de Cambio USD | F5: 19.93
A6: PRESUPUESTO:
A7: CLIENTE: | D7: Vigencia de la Cotizacion: | F7: =F2+15 -> 2026-05-01
A8: DOMICILIO: | D8: Autor: | F8: MAXIMO CHAN NOH
A9: ATENCION: | D9: Movil | F9: 9982169741
A10: TELEFONO: | D10: Movil | F10: 9981623186
A11: EMAIL: | D11: Email | F11: maxosan@hotmail.com
A13: Cant. | B13: Modelo | C13: Descripcion del Producto | D13: Precio Unitario | E13: Importe | F13: Iva | G13: Total | H13: Clave | I13: Marca | J13: Grupo | K13: Precio | L13: Moneda
B14: CEAT1 | C14: CONTROL REMOT ATVIO SMARTV | D14: 84 | E14: =D14*A14 -> 0 | F14: =E14*16% -> 0 | G14: =E14+F14 -> 0
B15: CEL57 | C15: CONTROL REMOTO AIRE ACONDICIONADO LG | D15: 195 | E15: 0 | F15: 0 | G15: 0
B16: CEM47 | C16: CONTROL REMOTO AIRE ACONDICIONADO MIDEA | D16: 180 | E16: 0 | F16: 0 | G16: 0
B17: CEY67 | C17: CONTROL REMOTO AIRE ACONDICIONADO YORK | D17: 180 | E17: 0 | F17: 0 | G17: 0
B18: CEM33 | C18: CONTROL REMOTO AIRE ACONDICIONADO, MIRAGE, GREE, TRANE | D18: 195 | E18: 0 | F18: 0 | G18: 0
B19: CEA41 | C19: CONTROL REMOTO ALUX / ATVIO/ INFOCUS MAUSE | E19: 0 | F19: 0 | G19: 0
B20: ALUX2 | C20: CONTROL REMOTO ALUX, ATVIO, INFOCUS MOUSE | D20: 211.21 | E20: 0 | F20: 0 | G20: 0
B21: CEA84 | C21: CONTROL REMOTO ATVIO / SANYO PRIME VIDEO SMART TV
B22: CEP77 | C22: CONTROL REMOTO ATVIO CURSOR POLAROID, ATVIO, MITSUI | D22: 120 | E22: =D22*A22 -> 0 | F22: =E22*16% -> 0 | G22: =E22+F22 -> 0
B23: CEP15 | C23: CONTROL REMOTO ATVIO POLAROID | D23: 84 | E23: 0 | F23: 0 | G23: 0
B24: CEARG | C24: CONTROL REMOTO ATVIO ROKU SMARTV | D24: 135 | E24: 0 | F24: 0 | G24: 0
B25: CEA11 | C25: CONTROL REMOTO ATVIO SMARTV NETFLIX | D25: 105 | E25: 0 | F25: 0 | G25: 0
B26: CR42 | C26: CONTROL REMOTO ATVIO SMARTV, NETFLIX | D26: 105 | E26: 0 | F26: 0 | G26: 0
B27: CET75 | C27: CONTROL REMOTO ATVIO, | D27: 105 | E27: 0 | F27: 0 | G27: 0
B28: CEM05 | C28: CONTROL REMOTO ATVIO, MITSUI, POLAROID | D28: 120 | E28: 0 | F28: 0 | G28: 0
B29: CES90 | C29: CONTROL REMOTO ATVIO, SPELER SMART TV | D29: 105 | E29: 0 | F29: 0 | G29: 0
B30: CECV1 | C30: CONTROL REMOTO COBIA VIOS | E30: 0 | F30: 0 | G30: 0
B31: CEC65 | C31: CONTROL REMOTO CODIFICADOR COBY | D31: 105 | E31: 0 | F31: 0 | G31: 0
B32: CED67 | C32: CONTROL REMOTO DAEWOO, EKT, HKPRO, ZMARTECH, SMARTV | D32: 105 | E32: 0 | F32: 0 | G32: 0
B33: YMX01 | C33: CONTROL REMOTO DECODIFICADOR AMAZON FIRE STICK | E33: 0 | F33: 0 | G33: 0
B34: CEC750 | C34: CONTROL REMOTO DECODIFICADOR COBY | D34: 105 | E34: 0 | F34: 0 | G34: 0
B35: DHIS | C35: CONTROL REMOTO DECODIFICADOR DHIS | E35: 0 | F35: 0 | G35: 0
B36: P22 | C36: CONTROL REMOTO DECODIFICADOR DISH | D36: 120 | E36: 0 | F36: 0 | G36: 0
B37: DISH2 | C37: CONTROL REMOTO DECODIFICADOR DISH | D37: 135 | E37: 0 | F37: 0 | G37: 0
B38: CEPD8 | C38: CONTROL REMOTO DECODIFICADOR GHIA, POLAROID | D38: 105 | E38: 0 | F38: 0 | G38: 0
B39: IZZI | C39: CONTROL REMOTO DECODIFICADOR IZZI ORIGINAL | D39: 135 | E39: 0 | F39: 0 | G39: 0
B40: CEMS4 | C40: CONTROL REMOTO DECODIFICADOR MASTER | D40: 105 | E40: 0 | F40: 0 | G40: 0
B41: CEAV3 | C41: CONTROL REMOTO VIOS ATVIO SMARTV | D41: 105 | E41: =D41*A41 -> 0 | F41: =E41*16% -> 0 | G41: =E41+F41 -> 0
B42: CEQD5 | C42: CONTROL REMOTO DECODIFICADOR QFX | E42: 0 | F42: 0 | G42: 0
B43: CES89 | C43: CONTROL REMOTO DECODIFICADOR STAR TV | E43: 0 | F43: 0 | G43: 0
B44: 289 | C44: CONTROL REMOTO DECODIFICADOR STARTV | D44: 120 | E44: 0 | F44: 0 | G44: 0
B45: CEDW | C45: CONTROL REMOTO DW DISPLAY, DAEWOO PANTALLA LCD, LED y PLASMA | D45: 105 | E45: 0 | F45: 0 | G45: 0
B46: CEE42 | C46: CONTROL REMOTO ELEMENT NETFLIX | E46: 0 | F46: 0 | G46: 0
B47: CR14 | C47: CONTROL REMOTO ELEMENT, ATVIO, NETFLIX | D47: 105 | E47: 0 | F47: 0 | G47: 0
B48: CEE15 | C48: CONTROL REMOTO EMERSON PANTALLA LCD | E48: 0 | F48: 0 | G48: 0
B49: CERKU | C49: CONTROL REMOTO EXPRESS PREMIER, HD 1, 2, 3 Y 4 | E49: 0 | F49: 0 | G49: 0
B50: CEG43 | C50: CONTROL REMOTO GHIA SMART TV | E50: 0 | F50: 0 | G50: 0
B51: CEGQ6 | C51: CONTROL REMOTO GHIA/ QUARONI SMART TV | E51: 0 | F51: 0 | G51: 0
B52: CEHAR | C52: CONTROL REMOTO HARMONTEC, VIOS Y ATVIO | D52: 180 | E52: 0 | F52: 0 | G52: 0
B53: CEHAR | C53: CONTROL REMOTO HARMONTEC, VIOS Y ATVIO SMARTV | D53: 180 | E53: 0 | F53: 0 | G53: 0
B54: CEH22 | C54: CONTROL REMOTO HISENSE | D54: 105 | E54: 0 | F54: 0 | G54: 0
B55: CEH924 | C55: CONTROL REMOTO HISENSE NETFLIX | E55: =D55*A55 -> 0 | F55: =E55*16% -> 0 | G55: =E55+F55 -> 0
B56: CEH92 | C56: CONTROL REMOTO HISENSE NETFLIX | E56: 0 | F56: 0 | G56: 0
B57: CEH32 | C57: CONTROL REMOTO HISENSE SMART TV | E57: 0 | F57: 0 | G57: 0
B58: CEH40 | C58: CONTROL REMOTO HK PRO Y EKT PANTALLA LCD LED | D58: 105 | E58: 0 | F58: 0 | G58: 0
B59: CEH98 | C59: CONTROL REMOTO HKPRO NETFLIX | D59: 105 | E59: 0 | F59: 0 | G59: 0
B60: CEH97 | C60: CONTROL REMOTO HKPRO, ATVIO, SPELER Y JVC SMARTV | D60: 84 | E60: 0 | F60: 0 | G60: 0
B61: CEI80 | C61: CONTROL REMOTO INSIGNIA PANTALLAS LCD, LED, PLASMA | D61: 105 | E61: 0 | F61: 0 | G61: 0
B62: CEIN4 | C62: CONTROL REMOTO INSIGNIA SMART TV | E62: 0 | F62: 0 | G62: 0
B63: CE30H | C63: CONTROL REMOTO JISENSE VIDAA SMARTV | D63: 120 | E63: 0 | F63: 0 | G63: 0
B64: CEJ45 | C64: CONTROL REMOTO JVC | E64: 0 | F64: 0 | G64: 0
B65: CEJ320 | C65: CONTROL REMOTO JVC FANCO SPELER ATVIO SMART TV | D65: 84 | E65: 0 | F65: 0 | G65: 0
B66: CEJ34 | C66: CONTROL REMOTO JVC, ATVIO, HKPRO | D66: 84 | E66: 0 | F66: 0 | G66: 0
B67: CELD4 | C67: CONTROL REMOTO LG 2021 DISNEY+ PREMIUM | E67: 0 | F67: 0 | G67: 0
B68: CELA7 | C68: CONTROL REMOTO LG AIRE ACONDICIONADO | E68: 0 | F68: 0 | G68: 0
B69: CEL67 | C69: CONTROL REMOTO LG APPS SMART TV | E69: 0 | F69: 0 | G69: 0
B70: CE036 | C70: CONTROL REMOTO LG CAMPANA | E70: 0 | F70: 0 | G70: 0
B71: CEL252 | C71: CONTROL REMOTO LG DVD | E71: 0 | F71: 0 | G71: 0
B72: CEL88 | C72: CONTROL REMOTO LG PANTALLA LCD | E72: 0 | F72: 0 | G72: 0
B73: CELG9 | C73: CONTROL REMOTO LG SMART TV | E73: 0 | F73: 0 | G73: 0
B74: CEML2 | C74: CONTROL REMOTO LG SMART TV MODELO AKB75675304 | E74: 0 | F74: 0 | G74: 0
B75: CEL92 | C75: CONTROL REMOTO LG SMARTV | E75: 0 | F75: 0 | G75: 0
B76: CEL32 | C76: CONTROL REMOTO LG SMARTV NETFLIX | E76: 0 | F76: 0 | G76: 0
B77: CE091 | C77: CONTROL REMOTO LG TV FLATRON | E77: 0 | F77: 0 | G77: 0
B78: CEM29 | C78: CONTROL REMOTO MAKENA | E78: 0 | F78: 0 | G78: 0
B79: CEMK1 | C79: CONTROL REMOTO MAKENA Y BLUX SMART TV | D79: 105 | E79: 0 | F79: 0 | G79: 0
B80: CEA24 | C80: CONTROL REMOTO MAKENA, ATVIO, ELEMENT, SEIKI SMARTV, NETFLIX, YOUTUBE | D80: 105 | E80: 0 | F80: 0 | G80: 0
B81: CEM22 | C81: CONTROL REMOTO MIRAGE AIRE ACINDICIONADO | D81: 195 | E81: 0 | F81: 0 | G81: 0
B82: CEM58 | C82: CONTROL REMOTO MIRAGE AIRE ACONDICIONADO | E82: 0 | F82: 0 | G82: 0
B83: CEM13 | C83: CONTROL REMOTO MOVER A MEXICO PANTALLA | D83: 105 | E83: 0 | F83: 0 | G83: 0
B84: CEMM2 | C84: CONTROL REMOTO MOVER A MEXICO PANTALLA | D84: 105 | E84: 0 | F84: 0 | G84: 0
B85: CEP920 | C85: CONTROL REMOTO PANASONIC | D85: 105 | E85: 0 | F85: 0 | G85: 0
B86: 822 | C86: CONTROL REMOTO PANASONIC LCD, LED | D86: 105 | E86: 0 | F86: 0 | G86: 0
B87: CEP2Q | C87: CONTROL REMOTO PANASONIC PANTALLA LCD LED | D87: 84 | E87: =D87*A87 -> 0 | F87: =E87*16% -> 0 | G87: =E87+F87 -> 0
B88: CE029 | C88: CONTROL REMOTO PANASONIC TV ANALOGA | E88: 0 | F88: 0 | G88: 0
B89: CEPR1 | C89: CONTROL REMOTO PHILIPS HISENSE ROKU PREMIUM | E89: 0 | F89: 0 | G89: 0
B90: CEP | C90: CONTROL REMOTO PHILIPS NETFLIX | E90: 0 | F90: 0 | G90: 0
B91: CEP94 | C91: CONTROL REMOTO PHILIPS SMART TV | D91: 105 | E91: 0 | F91: 0 | G91: 0
B92: CEP85 | C92: CONTROL REMOTO PHILIPS SMART TV 4K | D92: 84 | E92: 0 | F92: 0 | G92: 0
B93: CEP11 | C93: CONTROL REMOTO PHILIPS SMART TV TOUTUBE | D93: 105 | E93: 0 | F93: 0 | G93: 0
B94: CEP | C94: CONTROL REMOTO PHILLIPS NETFLIX | D94: 84 | E94: 0 | F94: 0 | G94: 0
B95: CEP311 | C95: CONTROL REMOTO PIONEER SMART TV , NETFLIX, YOUTUBE. | D95: 105 | E95: 0 | F95: 0 | G95: 0
B96: CEP87 | C96: CONTROL REMOTO PIONEER SMART TV NETFLIX | D96: 105 | E96: 0 | F96: 0 | G96: 0
B97: CEP4K | C97: CONTROL REMOTO POLAROID 4K SMART TV | E97: 0 | F97: 0 | G97: 0
B98: M2076 | C98: CONTROL REMOTO POLAROID A4K | D98: 165 | E98: 0 | F98: 0 | G98: 0
B99: P17 | C99: CONTROL REMOTO POLAROID NETFLIX | D99: 105 | E99: 0 | F99: 0 | G99: 0
B100: CEP45 | C100: CONTROL REMOTO POLAROID SMARTV | D100: 105 | E100: 0 | F100: 0 | G100: 0
B101: CEP25 | C101: CONTROL REMOTO POLAROID SMARTV | D101: 105 | E101: 0 | F101: 0 | G101: 0
B102: CEP55 | C102: CONTROL REMOTO POLAROID, ATVIO, ELEMENT SMARTV | D102: 105 | E102: 0 | F102: 0 | G102: 0
B103: CEP21 | C103: CONTROL REMOTO POLAROID, MAKENA, ELEMENT, ATVIO | D103: 84 | E103: 0 | F103: 0 | G103: 0
B104: CEP32 | C104: CONTROL REMOTO POLAROID, VIOS | D104: 80 | E104: 0 | F104: 0 | G104: 0
B105: 6847 | C105: CONTROL REMOTO RCA 4K | D105: 120 | E105: 0 | F105: 0 | G105: 0
B106: CER55 | C106: CONTROL REMOTO RCA NETFLIX | D106: 105 | E106: 0 | F106: 0 | G106: 0
B107: CER90 | C107: CONTROL REMOTO RCA SMARTV | D107: 84 | E107: 0 | F107: 0 | G107: 0
B108: AD1291 | C108: CONTROL REMOTO RCA SMARTV, NETFLIX | D108: 105 | E108: 0 | F108: 0 | G108: 0
B109: CER504 | C109: CONTROL REMOTO RCA UNIVERSAL 4 EN 1 | E109: 0 | F109: 0 | G109: 0
B110: CER39 | C110: CONTROL REMOTO RCA Y SANSUI SMART TV | E110: 0 | F110: 0 | G110: 0
B111: M0239 | C111: CONTROL REMOTO RCA, SANSUI SMARTV | D111: 105 | E111: 0 | F111: 0 | G111: 0
B112: CEAR6 | C112: CONTROL REMOTO ROKU ATVIO SMART TV, NETFLIX, GOOGLE PLAY, CLARO VIDEO | D112: 180 | E112: 0 | F112: 0 | G112: 0
B113: CEHR2 | C113: CONTROL REMOTO ROKU HISENSE SMARTV, NETFLIX, AMAZON, RDIO, VUDU | D113: 195 | E113: 0 | F113: 0 | G113: 0
B114: CEH4R | C114: CONTROL REMOTO ROKU HISENSE, SHARP, SANYO, SMARTV | D114: 180 | E114: 0 | F114: 0 | G114: 0
B115: CERH8 | C115: CONTROL REMOTO ROKU HITACHI SMARTV, NETFLIX, SLING, HBO | D115: 150 | E115: 0 | F115: 0 | G115: 0
B116: ROKUP | C116: CONTROL REMOTO ROKU PHILLIPS | D116: 195 | E116: 0 | F116: 0 | G116: 0
B117: CESR8 | C117: CONTROL REMOTO ROKU SHARP, SMARTV, NETFLIX, SLING , HBO, AMAZON | D117: 135 | E117: 0 | F117: 0 | G117: 0
B118: CERT9 | C118: CONTROL REMOTO ROKU TCL | D118: 135 | E118: 0 | F118: 0 | G118: 0
B119: CER4K | C119: CONTROL REMOTO ROKU UNIVERSAL | E119: =D119*A119 -> 0 | F119: =E119*16% -> 0 | G119: =E119+F119 -> 0
B120: CE188 | C120: CONTROL REMOTO SAMSUNG | E120: 0 | F120: 0 | G120: 0
B121: CEM804 | C121: CONTROL REMOTO SAMSUNG | E121: 0 | F121: 0 | G121: 0
B122: CES315 | C122: CONTROL REMOTO SAMSUNG CHICO SMARTV | E122: 0 | F122: 0 | G122: 0
B123: CES70 | C123: CONTROL REMOTO SAMSUNG SMART TV | E123: 0 | F123: 0 | G123: 0
B124: CES500 | C124: CONTROL REMOTO SAMSUNG SMARTV SLIM | E124: 0 | F124: 0 | G124: 0
B125: CE016 | C125: CONTROL REMOTO SAMSUNG TV | E125: 0 | F125: 0 | G125: 0
B126: CES701 | C126: CONTROL REMOTO SAMSUNG UHD | E126: 0 | F126: 0 | G126: 0
B127: CES707 | C127: CONTROL REMOTO SAMSUNG UHD 4K PREMIUM APPS | E127: 0 | F127: 0 | G127: 0
B128: CESL9 | C128: CONTROL REMOTO SAMSUNG UNIVEERSAL | E128: 0 | F128: 0 | G128: 0
B129: CESR10 | C129: CONTROL REMOTO SANSUI Y RCA SMART TV | D129: 99 | E129: 0 | F129: 0 | G129: 0
B130: CES38 | C130: CONTROL REMOTO SANYO SMART TV | E130: 0 | F130: 0 | G130: 0
B131: CES07 | C131: CONTROL REMOTO SHARP NETFLIX | E131: 0 | F131: 0 | G131: 0
B132: CES19 | C132: CONTROL REMOTO SHARP SMARTV, NETFLIX, CLARO VIDEO, YUOTUBE | D132: 120 | E132: 0 | F132: 0 | G132: 0
B133: CESXY | C133: CONTROL REMOTO SKY DECODIFICADOR | E133: 0 | F133: 0 | G133: 0
B134: CE5HD | C134: CONTROL REMOTO SKYHD VETV | E134: 0 | F134: 0 | G134: 0
B135: CES64 | C135: CONTROL REMOTO SONY BRAVIA | E135: 0 | F135: 0 | G135: 0
B136: CES115 | C136: CONTROL REMOTO SONY NETFLIX | E136: 0 | F136: 0 | G136: 0
B137: CES32 | C137: CONTROL REMOTO SONY NETFLIX 3D | E137: 0 | F137: 0 | G137: 0
B138: CES11 | C138: CONTROL REMOTO SONY NETFLIX DE VOZ | E138: 0 | F138: 0 | G138: 0
B139: CES75 | C139: CONTROL REMOTO SONY SMARTV | D139: 105 | E139: 0 | F139: 0 | G139: 0
B140: CETX500 | C140: CONTROL REMOTO SONY SMARTV, YOUTUBE, PRIMA VIDEO DISNEY+ | D140: 210 | E140: 0 | F140: 0 | G140: 0
B141: CE101 | C141: CONTROL REMOTO SONY TV PIP | E141: 0 | F141: 0 | G141: 0
B142: CES01 | C142: CONTROL REMOTO SPELER 3D | E142: 0 | F142: 0 | G142: 0
B143: CEA11 | C143: CONTROL REMOTO SPELER, ATVIO NETFLIX | D143: 105 | E143: 0 | F143: 0 | G143: 0
B144: CEJ320 | C144: CONTROL REMOTO SPELER, JVC, FANCO, ATVIO | D144: 84 | E144: 0 | F144: 0 | G144: 0
B145: CEPA9 | C145: CONTROL REMOTO SUPER PANASONIC UNIVERSAL | D145: 105 | E145: 0 | F145: 0 | G145: 0
B146: CEPL9 | C146: CONTROL REMOTO SUPER PHILLIPS UNIVERSAL | D146: 105 | E146: 0 | F146: 0 | G146: 0
B147: CET36 | C147: CONTROL REMOTO TCL LCD | D147: 105 | E147: 0 | F147: 0 | G147: 0
B148: CET55 | C148: CONTROL REMOTO TCL SMART TV | D148: 105 | E148: 0 | F148: 0 | G148: 0
B149: CET500 | C149: CONTROL REMOTO TCL SMART TV | D149: 84 | E149: 0 | F149: 0 | G149: 0
B150: CET222 | C150: CONTROL REMOTO TCL SMART TV, NETFLIX | D150: 135 | E150: 0 | F150: 0 | G150: 0
B151: CET47 | C151: CONTROL REMOTO TOSHIBA SMART TV | E151: =D151*A151 -> 0 | F151: =E151*16% -> 0 | G151: =E151+F151 -> 0
B152: CTPLAY | C152: CONTROL REMOTO TOTAL PLAY | D152: 105 | E152: 0 | F152: 0 | G152: 0
B153: CEME3 | C153: CONTROL REMOTO TRANE, MIDEA AVERCOOL GENERAL ELECTRIC | D153: 180 | E153: 0 | F153: 0 | G153: 0
B154: CETV2 | C154: CONTROL REMOTO TV BOX UNIVERSAL ANDROID, XIAOMI, STEREN | D154: 105 | E154: 0 | F154: 0 | G154: 0
B155: S48 | C155: CONTROL REMOTO UNIVERSAL 4 EN 1 SMART TV | E155: 0 | F155: 0 | G155: 0
B156: CEAC7 | C156: CONTROL REMOTO UNIVERSAL AIRE ACONDICIONADO | D156: 165 | E156: 0 | F156: 0 | G156: 0
B157: CE01 | C157: CONTROL REMOTO UNIVERSAL BOCINAS AMPLIFICADAS | E157: 0 | F157: 0 | G157: 0
B158: X59 | C158: CONTROL REMOTO UNIVERSAL ISEL | E158: 0 | F158: 0 | G158: 0
B159: CEM37 | C159: CONTROL REMOTO UNIVERSAL MOVER A MEXICO | D159: 105 | E159: 0 | F159: 0 | G159: 0
B160: CEM300 | C160: CONTROL REMOTO UNIVERSAL MOVER A MEXICO PANTALLA | D160: 105 | E160: 0 | F160: 0 | G160: 0
B161: CE4X4 | C161: CONTROL REMOTO UNIVERSAL SMARTV | E161: 0 | F161: 0 | G161: 0
B162: CE34X | C162: CONTROL REMOTO UNIVERSAL TV LCD | E162: 0 | F162: 0 | G162: 0
B163: CE6N1 | C163: CONTROL REMOTO VIORE,RCA,SPELER,VIOS 6 EN 1 | D163: 105 | E163: 0 | F163: 0 | G163: 0
B164: CEV02 | C164: CONTROL REMOTO VIOS | E164: 0 | F164: 0 | G164: 0
B165: CEC5V | C165: CONTROL REMOTO VIOS CONTINENTAL | E165: 0 | F165: 0 | G165: 0
B166: CEV03 | C166: CONTROL REMOTO VIOS SMART TV | E166: 0 | F166: 0 | G166: 0
B167: VI03 | C167: CONTROL REMOTO VIOS SMARTV | D167: 105 | E167: 0 | F167: 0 | G167: 0
B168: CEV08 | C168: CONTROL REMOTO VIOS Y JVC SMART TV | D168: 105 | E168: 0 | F168: 0 | G168: 0
B169: CEAV3 | C169: CONTROL REMOTO VIOS, ATVIO SMARTV | D169: 105 | E169: 0 | F169: 0 | G169: 0
B170: COB72 | C170: CONTROL REMOTO VIOS, COBIA SMARTV | D170: 105 | E170: 0 | F170: 0 | G170: 0
B171: CEE81 | C171: CONTROL REMOTO VIOS, ELEMENT, POLAROID SMATV | D171: 105 | E171: 0 | F171: 0 | G171: 0
B172: CEV500 | C172: CONTROL REMOTO VIZIO CON TECLADO | D172: 285 | E172: 0 | F172: 0 | G172: 0
B173: CEV136 | C173: CONTROL REMOTO VIZIO MODELO XRT-136 SMART TV | E173: 0 | F173: 0 | G173: 0
B174: CEV200 | C174: CONTROL REMOTO VIZIO SMART TV | D174: 225 | E174: 0 | F174: 0 | G174: 0
B175: XRT302 | C175: CONTROL REMOTO VIZIO SMARTV | D175: 306 | E175: 0 | F175: 0 | G175: 0
B176: CEZCH | C176: CONTROL REMOTO ZMARTECH SMARTV, YOUTUBE, NETFLIX | D176: 105 | E176: 0 | F176: 0 | G176: 0
B177: SFUNDA | C177: FUNDA SAMSUNG 4K COMPATIBLE | E177: 0 | F177: 0 | G177: 0
B178: AAADYNABARRA | C178: PILA AA DYNASONIC BARRA | E178: 0 | F178: 0 | G178: 0
E179: 0 | F179: 0 | G179: 0
A180: =SUBTOTAL(109,SaleItems_Table25[Cant.]) -> 0 | B180: =PesosMN(G180) -> SON: ( PESO 00/100 M.N.) | F180: TOTAL M.N. | G180: =SUBTOTAL(109,SaleItems_Table25[[Total ]]) -> 0
A181: NOTAS IMPORTANTES:
A182: 1.- Tiempo de entrega: INMEDIATO. Despues de recibir su pedido o comprobante de pago.
A183: 2.- Forma de pago: Transferencia electronica, Efectivo o Cheque.
A184: 3.- Vigencia de la cotizacion: 15 dias habiles.
A185: 4.- Los precios cotizados son considerados para pago de contado o transferencia electronica.
B186: Esperando sea de su entera satisfaccion quedo a sus ordenes para cualquier comentario o duda que tenga al respecto.
A188: DATOS CUENTAS BANCARIAS: | D188: SCOTIABANK
A189: HSBC DE MEXICO, S.A. | C189: A T E N T A M E N T E | D189: CUENTA M.N. | E189: CLABE INTERBANCARIA
A190: SUCURSAL 3052 | C190: IMPORTACIONES FABIOLA DE CANCUN, S.A. DE C.V. | D190: 17501742051 | E190: 044691175017420517
A191: CUENTA M.N. | B191: CLABE INTERBANCARIA | C191: MAXIMO CHAN / VENTAS | D191: CUENTA USD | E191: CLABE INTERBANCARIA
A192: 4007389323 | B192: 021691040073893236 | D192: 17500011827 | E192: 044691175000118276
A193: CUENTA USD | B193: CLABE INTERBANCARIA | D193: BBVA BANCOMER
A194: 7001706886 | B194: 021691070017068864 | D194: CUENTA M.N. | E194: CLABE INTERBANCARIA
B195: ABA: 026003052 | D195: 0107674287 | E195: 012691001076742879
B196: SWIF: BIMEMXMM

Sheet Taika (hidden)
A3: IMPORTACIONES FABIOLA DE CANCUN, S.A. DE C.V. | D3: Fecha | F3: =TODAY() -> 2026-04-16
A4: Av. Lopez Portillo, SM66, Mza3, Lotes 27 y 28, Cancun, Quintana Roo, Mex. C.P. 77510 | D4: N.º de presupuesto | F4: 000/2022MX
A5: Telefono 998 8873848, 8875514, 8875947, 8873750. | D5: Id. del cliente | F5: IFC930505GC1
A6: ventas@importacionesfabiola.com | D6: Tipo de Cambio USD | F6: 19.88
A7: PRESUPUESTO:
A8: CLIENTE: | D8: Vigencia de la Cotizacion: | F8: =F3+15 -> 2026-05-01
A9: DOMICILIO: | D9: Autor: | F9: MAXIMO CHAN NOH
A10: ATENCION: | D10: Movil | F10: 9982169741
A11: TELEFONO: | D11: Movil | F11: 9981623186
A12: EMAIL: | D12: Email | F12: maxosan@hotmail.com
A14: Cant. | B14: Descripcion del Producto | C14: Modelo | D14: Precio Unitario | E14: Importe | F14: Iva | G14: Total | H14: Clave | I14: Marca | J14: Grupo | K14: Precio | L14: Moneda
B15: AROIL90 | C15: ABSOLUT REPAIR GOLD ACEITE 10 EN 1 DE 90ML | D15: 465 | E15: =D15*A15 -> 0 | F15: =E15*16% -> 0 | G15: =E15+F15 -> 0
B16: ARM250 | C16: ABSOLUT REPAIR GOLD MASCARILLA DE 250ML | D16: 711 | E16: 0 | F16: 0 | G16: 0
B17: ARMG250 | C17: ABSOLUT REPAIR GOLD MASCARILLA GOLD DE 250ML | D17: 711 | E17: 0 | F17: 0 | G17: 0
B18: ARMG500 | C18: ABSOLUT REPAIR GOLD MASCARILLA GOLD DE 500ML | D18: 1003.5 | E18: 0 | F18: 0 | G18: 0
B19: ARSH500 | C19: ABSOLUT REPAIR GOLD SHAMPOO DE 500 ML | D19: 520.5 | E19: 0 | F19: 0 | G19: 0
B20: ARSH750 | C20: ABSOLUT REPAIR GOLD SHAMPOO DE 750 ML | D20: 690 | E20: 0 | F20: 0 | G20: 0
B21: ES802 | C21: ACEITE DE KERATINA CON ALOE VERA + VITAMINAE DE 59ML | D21: 99 | E21: 0 | F21: 0 | G21: 0
B22: ES814 | C22: ACONDICIONADOR REPARADOR DE KERATINA CON ALOE VERA + VITAMINAE DE 399ML | D22: 168 | E22: 0 | F22: 0 | G22: 0
B23: TK-ACT100K | C23: ACTUADOR P/SEGUROS ELECTRICOS 100,000 VECES, (EN BOLSA) | D23: 69 | E23: 0 | F23: 0 | G23: 0
B24: TK-PH4 | C24: ADAPTADOR CON 4 PUERTOS USB (HUBS) | D24: 133.5 | E24: 0 | F24: 0 | G24: 0
B25: TK-AC342 | C25: ADAPTADOR TAIKA P/ LAPTOP ACER / SALIDA 19V - 3.42A / PUNTA 5.5*1.7 | D25: 238.5 | E25: 0 | F25: 0 | G25: 0
B26: TK-DE334 | C26: ADAPTADOR TAIKA P/ LAPTOP DELL / SALIDA 19.5V - 3.34A / PUNTA 7.4*5.0 | D26: 283.5 | E26: 0 | F26: 0 | G26: 0
B27: TK-HP333 | C27: ADAPTADOR TAIKA P/ LAPTOP HP / SALIDA 19.5V - 3.33A / PUNTA 4.5*3.0 | D27: 253.5 | E27: 0 | F27: 0 | G27: 0
B28: TK-LE325 | C28: ADAPTADOR TAIKA P/ LAPTOP LENOVO / SALIDA 20V - 3.25A / PUNTA SQUARE USB | D28: 283.5 | E28: 0 | F28: 0 | G28: 0
B29: TK-UNI65 | C29: ADAPTADOR TAIKA UNIVERSAL P/ LAPTOP / SALIDA 15V - 20V / 8 PUNTAS DIFERENTES | D29: 480 | E29: 0 | F29: 0 | G29: 0
B30: ADAPTADORES C/ PUERTOS USB (HUBS) | C30: ADAPTADORES C/ PUERTOS USB (HUBS) | D30: 0 | E30: 0 | F30: 0 | G30: 0
B31: TK-APR4200 | C31: AMPLIFICADOR 4/3/2 CANALES 640 WATTS | D31: 3225 | E31: 0 | F31: 0 | G31: 0
B32: LNAPK1000 | C32: AMPLIFICADOR DE POTENCIA DE 1,000 WATTS | D32: 17998.5 | E32: 0 | F32: 0 | G32: 0
B33: LNAPK1200 | C33: AMPLIFICADOR DE POTENCIA DE 1,200 WATTS | D33: 20998.5 | E33: 0 | F33: 0 | G33: 0
B34: TK-PM3200 | C34: AMPLIFICADOR DE POTENCIA DE 1,200 WATTS | D34: 14998.5 | E34: 0 | F34: 0 | G34: 0
B35: TK-PM2200 | C35: AMPLIFICADOR DE POTENCIA DE 200 WATTS | D35: 7897.5 | E35: 0 | F35: 0 | G35: 0
B36: TK-PM2300 | C36: AMPLIFICADOR DE POTENCIA DE 300 WATTS | D36: 9165 | E36: 0 | F36: 0 | G36: 0
B37: TK-PA360U | C37: AMPLIFICADOR DE POTENCIA DE 360 WATTS, C/USB | D37: 7498.5 | E37: 0 | F37: 0 | G37: 0
B38: LNAPK600 | C38: AMPLIFICADOR DE POTENCIA DE 600 WATTS | D38: 14998.5 | E38: 0 | F38: 0 | G38: 0
B39: TK-PM2600 | C39: AMPLIFICADOR DE POTENCIA DE 600 WATTS | D39: 12642 | E39: 0 | F39: 0 | G39: 0
B40: LNAPK800 | C40: AMPLIFICADOR DE POTENCIA DE 800 WATTS | D40: 16498.5 | E40: 0 | F40: 0 | G40: 0
B41: TK-PM2900 | C41: AMPLIFICADOR DE POTENCIA DE 900 WATTS | D41: 13792.5 | E41: 0 | F41: 0 | G41: 0
B42: TK-UHD10 | C42: ANTENA DIGITAL P/EXTERIOR DE 10 ELEMENTOS, GANANCIA 18 dBi | D42: 2895 | E42: 0 | F42: 0 | G42: 0
B43: TK-UHD14 | C43: ANTENA DIGITAL P/EXTERIOR DE 14 ELEMENTOS, GANANCIA 19 dBi | D43: 3840 | E43: 0 | F43: 0 | G43: 0
B44: TK-UHD18 | C44: ANTENA DIGITAL P/EXTERIOR DE 18 ELEMENTOS, GANANCIA 21dBi | D44: 4087.5 | E44: 0 | F44: 0 | G44: 0
B45: TK-UHD50 | C45: ANTENA DIGITAL P/EXTERIOR DE 38 ELEMENTOS, GANANCIA 22dBi, HASTA 100KM | D45: 1048.5 | E45: 0 | F45: 0 | G45: 0
B46: TK-HDA7 | C46: ANTENA DIGITAL P/EXTERIOR DE 7 ELEMENTOS, GANANCIA 12 dBi | D46: 3900 | E46: 0 | F46: 0 | G46: 0
B47: TK-HDA9 | C47: ANTENA DIGITAL P/EXTERIOR DE 9 ELEMENTOS, GANANCIA 13 dBi | D47: 4498.5 | E47: 0 | F47: 0 | G47: 0
B48: TK-DF1 | C48: ANTENA DIGITAL P/INTERIOR MARCA TAIKA (BOLSITA) | D48: 142.5 | E48: 0 | F48: 0 | G48: 0
B49: TK-DA5 | C49: ANTENA DIGITAL P/INTERIOR MARCA TAIKA (CAJITA) | D49: 108 | E49: 0 | F49: 0 | G49: 0
B50: TK-DA1 | C50: ANTENA DIGITAL P/INTERIOR MARCA TKA (BOLSITA) | D50: 1125 | E50: 0 | F50: 0 | G50: 0
B51: LN-BTX800B | C51: AUDIFONOS C/BLUETOOTH, MANOS LIBRES C/REDUCCION DE RUIDO INTELIGENTE | D51: 598.5 | E51: 0 | F51: 0 | G51: 0
B52: LNAP1W | C52: AUDIFONOS C/BLUETOOTH, MANOS LIBRES C/REDUCCION DE RUIDO INTELIGENTE | D52: 748.5 | E52: 0 | F52: 0 | G52: 0
B53: LNAP1B | C53: AUDIFONOS C/BLUETOOTH, MANOS LIBRES C/REDUCCION DE RUIDO INTELIGENTE | D53: 748.5 | E53: 0 | F53: 0 | G53: 0
B54: LN-XBT920 | C54: AUDIFONOS C/BLUETOOTH, MANOS LIBRES, C/REDUCCION DE RUIDO INTELIGENTE | D54: 397.5 | E54: 0 | F54: 0 | G54: 0
B55: LN-XBT920B | C55: AUDIFONOS C/BLUETOOTH, MANOS LIBRES, C/REDUCCION DE RUIDO INTELIGENTE | D55: 397.5 | E55: 0 | F55: 0 | G55: 0
B56: LN-XBT920R | C56: AUDIFONOS C/BLUETOOTH, MANOS LIBRES, C/REDUCCION DE RUIDO INTELIGENTE | D56: 397.5 | E56: 0 | F56: 0 | G56: 0
B57: LN-XBT930 | C57: AUDIFONOS C/BLUETOOTH, MANOS LIBRES, C/REDUCCION DE RUIDO INTELIGENTE | D57: 298.5 | E57: 0 | F57: 0 | G57: 0
B58: LN-XBT940 | C58: AUDIFONOS C/BLUETOOTH, MANOS LIBRES, C/REDUCCION DE RUIDO INTELIGENTE | D58: 298.5 | E58: 0 | F58: 0 | G58: 0
B59: LN-XBT950S | C59: AUDIFONOS C/BLUETOOTH, MANOS LIBRES, C/REDUCCION DE RUIDO INTELIGENTE | D59: 298.5 | E59: 0 | F59: 0 | G59: 0
B60: LN-EX35GR | C60: AUDIFONOS METALICOS LENON, C/MANOS LIBRES, ALTA FIDELIDAD & BASS | D60: 193.5 | E60: 0 | F60: 0 | G60: 0
B61: LN-EX45GB | C61: AUDIFONOS METALICOS LENON, C/MANOS LIBRES, ALTA FIDELIDAD & BASS | D61: 193.5 | E61: 0 | F61: 0 | G61: 0
B62: LN-EX45BR | C62: AUDIFONOS METALICOS LENON, C/MANOS LIBRES, ALTA FIDELIDAD & BASS | D62: 193.5 | E62: 0 | F62: 0 | G62: 0
B63: LN-EX55BG | C63: AUDIFONOS METALICOS LENON, C/MANOS LIBRES, ALTA FIDELIDAD & BASS | D63: 193.5 | E63: 0 | F63: 0 | G63: 0
B64: LN-EX55BR | C64: AUDIFONOS METALICOS LENON, C/MANOS LIBRES, ALTA FIDELIDAD & BASS | D64: 193.5 | E64: 0 | F64: 0 | G64: 0
B65: LN-EX15BK | C65: AUDIFONOS METALICOS LENON, C/MANOS LIBRES, ALTA FIDELIDAD, BLACK | D65: 157.5 | E65: 0 | F65: 0 | G65: 0
B66: LN-EX15BL | C66: AUDIFONOS METALICOS LENON, C/MANOS LIBRES, ALTA FIDELIDAD, BLUE | D66: 157.5 | E66: 0 | F66: 0 | G66: 0
B67: LN-EX15RD | C67: AUDIFONOS METALICOS LENON, C/MANOS LIBRES, ALTA FIDELIDAD, RED | D67: 157.5 | E67: 0 | F67: 0 | G67: 0
B68: LN-EX15RG | C68: AUDIFONOS METALICOS LENON, C/MANOS LIBRES, ALTA FIDELIDAD, ROSE GOLD | D68: 157.5 | E68: 0 | F68: 0 | G68: 0
B69: TK-205BT | C69: AUTOESTEREO DE BLUETHOOTH, USB, SD, MP3 Y AUX FRONTAL | D69: 1642.5 | E69: 0 | F69: 0 | G69: 0
B70: NB-150 | C70: BASCULA PERSONAL DIGITAL DE CRISTAL TEMPLADO | D70: 412.5 | E70: 0 | F70: 0 | G70: 0
B71: NB-130 | C71: BASCULA PERSONAL, COLOR CREMA | D71: 231 | E71: 0 | F71: 0 | G71: 0
B72: NB-130 | C72: BASCULA PERSONAL, COLOR GRIS | D72: 231 | E72: 0 | F72: 0 | G72: 0
B73: TK-WCS10 | C73: BASE DE CARGA INALAMBRICA P/ TEL. COMPATIBLES C/ CARGA INALAMBRICA | D73: 232.5 | E73: 0 | F73: 0 | G73: 0
B74: CR2016 | C74: BATERÍAS DE LITIO CR2016, TIRA DE 5 PZAS. | D74: 39 | E74: 0 | F74: 0 | G74: 0
B75: CR2025 | C75: BATERÍAS DE LITIO CR2025, TIRA DE 5 PZAS. | D75: 39 | E75: 0 | F75: 0 | G75: 0
B76: CR2032 | C76: BATERÍAS DE LITIO CR2032, TIRA DE 5 PZAS. | D76: 39 | E76: 0 | F76: 0 | G76: 0
B77: BSB500GR | C77: BLOND STUDIO MULTI TECHNIQUES BONDER INSIDE BOTE DE 500GR | D77: 712.5 | E77: 0 | F77: 0 | G77: 0
B78: BS500GR | C78: BLOND STUDIO MULTI TECHNIQUES POWDER BOTE DE 500GR | D78: 648 | E78: 0 | F78: 0 | G78: 0
B79: TK-CUBE | C79: BOCINA MULTIMEDIA USB, TF CARD Y AUX. | D79: 148.5 | E79: =D79*A79 -> 0 | F79: =E79*16% -> 0 | G79: =E79+F79 -> 0
B80: TK-SP4W | C80: BOCINAS AMBIENTALES PARA INTERIOR Y EXTERIOR DE 2 VÍAS, BLANCO | D80: 1333.5 | E80: 0 | F80: 0 | G80: 0
B81: TK-SP4B | C81: BOCINAS AMBIENTALES PARA INTERIOR Y EXTERIOR DE 2 VÍAS, NEGRO | D81: 1333.5 | E81: 0 | F81: 0 | G81: 0
B82: TK-MS22 | C82: BOCINAS MULTIMEDIA 2.0 PARA PC Y LAPTOP | D82: 292.5 | E82: 0 | F82: 0 | G82: 0
B83: TK-MS20 | C83: BOCINAS MULTIMEDIA 2.0 PARA PC Y LAPTOP | D83: 193.5 | E83: 0 | F83: 0 | G83: 0
B84: TK-MS24 | C84: BOCINAS MULTIMEDIA 2.0 PARA PC Y LAPTOP (METAL) | D84: 420 | E84: 0 | F84: 0 | G84: 0
B85: 93203 | C85: BROCHA PARA MAQUILLAJE | D85: 52.5 | E85: 0 | F85: 0 | G85: 0
B86: 93211 | C86: BROCHA PARA RUBOR | D86: 52.5 | E86: 0 | F86: 0 | G86: 0
B87: 93105 | C87: BROCHA PARA SOMBRA DE OJOS | D87: 46.5 | E87: 0 | F87: 0 | G87: 0
B88: BBCKT13ES | C88: BUCKET DE 12 PEINES | D88: 448.5 | E88: 0 | F88: 0 | G88: 0
B89: TK-RCA180 | C89: CABLE C/ CONECTOR DE METAL 2 RCA A 2 RCA STEREO, 1.80M, NEGRO-GRIS | D89: 142.5 | E89: 0 | F89: 0 | G89: 0
B90: TK-RCA360 | C90: CABLE C/ CONECTOR DE METAL 2 RCA A 2 RCA STEREO, 3.60M, NEGRO-GRIS | D90: 172.5 | E90: 0 | F90: 0 | G90: 0
B91: KA-AR180 | C91: CABLE AUXILIAR 3.5MM A 2 RCA STEREO, 1.80M | D91: 25.5 | E91: 0 | F91: 0 | G91: 0
B92: TK-AUX180BG | C92: CABLE AUXILIAR 3.5MM C/ CONECTOR DE METAL, STEREO, 1.80M, NEGRO-GRIS | D92: 73.5 | E92: 0 | F92: 0 | G92: 0
B93: KA-AUX180 | C93: CABLE AUXILIAR 3.5MM, STEREO, 1.80M | D93: 21 | E93: 0 | F93: 0 | G93: 0
B94: LNAUX180 | C94: CABLE AUXILIAR 3.5MM, STEREO, 1.80M, HIGH QUALITY | D94: 0 | E94: 0 | F94: 0 | G94: 0
B95: LNAR180 | C95: CABLE AUXILIAR C/CONEC. DE METAL 3.5MM A 2 RCA STEREO, 1.80M, HIGH QUALITY | D95: 0 | E95: 0 | F95: 0 | G95: 0
B96: TK-AR180 | C96: CABLE AUXILIAR C/CONEC. DE METAL 3.5MM A 2 RCA STEREO, 1.80M, NEGRO-GRIS | D96: 115.5 | E96: 0 | F96: 0 | G96: 0
B97: TK-AUR180 | C97: CABLE AUXILIAR REFORZADO C/CONECTOR 3.5MM A 2 RCA STEREO, 1.80M | D97: 52.5 | E97: 0 | F97: 0 | G97: 0
B98: TK-VGA180 | C98: CABLE CON CONECTOR VGA A VGA DE 15 PINS, CHAPADO EN ORO, LONGITUD 1.8MT | D98: 127.5 | E98: 0 | F98: 0 | G98: 0
B99: TK-PGC10 | C99: CABLE DE ALIMENTACIÓN 10AWG, (50MTS) | D99: 607.5 | E99: 0 | F99: 0 | G99: 0
B100: TK-PCF4 | C100: CABLE DE ALIMENTACIÓN 4AWG, (20MTS) PVC FLEX | D100: 1168.5 | E100: 0 | F100: 0 | G100: 0
B101: TK-PGC6 | C101: CABLE DE ALIMENTACIÓN 6AWG, (30MTS) | D101: 915 | E101: 0 | F101: 0 | G101: 0
B102: TK-PCF6 | C102: CABLE DE ALIMENTACIÓN 6AWG, (30MTS) PVC FLEX | D102: 1048.5 | E102: 0 | F102: 0 | G102: 0
B103: TK-PGC8 | C103: CABLE DE ALIMENTACIÓN 8AWG, (50MTS) | D103: 1042.5 | E103: 0 | F103: 0 | G103: 0
B104: TK-PCF8 | C104: CABLE DE ALIMENTACIÓN 8AWG, (50MTS) PVC FLEX | D104: 1198.5 | E104: 0 | F104: 0 | G104: 0
B105: TK-PC12CM | C105: CABLE DE PODER PARA CPU (INTERLOCK), 1.20M | D105: 45 | E105: 0 | F105: 0 | G105: 0
A106: 1 | B106: TK-PC18CM | C106: CABLE DE PODER PARA CPU (INTERLOCK), 1.80M | D106: 73.5 | E106: 73.5 | F106: 11.76 | G106: 85.26
B107: KA-VD180 | C107: CABLE DE VIDEO 3 RCA A 3 RCA STEREO, 1.80M | D107: 34.5 | E107: 0 | F107: 0 | G107: 0
B108: TK-HDC180 | C108: CABLE FULL HDMI (MACHO) A HDMI (MACHO), LONGITUD 1.8MT | D108: 138 | E108: 0 | F108: 0 | G108: 0
B109: KA-HDC180 | C109: CABLE FULL HDMI (MACHO) A HDMI (MACHO), LONGITUD 1.8MT | D109: 93 | E109: 0 | F109: 0 | G109: 0
B110: TK-HDC100 | C110: CABLE FULL HDMI (MACHO) A HDMI (MACHO), LONGITUD 1MT | D110: 114 | E110: 0 | F110: 0 | G110: 0
B111: TK-HDC200 | C111: CABLE FULL HDMI (MACHO) A HDMI (MACHO), LONGITUD 2MT | D111: 141 | E111: 0 | F111: 0 | G111: 0
B112: TK-HDC300 | C112: CABLE FULL HDMI (MACHO) A HDMI (MACHO), LONGITUD 3MT | D112: 172.5 | E112: 0 | F112: 0 | G112: 0
B113: TK-HDC400 | C113: CABLE FULL HDMI (MACHO) A HDMI (MACHO), LONGITUD 4MT | D113: 204 | E113: 0 | F113: 0 | G113: 0
B114: TK-HDC500 | C114: CABLE FULL HDMI (MACHO) A HDMI (MACHO), LONGITUD 5MT | D114: 235.5 | E114: 0 | F114: 0 | G114: 0
B115: TK-HDC600 | C115: CABLE FULL HDMI (MACHO) A HDMI (MACHO), LONGITUD 6MT | D115: 267 | E115: 0 | F115: 0 | G115: 0
B116: TK-HDC700 | C116: CABLE FULL HDMI (MACHO) A HDMI (MACHO), LONGITUD 7MT | D116: 298.5 | E116: 0 | F116: 0 | G116: 0
B117: TK-HDC1000L | C117: CABLE FULL HDMI (MACHO) A HDMI (MACHO), CONECTOR ZING, LONGITUD 10MT | D117: 660 | E117: =D117*A117 -> 0 | F117: =E117*16% -> 0 | G117: =E117+F117 -> 0
B118: TK-HDC1500L | C118: CABLE FULL HDMI (MACHO) A HDMI (MACHO), CONECTOR ZING, LONGITUD 15MT | D118: 1072.5 | E118: =D118*A118 -> 0 | F118: =E118*16% -> 0 | G118: =E118+F118 -> 0
B119: TK-HDC2000L | C119: CABLE FULL HDMI (MACHO) A HDMI (MACHO), CONECTOR ZING, LONGITUD 20MT | D119: 1815 | E119: =D119*A119 -> 0 | F119: =E119*16% -> 0 | G119: =E119+F119 -> 0
B120: TK-HDC2500L | C120: CABLE FULL HDMI (MACHO) A HDMI (MACHO), CONECTOR ZING, LONGITUD 25MT | D120: 1927.5 | E120: =D120*A120 -> 0 | F120: =E120*16% -> 0 | G120: =E120+F120 -> 0
B121: TK-HDC3000L | C121: CABLE FULL HDMI (MACHO) A HDMI (MACHO), CONECTOR ZING, LONGITUD 30MT | D121: 2595 | E121: =D121*A121 -> 0 | F121: =E121*16% -> 0 | G121: =E121+F121 -> 0
B122: TK-LC524B | C122: CABLE LAN Cat5e / UTP 24AWG, 305 MT, COLOR AZUL | D122: 1440 | E122: 0 | F122: 0 | G122: 0
B123: TK-LC524W | C123: CABLE LAN Cat5e / UTP 24AWG, 305 MT, COLOR BLANCO | D123: 1440 | E123: 0 | F123: 0 | G123: 0
B124: TK-LC524G | C124: CABLE LAN Cat5e / UTP 24AWG, 305 MT, COLOR GRIS | D124: 1440 | E124: 0 | F124: 0 | G124: 0
B125: TK-LC524EX | C125: CABLE LAN Cat5e / UTP 24AWG, P/ EXTERIOR C/ DOBLE FORRRO PVC & PE, 305 MT | D125: 2098.5 | E125: 0 | F125: 0 | G125: 0
B126: TK-LC526G | C126: CABLE LAN Cat5e / UTP 26AWG, 305 MT, COLOR GRIS | D126: 1198.5 | E126: 0 | F126: 0 | G126: 0
C127: CABLE LAN Cat6e / UTP 23AWG, P/ EXTERIOR C/ DOBLE FORRRO PVC & PE, 305 MT | D127: 2398.5 | E127: 0 | F127: 0 | G127: 0
B128: TK-LC624G | C128: CABLE LAN Cat6e / UTP 24AWG, 305 MT, COLOR GRIS | D128: 1798.5 | E128: 0 | F128: 0 | G128: 0
B129: LN-CC6 | C129: CABLE P/ MICROFONO CON JACK CANON A PLUG CANON (6MT), NEGRO, PVC FLEX | D129: 0 | E129: 0 | F129: 0 | G129: 0
B130: LN-CC6S | C130: CABLE P/ MICROFONO CON JACK CANON A PLUG CANON (6MT), PLATA, PVC FLEX | D130: 292.5 | E130: 0 | F130: 0 | G130: 0
B131: LN-CM6 | C131: CABLE P/ MICROFONO CON PLUG 6.3MM A JACK CANON (6MT) NEGRO, PVC FLEX | D131: 285 | E131: 0 | F131: 0 | G131: 0
B132: LN-CM6S | C132: CABLE P/ MICROFONO CON PLUG 6.3MM A JACK CANON (6MT) PLATA, PVC FLEX | D132: 285 | E132: 0 | F132: 0 | G132: 0
B133: TK-LT15CM | C133: CABLE PARA ADAPTADOR DE LAPTOP (TIPO TREBOL), 1.50M | D133: 45 | E133: 0 | F133: 0 | G133: 0
B134: TKC-S610 | C134: CABLE PARA AUDIO CON PLUG 6.3MM A PLUG SPEAKON, 10M | D134: 420 | E134: 0 | F134: 0 | G134: 0
B135: TKC-SS10 | C135: CABLE PARA AUDIO CON PLUG SPEAKON A PLUG SPEAKON, 10M | D135: 330 | E135: 0 | F135: 0 | G135: 0
B136: LN-C633L | C136: CABLE PARA AUDIO CON PLUGS 6.3MM A 6.3MM EN L, (3MT), NEGRO | D136: 277.5 | E136: 0 | F136: 0 | G136: 0
B137: LN-C636L | C137: CABLE PARA AUDIO CON PLUGS 6.3MM A 6.3MM EN L, (6MT), NEGRO | D137: 330 | E137: 0 | F137: 0 | G137: 0
B138: LN-C633 | C138: CABLE PARA AUDIO CON PLUGS 6.3MM A 6.3MM, (3MT), NEGRO | D138: 217.5 | E138: 0 | F138: 0 | G138: 0
B139: LN-C633S | C139: CABLE PARA AUDIO CON PLUGS 6.3MM A 6.3MM, (3MT), PLATA | D139: 217.5 | E139: 0 | F139: 0 | G139: 0
B140: LN-C636 | C140: CABLE PARA AUDIO CON PLUGS 6.3MM A 6.3MM, (6MT), NEGRO | D140: 283.5 | E140: 0 | F140: 0 | G140: 0
B141: LN-C636S | C141: CABLE PARA AUDIO CON PLUGS 6.3MM A 6.3MM, (6MT), PLATA | D141: 283.5 | E141: 0 | F141: 0 | G141: 0
B142: TKC-6310 | C142: CABLE PARA AUDIO CON PLUGS 6.3MM A 6.3MM, (LONGITUD 10MT) | D142: 180 | E142: 0 | F142: 0 | G142: 0
B143: TKC-633 | C143: CABLE PARA AUDIO CON PLUGS 6.3MM A 6.3MM, (LONGITUD 3MT) | D143: 88.5 | E143: =D143*A143 -> 0 | F143: =E143*16% -> 0 | G143: =E143+F143 -> 0
B144: TKC-633F | C144: CABLE PARA AUDIO CON PLUGS 6.3MM A 6.3MM, (LONGITUD 3MT) | D144: 103.5 | E144: 0 | F144: 0 | G144: 0
B145: TKC-636 | C145: CABLE PARA AUDIO CON PLUGS 6.3MM A 6.3MM, (LONGITUD 6MT) | D145: 118.5 | E145: 0 | F145: 0 | G145: 0
B146: TKC-636F | C146: CABLE PARA AUDIO CON PLUGS 6.3MM A 6.3MM, (LONGITUD 6MT) | D146: 133.5 | E146: 0 | F146: 0 | G146: 0
B147: TK-SCF12 | C147: CABLE PARA BOCINAS 12AWG (100MTS) PVC FLEX | D147: 1798.5 | E147: 0 | F147: 0 | G147: 0
B148: LN-SCF12 | C148: CABLE PARA BOCINAS 12AWG (50MTS) COBRE PVC FLEX | D148: 1333.5 | E148: 0 | F148: 0 | G148: 0
B149: TK-SCF14 | C149: CABLE PARA BOCINAS 14AWG (100MTS) PVC FLEX | D149: 1072.5 | E149: 0 | F149: 0 | G149: 0
B150: LN-SCF14 | C150: CABLE PARA BOCINAS 14AWG (80MTS) COBRE PVC FLEX | D150: 1297.5 | E150: 0 | F150: 0 | G150: 0
B151: LN-SCF16 | C151: CABLE PARA BOCINAS 16AWG (100MTS) COBRE PVC FLEX | D151: 0 | E151: 0 | F151: 0 | G151: 0
B152: TK-SCF16 | C152: CABLE PARA BOCINAS 16AWG (100MTS) PVC FLEX | D152: 712.5 | E152: 0 | F152: 0 | G152: 0
B153: TK-SCB18 | C153: CABLE PARA BOCINAS 18AWG (100MTS) | D153: 390 | E153: 0 | F153: 0 | G153: 0
B154: TK-SCF18 | C154: CABLE PARA BOCINAS 18AWG (100MTS) PVC FLEX | D154: 562.5 | E154: 0 | F154: 0 | G154: 0
B155: TK-SCT20 | C155: CABLE PARA BOCINAS 20AWG (150MTS) | D155: 448.5 | E155: 0 | F155: 0 | G155: 0
B156: TK-SCB20 | C156: CABLE PARA BOCINAS 20AWG (150MTS) | D156: 442.5 | E156: 0 | F156: 0 | G156: 0
B157: TK-SCB22 | C157: CABLE PARA BOCINAS 22AWG (150MTS) | D157: 382.5 | E157: 0 | F157: 0 | G157: 0
B158: TKC-CC10 | C158: CABLE PARA MICROFONO CON JACK CANON A PLUG CANON (LONGITUD 10MT) | D158: 217.5 | E158: 0 | F158: 0 | G158: 0
B159: TKC-CC4F | C159: CABLE PARA MICROFONO CON JACK CANON A PLUG CANON (LONGITUD 4MT) | D159: 148.5 | E159: 0 | F159: 0 | G159: 0
B160: TKC-CC6F | C160: CABLE PARA MICROFONO CON JACK CANON A PLUG CANON (LONGITUD 6MT) | D160: 178.5 | E160: 0 | F160: 0 | G160: 0
B161: TKC-M10 | C161: CABLE PARA MICROFONO CON PLUGS 6.3MM A JACK CANON (LONGITUD 10MT) | D161: 217.5 | E161: 0 | F161: 0 | G161: 0
B162: TKC-M4F | C162: CABLE PARA MICROFONO CON PLUGS 6.3MM A JACK CANON (LONGITUD 4MT) | D162: 157.5 | E162: 0 | F162: 0 | G162: 0
B163: TKC-M6F | C163: CABLE PARA MICROFONO CON PLUGS 6.3MM A JACK CANON (LONGITUD 6MT) | D163: 180 | E163: 0 | F163: 0 | G163: 0
B164: TK-MC22462 | C164: CABLE PARA MICROFONO DE 2 CONDUCTORES, 24 AWG, OD6.2, (CARRETE DE 100M) | D164: 0 | E164: 0 | F164: 0 | G164: 0
B165: LN-MC22062 | C165: CABLE PARA MICROFONO DE 2 CONDUCTORES, 24 AWG, OD6.2, PVC FLEX, (100M) | D165: 2398.5 | E165: 0 | F165: 0 | G165: 0
B166: TK-PCG2410 | C166: CABLE PATCH CORD Cat5e / UTP 24AWG, COLOR GRIS DE 10M | D166: 103.5 | E166: 0 | F166: 0 | G166: 0
B167: TK-PCG2415 | C167: CABLE PATCH CORD Cat5e / UTP 24AWG, COLOR GRIS DE 15M | D167: 138 | E167: 0 | F167: 0 | G167: 0
B168: TK-PCG2420 | C168: CABLE PATCH CORD Cat5e / UTP 24AWG, COLOR GRIS DE 20M | D168: 172.5 | E168: 0 | F168: 0 | G168: 0
B169: TK-PCG2425 | C169: CABLE PATCH CORD Cat5e / UTP 24AWG, COLOR GRIS DE 25M | D169: 232.5 | E169: 0 | F169: 0 | G169: 0
B170: TK-PCG242 | C170: CABLE PATCH CORD Cat5e / UTP 24AWG, COLOR GRIS DE 2M | D170: 31.5 | E170: 0 | F170: 0 | G170: 0
B171: TK-PCG2430 | C171: CABLE PATCH CORD Cat5e / UTP 24AWG, COLOR GRIS DE 30M | D171: 262.5 | E171: 0 | F171: 0 | G171: 0
B172: TK-PCG245 | C172: CABLE PATCH CORD Cat5e / UTP 24AWG, COLOR GRIS DE 5M | D172: 64.5 | E172: 0 | F172: 0 | G172: 0
B173: TK-PCG247 | C173: CABLE PATCH CORD Cat5e / UTP 24AWG, COLOR GRIS DE 7M | D173: 82.5 | E173: 0 | F173: 0 | G173: 0
B174: TK-RCAY2M | C174: CABLE RCA "Y", 2 MACHOS A 1 HEMBRA 18CM | D174: 51 | E174: 0 | F174: 0 | G174: 0
B175: TK-RCA3 | C175: CABLE RCA, 2 MACHOS A 2 MACHOS (90°), .90M | D175: 67.5 | E175: 0 | F175: 0 | G175: 0
B176: TK-RCA6 | C176: CABLE RCA, 2 MACHOS A 2 MACHOS (90°), 1.80M | D176: 81 | E176: 0 | F176: 0 | G176: 0
B177: TK-RCA12 | C177: CABLE RCA, 2 MACHOS A 2 MACHOS (90°), 3.65M | D177: 0 | E177: 0 | F177: 0 | G177: 0
B178: TK-RCA15 | C178: CABLE RCA, 2 MACHOS A 2 MACHOS (90°), 4.50M | D178: 111 | E178: 0 | F178: 0 | G178: 0
B179: TK-RCA20 | C179: CABLE RCA, 2 MACHOS A 2 MACHOS (90°), 6.10M | D179: 127.5 | E179: 0 | F179: 0 | G179: 0
B180: LN-RCA5 | C180: CABLE RCA, 2 MACHOS A 2 MACHOS 5M COBRE PVC FLEX | D180: 148.5 | E180: 0 | F180: 0 | G180: 0
B181: TK-RC18N | C181: CABLE REMOTO NEGRO 18AWG, (150 MTS) | D181: 277.5 | E181: 0 | F181: 0 | G181: 0
B182: TKC-LC1 | C182: CABLE TIPO C - LIGHTNING. (P/ IPHONE), PVC, LARGO 1M BLANCO | D182: 58.5 | E182: 0 | F182: 0 | G182: 0
B183: TKC-CCP2V | C183: CABLE TYPE C - TYPE C, POWER DELIVERY, TPE, LARGO 1.5M BLANCO | D183: 90 | E183: 0 | F183: 0 | G183: 0
B184: TKC-CCP2 | C184: CABLE TYPE C - TYPE C, POWER DELIVERY, TPE, LARGO 1M BLANCO | D184: 78 | E184: 0 | F184: 0 | G184: 0
B185: TKC-CC1 | C185: CABLE TYPE C - TYPE C, PVC, LARGO 1M NEGRO | D185: 67.5 | E185: 0 | F185: 0 | G185: 0
B186: TKC-CC2V | C186: CABLE TYPE C - TYPE C, TPE, LARGO 1.5M NEGRO | D186: 82.5 | E186: 0 | F186: 0 | G186: 0
B187: TKC-CC2 | C187: CABLE TYPE C - TYPE C, TPE, LARGO 1M NEGRO | D187: 72 | E187: 0 | F187: 0 | G187: 0
B188: TKC-IP1 | C188: CABLE USB - LIGHTNING. (P/ IPHONE), PVC, LARGO 1M BLANCO | D188: 54 | E188: 0 | F188: 0 | G188: 0
B189: TKC-MC1 | C189: CABLE USB - MICRO USB, PVC, LARGO 1M NEGRO | D189: 37.5 | E189: 0 | F189: 0 | G189: 0
B190: TKC-MC2 | C190: CABLE USB - MICRO USB, TPE, LARGO 1M NEGRO | D190: 43.5 | E190: 0 | F190: 0 | G190: 0
B191: TKC-TC1 | C191: CABLE USB - TYPE C, PVC, LARGO 1M NEGRO | D191: 57 | E191: 0 | F191: 0 | G191: 0
B192: TKC-TC2V | C192: CABLE USB - TYPE C, TPE, LARGO 1.5M NEGRO | D192: 72 | E192: 0 | F192: 0 | G192: 0
B193: TKC-TC2 | C193: CABLE USB - TYPE C, TPE, LARGO 1M NEGRO | D193: 63 | E193: 0 | F193: 0 | G193: 0
B194: TK-PR180 | C194: CABLE USB VERSION 2.0 C/PLUG TIPO "A" MACHO A PLUG TIPO "B" MACHO, 1.80M | D194: 52.5 | E194: 0 | F194: 0 | G194: 0
B195: TK50 | C195: CALC- BOLSILLO DE 8 DIGITOS | D195: 30 | E195: 0 | F195: 0 | G195: 0
B196: CLS-M120 | C196: CALC. SEMI ESCRITORIO DE 12 DIGITOS | D196: 0 | E196: 0 | F196: 0 | G196: 0
B197: CL-8 | C197: CALC. BOLSILLO DE 8 DIGITOS | D197: 84 | E197: 0 | F197: 0 | G197: 0
B198: CL-5 | C198: CALC. BOLSILLO DE 8 DIGITOS | D198: 73.5 | E198: 0 | F198: 0 | G198: 0
B199: TK-50 | C199: CALC. BOLSILLO DE 8 DIGITOS | D199: 36 | E199: 0 | F199: 0 | G199: 0
B200: TK-110 | C200: CALC. BOLSILLO DE 8 DIGITOS | D200: 40.5 | E200: 0 | F200: 0 | G200: 0
B201: TK-210 | C201: CALC. BOLSILLO DE 8 DIGITOS | D201: 42 | E201: 0 | F201: 0 | G201: 0
B202: TK-310 | C202: CALC. BOLSILLO DE 8 DIGITOS | D202: 43.5 | E202: 0 | F202: 0 | G202: 0
B203: CL-825 | C203: CALC. BOLSILLO DE 8 DIGITOS C/TAPA | D203: 105 | E203: 0 | F203: 0 | G203: 0
... 473 more rows

Sheet POLICOM (hidden)
A3: IMPORTACIONES FABIOLA DE CANCUN, S.A. DE C.V. | D3: Fecha | F3: =TODAY() -> 2026-04-16
A4: Av. Lopez Portillo, SM66, Mza3, Lotes 27 y 28, Cancun, Quintana Roo, Mex. C.P. 77510 | D4: N.º de presupuesto | F4: 000/2022MX
A5: Telefono 998 8873848, 8875514, 8875947, 8873750. | D5: Id. del cliente | F5: IFC930505GC1
A6: ventas@importacionesfabiola.com | D6: Tipo de Cambio USD | F6: 19.88
A7: PRESUPUESTO PARA :
A8: MACHOTE DE COTIZACIONES | D8: Vigencia de la Cotizacion: | F8: =F3+15 -> 2026-05-01
A9: ATN A QUIEN CORRESPONDA: | D9: Autor: | F9: MAXIMO CHAN NOH
A10: MAXIMO CHAN NOH | D10: Movil | F10: 9982169741
A11: GERENTE DE COMPRAS | D11: Movil | F11: 9981623186
D12: Email | F12: maxosan@hotmail.com
A14: Cant. | B14: Modelo | C14: Descripcion del Producto | D14: Precio Unitario | E14: Importe | F14: Iva | G14: Total | H14: Clave | I14: Marca | J14: Grupo | K14: Precio | L14: Moneda
B15: 220040350001 | C15: Universal Power Supply for VVX 100 and 200 Series. 1-pack, 12V, 0.5A, NA power plug. | D15: 12.16 | E15: =D15*A15 -> 0 | F15: =E15*16% -> 0 | G15: =E15+F15 -> 0 | L15: USD
B16: 1465-49603-001 | C16: Consultalo con tu ejecutivo | E16: =D16*A16 -> 0 | F16: =E16*16% -> 0 | G16: =E16+F16 -> 0
B17: 1465-52790-075 | C17: External Level VI Power Supply for the RealPresence Group 300 and 500 Series codecs and MSR Dock worldwide. Replaces 1465-52755-075. Rated to 5km in China. Order power cord separately. | D17: 104.24 | E17: 0 | F17: 0 | G17: 0 | L17: USD
B18: 1465-52891-060 | C18: Power Supply for the Poly Studio USB and Poly Studio X50. External Level VI, 12v/5A, Positive center pole. Order power cord separately C13 to country specific. | D18: 104.24 | E18: 0 | F18: 0 | G18: 0 | L18: USD
B19: 1517-49585-001 | C19: Adaptador inalambrico USB | D19: 24.6 | E19: 0 | F19: 0 | G19: 0 | L19: USD
B20: 2200-15600-001 | C20: SoundStation IP 6000 (SIP) conference phone. 802.3af Power over Ethernet. Expandable. Includes 25ft/7.6m Cat5 shielded Ethernet cable. Does not include China, Russia. | D20: 492.65 | E20: 0 | F20: 0 | G20: 0 | L20: USD
B21: 2200-15660-001 | C21: SoundStation IP6000 (SIP) conf phone. AC pwr or 802.3af Power over Ethernet. Incl 100-240V power supply, 0.4A, 48V/19W; NA power plug; 25ft/7.6m Cat5 shielded Ethernet cable; Pwr Insert Cable. Expandable. Does not include Brazil. | D21: 547.34 | E21: 0 | F21: 0 | G21: 0 | L21: USD
B22: 2200-15855-001 | C22: Expansion Microphone Kit for CX3000 and SoundStation Duo. Includes two (2) expansion microphones and two (2) 2.1m/7ft connection cables. | D22: 160.81 | E22: 0 | F22: 0 | G22: 0 | L22: USD
B23: 2200-16000-001 | C23: SoundStation2 (analog) conference phone with display. Non-expandable. Includes 110V-120V AC power/telco module with NA plug, 6.4m/21ft console cable, 2.8m/9ft telco cable. | D23: 328.26 | E23: 0 | F23: 0 | G23: 0 | L23: USD
B24: 2200-16020-001 | C24: AC Power Kit for SoundStation2. Includes wallmod power/telco module 110-120VAC 0.2A with NA plug, 9.2ft/2.8m RJ-11 to RJ-11 cable and 21ft/6.4m keyed RJ-45 power supply to console cable. | D24: 112.32 | E24: 0 | F24: 0 | G24: 0 | L24: USD
B25: 2200-16155-001 | C25: Expansion microphones kit for SoundStation2 and SoundStation2 Avaya 2490. Includes two (2) expansion microphones and two (2) 2.9m/9.7ft expansion microphone cables. Compatible with SoundStation2 EX and SoundStation2 Avaya 2490 110-120V models only. | D25: 168.89 | E25: 0 | F25: 0 | G25: 0 | L25: USD
B26: 2200-16200-001 | C26: SoundStation2 (analog) conference phone with display. Expandable. Includes 110V-120V AC wallmod power supply with NA plug, 6.4m/21ft console cable, 2.8m/9ft telco cable. Does NOT include expansion mics. | D26: 386.59 | E26: 0 | F26: 0 | G26: 0 | L26: USD
B27: 2200-17240-002 | C27: Computer Calling Kit-use SoundStation2s with LCD,VoiceStation 500, SoundStation Duo and SoundStation IP 7000 as speakerphone for VoIP calls via computer based softclients. 1.5m/5ft cable connects phone to a computer's 3.5mm mic/line in and line out jacks | D27: 23.5 | E27: 0 | F27: 0 | G27: 0 | L27: USD
B28: 2200-18064-025 | C28: Consultalo con tu ejecutivo | E28: 0 | F28: 0 | G28: 0
B29: 2200-19000-001 | C29: SoundStation Duo dual-mode conference phone including Power Supply, Power Cord with North American plug, Power Injection Module (PIM) with 6.4m combined PSTN/Cat5 cable, 2.1m RJ-11 PSTN cable, 2.1m Cat5 cable and Quick Start Guide | D29: 450.23 | E29: 0 | F29: 0 | G29: 0 | L29: USD
B30: 2200-19050-001 | C30: AC Power Kit for SoundStation Duo. Includes Power Supply, Power Cord with North American plug, Power Injection Module (PIM) with 21ft/6.4m combined PSTN/Cat5 cable, 7ft/2.1m RJ-11 PSTN cable and 7ft/2.1m Cat5 cable. | D30: 104.24 | E30: 0 | F30: 0 | G30: 0 | L30: USD
B31: 2200-21540-001 | C31: RealPresence Trio Visual+. 802.3af Power over Ethernet. Incl. 1.8m/6ft HDMI cable, 4.5m/15ft Ethernet cable, VESA compliant mount and Setup Sheet. Incl. 1yr Premier for CALA. Maint Cont Reqd. | D31: 435.56 | E31: 0 | F31: 0 | G31: 0 | L31: USD
B32: 2200-23809-001 | C32: Ceiling Microphone array-Black "Primary". Includes 2ft/60cm drop cable, electronics Interface, wall plate with 10ft/3m and 50ft/15m plenum cable, RJ45(F)/Walta(M). For RealPresence Group, HDX and SoundStructure. See Extension for additional arrays. | D32: 1001.21 | E32: 0 | F32: 0 | G32: 0 | L32: USD
B33: 2200-23809-002 | C33: Ceiling Microphone array-White "Primary". Includes 2ft/60cm drop cable, electronics Interface, wall plate with 10ft/3m and 50ft/15m plenum cable, RJ45(F)/Walta(M). For RealPresence Group, HDX and SoundStructure. See Extension for additional arrays. | D33: 1001.21 | E33: 0 | F33: 0 | G33: 0 | L33: USD
B34: 2200-30760-001 | C34: Poly TC8 touch control for use with Poly G7500, Studio X30 and Studio X50. Requires PoE network connection or optional external power injector (2200-66740-XXX). | D34: 564.85 | E34: 0 | F34: 0 | G34: 0 | L34: USD
B35: 2200-30900-025 | C35: SoundStation IP5000 (SIP) conference phone. 802.3af Power over Ethernet. Includes 25ft/7.6m Cat5 Ethernet cable. Does not include China, Russia. | D35: 317.65 | E35: 0 | F35: 0 | G35: 0 | L35: USD
B36: 2200-33206-001 | C36: SoundStructure Headset Interface Adapter w/ 25ft RJ9 handset cable, Phoenix cables, 3ft Phoenix to Phoenix cables (2), Instruction Manual. | D36: 222.22 | E36: 0 | F36: 0 | G36: 0 | L36: USD
B37: 2200-40000-001 | C37: SoundStation IP 7000 (SIP) conference phone. 802.3af Power over Ethernet. Expandable. Includes 25ft/7.6m CAT5 shielded Ethernet cable. Does not include Russia. | D37: 710.08 | E37: 0 | F37: 0 | G37: 0 | L37: USD
B38: 2200-40017-001 | C38: Cable - Two (2) expansion microphone cables, 7ft/2.1m for SoundStation IP 7000. | D38: 24.24 | E38: 0 | F38: 0 | G38: 0 | L38: USD
B39: 2200-40040-001 | C39: Expansion Microphone Kit for SoundStation IP 7000. Includes two (2) expansion mics and 2.1m/7ft connection cables. | D39: 249.7 | E39: 0 | F39: 0 | G39: 0 | L39: USD
B40: 2200-40110-122 | C40: AC Power Kit for SoundStation IP 7000. Includes 100-240V, 1.5A, 48V/50W power supply, 1.8m power cord with CEE 7/7 plug and Power Insertion Cable. | D40: 88.08 | E40: 0 | F40: 0 | G40: 0 | L40: USD
B41: 2200-40115-001 | C41: Cable - Console Interconnect Cable for SoundStation IP 7000, 25ft/7.6m CLink 2 cable with Walta to Walta connectors. Connects two (2) SoundStation IP 7000 consoles together. | D41: 24.24 | E41: 0 | F41: 0 | G41: 0 | L41: USD
B42: 2200-40250-025 | C42: Consultalo con tu ejecutivo | E42: 0 | F42: 0 | G42: 0
B43: 2200-40350-001 | C43: Universal Power Supply for VVX 100 and 200 Series. 5-pack, 12V, 0.5A, NA power plug. | D43: 60.61 | E43: 0 | F43: 0 | G43: 0 | L43: USD
B44: 2200-40450-019 | C44: Microsoft Skype for Business/Lync edition VVX 201 2-line Desktop Phone with HD Voice, dual 10/100 Ethernet ports and Polycom UCS SfB/Lync License. Ships without power supply. | D44: 92.27 | E44: 0 | F44: 0 | G44: 0 | L44: USD
B45: 2200-40450-025 | C45: VVX 201 2-line Desktop Phone with dual 10/100 Ethernet ports. PoE only. Ships without power supply. | D45: 84.32 | E45: 0 | F45: 0 | G45: 0 | L45: USD
B46: 2200-41220-001 | C46: Cable-Two (2) expansion microphone cables, 2.1m/7ft for SoundStation Duo, Poly Trio 8800/8500, SoundStation IP 6000, SoundStation2 EX | D46: 24.31 | E46: 0 | F46: 0 | G46: 0 | L46: USD
B47: 2200-41220-002 | C47: Cable-Two (2) expansion microphone cables, 4.5m/15ft for SoundStation VTX 1000, SoundStation2 EX, SoundStation2W (Expandable), SoundStation Duo, SoundStation IP 6000, and Poly Trio 8800/8500 | D47: 24.31 | E47: 0 | F47: 0 | G47: 0 | L47: USD
B48: 2200-42740-001 | C48: Kit de alimentación de CA para SoundStation ip 6000 y Touch Control. Incluye fuente de alimentación 100-240V, 0.4A, 48VDC | D48: 88.35 | E48: 0 | F48: 0 | G48: 0 | L48: USD
B49: 2200-42740-122 | C49: Consultalo con tu ejecutivo | E49: 0 | F49: 0 | G49: 0
B50: 2200-43240-001 | C50: AC Power Kit for SoundStation IP5000. Includes 100-240VAC, 0.4A, 48VDC/19W power supply, 1.8m/6ft power cord with NA plug and a Power Insertion Cable (PIC). | D50: 88.08 | E50: 0 | F50: 0 | G50: 0 | L50: USD
B51: 2200-44500-019 | C51: Consultalo con tu ejecutivo | E51: 0 | F51: 0 | G51: 0
B52: 2200-44600-025 | C52: Consultalo con tu ejecutivo | E52: 0 | F52: 0 | G52: 0
B53: 2200-46162-019 | C53: Consultalo con tu ejecutivo | E53: 0 | F53: 0 | G53: 0
B54: 2200-46170-001 | C54: Universal Power Supply for VVX 300, 310, 400, 410. 1-pack, 48V, 0.4A, NA power plug. | D54: 20.2 | E54: 0 | F54: 0 | G54: 0 | L54: USD
B55: 2200-46200-025 | C55: Consultalo con tu ejecutivo | E55: 0 | F55: 0 | G55: 0
B56: 2200-46300-025 | C56: VVX Expansion Module | D56: 84.85 | E56: 0 | F56: 0 | G56: 0 | L56: USD
B57: 2200-46350-025 | C57: VVX Color Expansion Module for VVX 300 Series, 400 Series, 500 Series and 600 Series. Includes AUX cable and attachment hardware. | D57: 181.82 | E57: 0 | F57: 0 | G57: 0 | L57: USD
B58: 2200-48300-019 | C58: Microsoft Skype for Business/Lync edition VVX 301 6-line Desktop Phone with HD Voice, dual 10/100 Ethernet ports and Polycom UCS SfB/Lync License. Ships without power supply. | D58: 102.88 | E58: 0 | F58: 0 | G58: 0 | L58: USD
B59: 2200-48300-025 | C59: Consultalo con tu ejecutivo | E59: 0 | F59: 0 | G59: 0
B60: 2200-48350-019 | C60: Consultalo con tu ejecutivo | E60: 0 | F60: 0 | G60: 0
B61: 2200-48350-025 | C61: VVX 311 6-line Desktop Phone Gigabit Ethernet with HD Voice. Compatible Partner platforms: 20. POE. Ships without power supply. | D61: 116.14 | E61: 0 | F61: 0 | G61: 0 | L61: USD
B62: 2200-48400-019 | C62: Consultalo con tu ejecutivo | E62: 0 | F62: 0 | G62: 0
B63: 2200-48400-025 | C63: VVX 401 12-line Desktop Phone with HD Voice. Compatible Partner platforms: 20. POE. Ships without power supply. | D63: 137.35 | E63: 0 | F63: 0 | G63: 0 | L63: USD
B64: 2200-48450-019 | C64: Microsoft Skype for Business/Lync edition VVX 411 12-line Desktop Phone with HD Voice, GigE and Polycom UCS SfB/Lync License. Ships without power supply. | D64: 166.52 | E64: 0 | F64: 0 | G64: 0 | L64: USD
B65: 2200-48450-025 | C65: VVX 411 12-line Desktop Phone Gigabit Ethernet with HD Voice. Compatible Partner platforms: 20. POE. Ships without power supply. | D65: 158.56 | E65: 0 | F65: 0 | G65: 0 | L65: USD
B66: 2200-48500-019 | C66: Microsoft Skype for Business/Lync edition VVX 501 12-line Desktop Phone with HD Voice, GigE and Polycom UCS SfB/Lync License. Ships without power supply. | D66: 208.94 | E66: 0 | F66: 0 | G66: 0 | L66: USD
B67: 2200-48500-025 | C67: VVX 501 12-line Business Media Phone with HD Voice. Compatible Partner platforms: 20. POE. Ships without power supply. | D67: 200.98 | E67: 0 | F67: 0 | G67: 0 | L67: USD
B68: 2200-48560-001 | C68: Universal Power Supply for VVX 301/311/401/411/501/601. 1-pack, 48V, 0.52A, NA, Taiwan and Japan power plug. | D68: 24.24 | E68: 0 | F68: 0 | G68: 0 | L68: USD
B69: 2200-48570-001 | C69: Consultalo con tu ejecutivo | E69: 0 | F69: 0 | G69: 0
B70: 2200-48600-019 | C70: Microsoft Skype for Business/Lync edition VVX 601 16-line Desktop Phone with HD Voice, Bluetooth, GigE and Polycom UCS SfB/Lync License. Ships without power supply. | D70: 261.97 | E70: 0 | F70: 0 | G70: 0 | L70: USD
B71: 2200-48600-025 | C71: VVX 601 16-line Business Media Phone with built-in Bluetooth and HD Voice. Compatible Partner platforms: 20. POE. Ships without power supply. | D71: 254.02 | E71: 0 | F71: 0 | G71: 0 | L71: USD
B72: 2200-48810-025 | C72: VVX 150 2-line Desktop Business IP Phone with dual 10/100 Ethernet ports. PoE only. Ships without power supply. 3 year partner premier service is included for China | D72: 47.2 | E72: 0 | F72: 0 | G72: 0 | L72: USD
B73: 2200-48820-019 | C73: Microsoft Skype for Business edition VVX 250 4-line Desktop Business IP Phone with HD Voice, dual 10/100/1000 Ethernet ports and Polycom UCS SfB/Lync License. Ships without power supply. 3 year partner premier service is included for China | D73: 111.84 | E73: 0 | F73: 0 | G73: 0 | L73: USD
B74: 2200-48820-025 | C74: VVX 250 4-line Desktop Business IP Phone with dual 10/100/1000 Ethernet ports. PoE only. Ships without power supply. 3 year partner premier service is included for China. | D74: 94.92 | E74: 0 | F74: 0 | G74: 0 | L74: USD
B75: 2200-48830-019 | C75: Microsoft Skype for Business edition VVX 350 6-line Desktop Business IP Phone with HD Voice, dual 10/100/1000 Ethernet ports and Polycom UCS SfB/Lync License. Ships without power supply. 3 year partner premier service is included for China. | D75: 146.42 | E75: 0 | F75: 0 | G75: 0 | L75: USD
B76: 2200-48830-025 | C76: VVX 350 6-line Desktop Business IP Phone with dual 10/100/1000 Ethernet ports. PoE only. Ships without power supply. 3 year partner premier service is included for China. | D76: 126.74 | E76: 0 | F76: 0 | G76: 0 | L76: USD
B77: 2200-48840-019 | C77: Microsoft Skype for Business edition VVX 450 12-line Desktop Business IP Phone with HD Voice, dual 10/100/1000 Ethernet ports and Polycom UCS SfB/Lync License. Ships without power supply. 3 year partner premier service is included for China. | D77: 169.48 | E77: 0 | F77: 0 | G77: 0 | L77: USD
B78: 2200-48840-025 | C78: VVX 450 12-line Desktop Business IP Phone with dual 10/100/1000 Ethernet ports. PoE only. Ships without power supply. 3 year partner premier service is included for China. | D78: 147.95 | E78: 0 | F78: 0 | G78: 0 | L78: USD
B79: 2200-48872-001 | C79: Universal Power Supply for VVX 150, 250, 350, 450. 1-pack, 5V, 3A, NA power plug. Fixed blade. 1pk | D79: 14.55 | E79: 0 | F79: 0 | G79: 0 | L79: USD
B80: 2200-48890-025 | C80: Color Expansion Module for VVX 450 | D80: 181.82 | E80: =D80*A80 -> 0 | F80: =E80*16% -> 0 | G80: =E80+F80 -> 0 | L80: USD
B81: 2200-49000-025 | C81: Consultalo con tu ejecutivo | E81: 0 | F81: 0 | G81: 0
B82: 2200-49230-001 | C82: VVX D230 DECT Base Station with DECT Handset. 1920-1930Mhz DECT. Ships with universal power supply with NA Adapter. | D82: 146.28 | E82: 0 | F82: 0 | G82: 0 | L82: USD
B83: 2200-49235-001 | C83: VVX D230 DECT Handset and charging cradle. 1920-1930Mhz. Ships with universal power supply with NA Adapter | D83: 82.45 | E83: 0 | F83: 0 | G83: 0 | L83: USD
B84: 2200-49530-001 | C84: OBi300 Universal Voice Adapter with USB, 1 FXS port, SIP | D84: 47.73 | E84: 0 | F84: 0 | G84: 0 | L84: USD
B85: 2200-49532-001 | C85: Consultalo con tu ejecutivo | E85: 0 | F85: 0 | G85: 0
B86: 2200-49700-019 | C86: CCX 400 Business Media Phone. Microsoft Teams/SFB. PoE. Ships without power supply | D86: 237.21 | E86: 0 | F86: 0 | G86: 0 | L86: USD
B87: 2200-49700-025 | C87: CCX 400 Business Media Phone. Open SIP. PoE. Ships without power supply | D87: 237.21 | E87: 0 | F87: 0 | G87: 0 | L87: USD
B88: 2200-49710-019 | C88: CCX 500 Business Media Phone without handset. Microsoft Teams/SFB. PoE only. Ships without power supply | D88: 292.02 | E88: 0 | F88: 0 | G88: 0 | L88: USD
B89: 2200-49720-019 | C89: CCX 500 Business Media Phone. Microsoft Teams/SFB. PoE only. Ships without power supply | D89: 336.68 | E89: 0 | F89: 0 | G89: 0 | L89: USD
B90: 2200-49720-025 | C90: CCX 500 Business Media Phone. Open SIP. PoE. Ships without power supply | D90: 336.68 | E90: 0 | F90: 0 | G90: 0 | L90: USD
B91: 2200-49750-025 | C91: CCX 700 Business Media Phone. Open SIP. PoE. Ships without power supply | D91: 487.23 | E91: 0 | F91: 0 | G91: 0 | L91: USD
B92: 2200-49760-001 | C92: Universal Power Supply for CCX 500/600/700. 1-pack, 48V, 0.52A, NA, and Taiwan power plug. | D92: 28.28 | E92: 0 | F92: 0 | G92: 0 | L92: USD
B93: 2200-49770-019 | C93: CCX 600 Business Media Phone without handset. Microsoft Teams/SFB. PoE only. Ships without power supply | D93: 375.53 | E93: 0 | F93: 0 | G93: 0 | L93: USD
B94: 2200-49780-019 | C94: CCX 600 Business Media Phone. Microsoft Teams/SFB. PoE only. Ships without power supply | D94: 395.08 | E94: 0 | F94: 0 | G94: 0 | L94: USD
B95: 2200-49780-025 | C95: CCX 600 Business Media Phone. Open SIP. PoE. Ships without power supply | D95: 396.28 | E95: 0 | F95: 0 | G95: 0 | L95: USD
B96: 2200-49800-001 | C96: POLY EDGE B10 IP PHONE,PSU,NA | D96: 69.66 | E96: 0 | F96: 0 | G96: 0 | L96: USD
B97: 2200-49805-025 | C97: POLY EDGE B20 IP PHONE,POE | D97: 69.66 | E97: 0 | F97: 0 | G97: 0 | L97: USD
B98: 2200-49825-025 | C98: POLY EDGE B30 IP PHONE,POE | D98: 82.96 | E98: 0 | F98: 0 | G98: 0 | L98: USD
B99: 2200-63880-001 | C99: CX5500 Unified Conference Station for Microsoft Lync, use as a USB device or as a stand alone SIP audio conference phone. Includes power-data box, cables, documentation. Power cord: AMER-Type B, NEMA 5-15. | D99: 4841.43 | E99: 0 | F99: 0 | G99: 0 | L99: USD
B100: 2200-65790-001 | C100: Expansion Microphone kit for Polycom Trio 8800/8500. Incl. two expansion microphones and two 2.1m/7ft cables. | D100: 198.58 | E100: 0 | F100: 0 | G100: 0 | L100: USD
B101: 2200-66070-001 | C101: RealPresence Trio 8800 IP conference phone with built-in Wi-Fi, Bluetooth and NFC. 802.af/at Power over Ethernet. SHIPS WITHOUT POWER KIT. Incl. 7.6m/25ft Ethernet cable, 1.8m/6ft USB 2.0 cable and Setup Sheet. | D101: 569.45 | E101: 0 | F101: 0 | G101: 0 | L101: USD
B102: 2200-66070-019 | C102: Skype for Business/O365/Lync Edition RealPresence Trio 8800 conf. phone with Polycom UCS SfB Lic., built-in Wi-Fi, Bluetooth and NFC. 802.af/at PoE. NO PWR KIT. Incl. 7.6m/25ft Ethernet cable, 1.8m/6ft USB cable (CHINA: incl. 3 yr Partner Premier) | D102: 847.95 | E102: 0 | F102: 0 | G102: 0 | L102: USD
B103: 2200-66700-019 | C103: Skype for Business/O365/Lync Edition Polycom Trio 8500 conf. phone with Polycom UCS SfB Lic., built-in Bluetooth. 802.3af PoE. NO PWR KIT. Incl. 7.6m/25ft Ethernet cable. Brazil only. | D103: 582.8 | E103: 0 | F103: 0 | G103: 0 | L103: USD
B104: 2200-66700-025 | C104: Polycom Trio 8500 IP conference phone with built-in Bluetooth. 802.3af Power over Ethernet. SHIPS WITHOUT POWER KIT. Incl. 7.6m/25ft Ethernet cable, and Setup Sheet. (CHINA: incl. 3 yr Partner Premier) | D104: 409.88 | E104: 0 | F104: 0 | G104: 0 | L104: USD
B105: 2200-66740-001 | C105: Power Kit for Polycom Trio 8500. Incl. 100-240V, 0.8A, 56V/30W, IEEE 802.3at compliant mid-span power injector for 10/100/1000 Mbps Ethernet. Ships with 1.8m/6ft power cord with NA plug and 2.1m/7ft Ethernet cable. | D105: 112.32 | E105: 0 | F105: 0 | G105: 0 | L105: USD
B106: 2200-66800-025 | C106: Polycom TRIO 8300 OPENSIP CONF PHONE - POE WIFI BLUETOOTH W / 7.6M / 25FT IN | D106: 318.69 | E106: 0 | F106: 0 | G106: 0 | L106: USD
B107: 2200-66840-001 | C107: Power Kit for Poly Trio 8300 and Poly EagleEye Cube USB. Incl. 100-240V, 0.8A, 56V/15.4W, IEEE 802.3af compliant mid-span power injector for 10/100/1000 Mbps Ethernet. Ships with 1.8m/6ft power cord with NA plug and 2.1m/7ft Ethernet cable. | D107: 112.32 | E107: 0 | F107: 0 | G107: 0 | L107: USD
B108: 2200-69370-034 | C108: Poly Studio P15, Open Ecosystem, 4K Camera, Integrated Speaker, 3 x Mic; (1) USB 3.0 Type C to Type C, 1.5m; NTSC/PAL; Power:MEX and CARIB-Type B,NEMA 5-15. | D108: 427.38 | E108: 0 | F108: 0 | G108: 0 | L108: USD
B109: 2200-69631-001 | C109: Consultalo con tu ejecutivo | E109: 0 | F109: 0 | G109: 0
B110: 2200-71830-000 | C110: Consultalo con tu ejecutivo | E110: 0 | F110: 0 | G110: 0
B111: 2200-85010-001 | C111: EE Mini USB camera for use with the VVX 501 and VVX 601 Business Media phones. Includes mount/adapter for the phone. | D111: 104.24 | E111: 0 | F111: 0 | G111: 0 | L111: USD
B112: 2200-85250-001 | C112: Poly IP Table Microphone Array: Contains one Microphone Array and one 25' CAT 5E SHLD Ethernet cable. Compatible with Poly G7500 codec. | D112: 404.45 | E112: 0 | F112: 0 | G112: 0 | L112: USD
B113: 2200-85920-001 | C113: Consultalo con tu ejecutivo | E113: 0 | F113: 0 | G113: 0
B114: 2200-85970-034 | C114: POLY STUDIO X50 4K Video Conf/Collab/Wireless Pres Sys:4K 5x EPTZ auto-track Cam,Codec,Stereo Spkrphone,Wall Mount Kit;Cables:2 HDMI 1.83m,1 CAT5E LAN 4.57m;NTSC/PAL;Pwr:MEX and CARIB-Type B,NEMA 5-15.Includes 1YR Premier Srvc. | D114: 2254.46 | E114: 0 | F114: 0 | G114: 0 | L114: USD
B115: 2200-85980-034 | C115: POLY STUDIO X30 4K Video Conf/Collab/Wireless Pres Sys:4K 4x EPTZ auto-track Cam,Codec,Stereo Spkrphone,Monitor Clamp Kit;Cables:1 HDMI 1.83m,1 CAT5E LAN 4.57m;NTSC/PAL;Power:MEX and CARIB-Type B,NEMA 5-15.Includes 1YR Premier Srvc. | D115: 1489.15 | E115: 0 | F115: 0 | G115: 0 | L115: USD
B116: 2200-86260-034 | C116: POLY STUDIO X30 & TC8; 4K Video Conf/Collab/Wireless Pres Sys:Touch Cntrl,4K 4x EPTZ auto-track Cam,Codec,Stereo Spkrphone,Monitor Clamp Kit;Cables:1 HDMI 1.83m,1 CAT5E LAN 4.57m;NTSC/PAL;Pwr:MEX and CARIB - Type B,NEMA 5-15.Includes 1YR Premier Srvc. | D116: 1936.12 | E116: 0 | F116: 0 | G116: 0 | L116: USD
B117: 2200-86270-034 | C117: POLY STUDIO X50 & POLY TC8 4K Video Conf/Collab/Wireless Pres Sys:Touch Cntrl,4K 5x EPTZ auto-track 120-deg FOV Cam,Codec,Stereo Spkrphone,Wall Mount;2 HDMI 1.83m,1 CAT5E LAN 4.57m;NTSC/PAL;Pwr:MEX and CARIB-Type B,NEMA 5-15.Includes 1YR Premier Srvc. | D117: 2610.52 | E117: 0 | F117: 0 | G117: 0 | L117: USD
B118: 2200-86430-001 | C118: Expansion Microphone Kit for Poly Trio C60. Includes two expansion microphones with 2.1m/7ft cables. | D118: 198.58 | E118: 0 | F118: 0 | G118: 0 | L118: USD
B119: 2200-86570-019 | C119: Poly Trio C60 IP conference phone for Microsoft Teams/SfB with built-in Wi-Fi, Bluetooth and DECT (for future use) for LATIN AMERICA. PoE. Includes 7.6m/25ft Ethernet cable and Setup Sheet. POWER KIT NOT INCLUDED. | D119: 658.63 | E119: 0 | F119: 0 | G119: 0 | L119: USD
B120: 2200-86610-025 | C120: Poly Trio C60 IP conference phone with built-in Wi-Fi, Bluetooth and DECT (for future use) for LATIN AMERICA. PoE. Includes 7.6m/25ft Ethernet cable and Setup Sheet. POWER KIT NOT INCLUDED. | D120: 660.64 | E120: 0 | F120: 0 | G120: 0 | L120: USD
B121: 2200-86680-001 | C121: Power Kit for Poly Trio C60. Incl. 100-240V, 1.0A, 55V/30W, IEEE 802.3at compliant mid-span power injector for 10/100/1000 Mbps Ethernet. Ships with 1.8m/6ft power cord with NA plug and 2.1m/7ft Ethernet cable. | D121: 85.11 | E121: 0 | F121: 0 | G121: 0 | L121: USD
B122: 2200-87070-001 | C122: Poly Studio P5, Worldwide, Open Ecosystem, 1080p Camera and (1) Mic; USB Powered, USB 2.0 Type A | D122: 77.41 | E122: 0 | F122: 0 | G122: 0 | L122: USD
B123: 2200-87090-001 | C123: Studio E70 auto-framing 4k USB camera w/dual lens, multi-mic array. Digital pan, tilt, zoom. Power via PoE IEEE 802.3af. Cables: 2m USB A-C, 4.6m LAN. Wall mt brkt. ORDER SEPARATELY IF NEEDED: PoE Injector (2200-86680-001); Disp Clamp (2215-87419-001). | D123: 3844.38 | E123: 0 | F123: 0 | G123: 0 | L123: USD
B124: 2200-87100-034 | C124: Poly Studio P21, 21.5" 1080p USB All-In-One Monitor; Open Eco System; USB A to C cable, with an adapter (AF to CM), Color Grey, 1.3m; NTSC/PAL; Power:MEX and CARIB-Type B,NEMA 5-15 | D124: 550.21 | E124: 0 | F124: 0 | G124: 0 | L124: USD
B125: 2201-52757-002 | C125: Control remoto para RealPresence Group Series | D125: 202.02 | E125: 0 | F125: 0 | G125: 0 | L125: USD
B126: 2201-52885-001 | C126: Poly Bluetooth Remote Control, 2 AAA batteries included. Compatible with Poly G7500 and Studio X family. | D126: 120.4 | E126: 0 | F126: 0 | G126: 0 | L126: USD
B127: 2201-52889-001 | C127: Polycom Studio BT remote control, for use with the Polycom Studio only. Includes 2 AAA batteries. | D127: 80.24 | E127: 0 | F127: 0 | G127: 0 | L127: USD
B128: 2215-07155-001 | C128: Expansion (EX) microphone kit for SoundStation VTX 1000 and SoundStation IP6000. Includes two EX mics and two 7ft/2.1m cables. Does not include China | D128: 250.46 | E128: 0 | F128: 0 | G128: 0 | L128: USD
B129: 2215-10445-001 | C129: Cable de alimentacion | D129: 14.84 | E129: 0 | F129: 0 | G129: 0 | L129: USD
B130: 2215-28454-002 | C130: Privacy cover for the EagleEye IV camera. Warranty not available for this item. | D130: 24.06 | E130: 0 | F130: 0 | G130: 0 | L130: USD
B131: 2215-30711-001 | C131: Poly Group Series PC Wall and VESA Mounting Kit, Compatible with the PC Based Room Solutions. | D131: 162.11 | E131: 0 | F131: 0 | G131: 0 | L131: USD
B132: 2215-61727-001 | C132: Camera Mounting for Eagle Eye IV USB. Mounts on the wall/ceiling/flat surfaces from 22mm to 80mm wide. | D132: 125.25 | E132: 0 | F132: 0 | G132: 0 | L132: USD
B133: 2215-63885-001 | C133: RealPresence tabletop Microphone Array: Contains one Microphone Array and one 7.6m/25' CLink 2 cable. Compatible with Group Series, Centro and SoundStructure | D133: 484.04 | E133: 0 | F133: 0 | G133: 0 | L133: USD
B134: 2215-64200-001 | C134: EagleEye Digital Extender, extend the EagleEye IV or EE Acoustic/Cube (sans audio) cameras up to 100m from the codec via customer provided Cat 5e cable. Includes: transmitter, receiver and 1m HDCI/mini-HDCI digital cable. (order power cord separately) | D134: 1418.43 | E134: 0 | F134: 0 | G134: 0 | L134: USD
B135: 2215-65169-002 | C135: Mounting Bracket for RealPresence Group 3XD and 500. Allows EagleEye camera and codec to be mounted tohether. Update for stacking of eagleEye Producer. Recommmends use of 2215-68675-001 mounting bracket for wall/display mounting | D135: 80 | E135: 0 | F135: 0 | G135: 0 | L135: USD
B136: 2215-65951-001 | C136: CX5500/CX5100 Extension Microphone Kit. Includes pair of microphones and cables. | D136: 290.1 | E136: 0 | F136: 0 | G136: 0 | L136: USD
B137: 2215-68675-001 | C137: Universal Camera Mounting for EagleEyeIV-12xand4x. Mounts on the wall/other flat surfaces over 6.5in deep or flat screen displays greater than 5/8in thick. Includes tripod mount. Also supports EagleEye Director, EagleEye HD, EagleEye III, EagleEye View. | D137: 125.25 | E137: 0 | F137: 0 | G137: 0 | L137: USD
B138: 2215-69791-034 | C138: EagleEye Producer for EagleEye IV camera - For all Group Series running 4.2 or later. Incl EagleEye Producer sys., 1 mini-HDCI to HDCI cable, 1 mini-HDCI(f) to HDCI cable, power supply/cord: MEX and CARIB - Type B, NEMA 5-15. Includes 1 Yr Premier Srvc | D138: 1664.65 | E138: 0 | F138: 0 | G138: 0 | L138: USD
B139: 2215-85360-001 | C139: Poly IP Ceiling Microphone Array-White: Contains Electronics Interface, Wall Plate, one IP Ceiling Microphone Array and 1 Ethernet Plenum 50 ft, 1 CAT 5E SHLD 7ft, 1 cable assy 6-6p XLR White 24 ft CM4. Compatible with Poly G7500 codec. | D139: 807.27 | E139: 0 | F139: 0 | G139: 0 | L139: USD
B140: 2215-86418-001 | C140: Poly Studio X50 Optional Vesa Mounting Kit. Compatible with the Studio X50. | D140: 186.38 | E140: 0 | F140: 0 | G140: 0 | L140: USD
B141: 2215-86512-001 | C141: Poly Studio X30 Optional Mounting Kits, includes one each of the following:Vesa Mounting Kit, and Wall Mounting Kit. Compatible with the Studio X30. | D141: 81 | E141: 0 | F141: 0 | G141: 0 | L141: USD
B142: 2215-86719-001 | C142: Poly Studio X30 Mounting Kit with Inverted Mount Option - VESA Mount which includes wall mounting plate, adapter brackets, and mounting screws. Works with most monitors up to 50"- 65" | D142: 120.77 | E142: 0 | F142: 0 | G142: 0 | L142: USD
B143: 2215-87249-001 | C143: Consultalo con tu ejecutivo | E143: 0 | F143: 0 | G143: 0
B144: 2215-87372-001 | C144: Poly Studio E70 Optional Vesa Mounting Kit. Compatible with the Studio E70. | D144: 186.39 | E144: =D144*A144 -> 0 | F144: =E144*16% -> 0 | G144: =E144+F144 -> 0 | L144: USD
B145: 2230-40300-001 | C145: SoundStation IP 7000 (SIP) conf phone. AC pwr or 802.3af Power over Ethernet. Incl 100-240V power supply, 1.5A, 48V/50W; NA power plug; 25ft/7.6m Cat5 shielded Ethernet cable; Pwr Insert Cable. Expandable. Does not include Brazil. | D145: 768.41 | E145: 0 | F145: 0 | G145: 0 | L145: USD
B146: 2230-70240-000 | C146: Consultalo con tu ejecutivo | E146: 0 | F146: 0 | G146: 0
B147: 2342-65920-001 | C147: EagleEye Producer mounting bracket, extensions to be used with Universal Camera Mounting (2215-68675-001) or other EagleEye IV Polycom mounting solutions to secure EagleEye Producer to bracket. Includes: brackets, hardware and directions. | D147: 39.6 | E147: 0 | F147: 0 | G147: 0 | L147: USD
B148: 2457-19047-001 | C148: Cable - 3.5mm mobile device cable 1.2m/4ft for use with SoundStation2s with LCD and 2W, SSIP 7000, SS Duo and VoiceStation 500. For devices with iPhone (R) style wiring and wiring used by many Samsung, Sony Mobile Communications and Nokia mobile devices | D148: 15.4 | E148: 0 | F148: 0 | G148: 0 | L148: USD
B149: 2457-20202-003 | C149: Replacement USB 2.0 cable for Poly Trio 8800. 2m/6.6ft cable with right-angle right Micro-B/male with latch to Type A/male for using Poly Trio 8800 as USB speakerphone for VoIP calls via computer based applications. | D149: 15.35 | E149: 0 | F149: 0 | G149: 0 | L149: USD
B150: 2457-23216-002 | C150: CLink 2 Cable, Group Series microphone array cable. Walta to Walta. 7.6 m/25 ft. Connects Group Series microphone to Group Series microphone or Group Series microphone to Group Series codec. 7.6 meter Not compatible with HDX microphone array. | D150: 40.4 | E150: 0 | F150: 0 | G150: 0 | L150: USD
B151: 2457-25646-001 | C151: CLink 2 adapter. Walta (M -codec side) to RJ-45 (F) 18 adapter cable. For connecting Ceiling Microphone Array or other RJ-45 CLink 2 or custom cable to Group Series, HDX series codecs and Polycom SoundStructure. | D151: 32.42 | E151: 0 | F151: 0 | G151: 0 | L151: USD
B152: 2457-26765-072 | C152: Extended length White drop cable for connecting Spherical Ceiling Microphone Array element to CLink2 electronics interface. 6ft (1.8m) long. Used with 2200-23809-002 and 2200-23810-002. Not for use on IP Ceiling microphone kits. Replaces 2457-24701-003 | D152: 145.9 | E152: 0 | F152: 0 | G152: 0 | L152: USD
B153: 2457-29051-001 | C153: CLink 2 cable, Group Series and HDX microphone array cable. Walta to Walta, 50 ft. Supports connections between devices with CLink 2 ports. Used for first microphone array to codec/SoundStructure input only. | D153: 201.82 | E153: 0 | F153: 0 | G153: 0 | L153: USD
B154: 2457-30757-001 | C154: CBL,USB 3.1,TYPE A TO TYPE C,10M | D154: 282.88 | E154: 0 | F154: 0 | G154: 0 | L154: USD
B155: 2457-30757-025 | C155: CBL,USB 3.1,TYPE A TO TYPE C,25M | D155: 688.15 | E155: 0 | F155: 0 | G155: 0 | L155: USD
B156: 2457-30757-040 | C156: CBL,USB 3.1,TYPE A TO TYPE C,40M | D156: 1012.36 | E156: 0 | F156: 0 | G156: 0 | L156: USD
B157: 2457-30757-125 | C157: 25M active optical USB 3.1 cable, Type A to C. Slim type C connector shell | D157: 688.15 | E157: 0 | F157: 0 | G157: 0 | L157: USD
B158: 2457-30757-140 | C158: 40M active optical USB 3.1 cable, Type A to C. Slim type C connector shell | D158: 1013.13 | E158: 0 | F158: 0 | G158: 0 | L158: USD
B159: 2457-64356-001 | C159: Consultalo con tu ejecutivo | E159: 0 | F159: 0 | G159: 0
B160: 2457-64356-101 | C160: Camera Cable for EagleEye IV cameras mini-HDCI(M) to HDCI(M). 10m digital cable. Connects EagleEye IV cameras to Group Series codec as main or secondary camera. | D160: 201.21 | E160: 0 | F160: 0 | G160: 0 | L160: USD
B161: 2457-85517-001 | C161: Polycom Studio / Studio X / G7500 USB cable to computing platform. For use with Studio USB, Device Mode on G7500, Studio X30 and Studio X50. USB 2.0, connector type A to C, 5m. | D161: 64.03 | E161: 0 | F161: 0 | G161: 0 | L161: USD
B162: 2675-52709-001 | C162: Caster kit for RealPresence Group Series Media Centers. Supported on dual 43", single/dual 55" and single 65" display. Set of 4, 2 locking for use in front, 4" casters. | D162: 207.49 | E162: 0 | F162: 0 | G162: 0 | L162: USD
B163: 4864-05105-206 | C163: Consultalo con tu ejecutivo | E163: 0 | F163: 0 | G163: 0
B164: 4864-05105-207 | C164: Consultalo con tu ejecutivo | E164: 0 | F164: 0 | G164: 0
B165: 4864-05105-208 | C165: Consultalo con tu ejecutivo | E165: 0 | F165: 0 | G165: 0
B166: 4864-05108-102 | C166: Consultalo con tu ejecutivo | E166: 0 | F166: 0 | G166: 0
B167: 4864-05108-103 | C167: Consultalo con tu ejecutivo | E167: 0 | F167: 0 | G167: 0
B168: 4864-05215-001 | C168: Consultalo con tu ejecutivo | E168: 0 | F168: 0 | G168: 0
B169: 4864-05216-001 | C169: Consultalo con tu ejecutivo | E169: 0 | F169: 0 | G169: 0
B170: 4870-00304-386 | C170: Three Year Partner Warranty, HW Only for SoundStation IP or Duo phones with 10-day return to factory. See "Partner Warranty" Service Description for ordering information. Priced per phone. | D170: 44.19 | E170: 0 | F170: 0 | G170: 0 | L170: USD
B171: 4870-09900-660 | C171: Consultalo con tu ejecutivo | E171: 0 | F171: 0 | G171: 0
B172: 4870-09902-600 | C172: Consultalo con tu ejecutivo | E172: 0 | F172: 0 | G172: 0
B173: 4870-09902-670 | C173: Polycom One Touch Dial (cloud service) for Polycom endpoints. Provides Tenant registration, Trial, and 1-year production services of OTD functionality for Polycom endpoints. Incl. community support only. | D173: 0.01 | E173: 0 | F173: 0 | G173: 0 | L173: USD
B174: 4870-19000-112 | C174: Premier, One Year, priced per SoundStation Duo (Premier service contract REQUIRES 100% coverage) | D174: 53.12 | E174: 0 | F174: 0 | G174: 0 | L174: USD
B175: 4870-30760-103 | C175: Consultalo con tu ejecutivo | E175: 0 | F175: 0 | G175: 0
B176: 4870-30760-112 | C176: Premier, One Year, Poly TC8 | D176: 77.27 | E176: 0 | F176: 0 | G176: 0 | L176: USD
B177: 4870-40450-RTF | C177: Limited Lifetime Hardware Replacement Service for VVX 201 | D177: 11.59 | E177: 0 | F177: 0 | G177: 0 | L177: USD
B178: 4870-48350-RTF | C178: Garantia de remplazo VVX 311 | D178: 11.59 | E178: 0 | F178: 0 | G178: 0 | L178: USD
B179: 4870-48810-HWR | C179: One Year Hardware Replacement, VVX 150. Provides 8X5 Tier 1 and Next Business Day Advance Replacement. Avail only at prod purch.See Service Description for Terms and Conditions. MSRP/Device. | D179: 3.38 | E179: 0 | F179: 0 | G179: 0 | L179: USD
B180: 4870-48810-RTF | C180: Limited Lifetime Hardware Replacement, VVX 150. Provides 8X5 Tier 1 and 10 Day Return to Factory Parts Replacement. Available only at time of product purchase. See Service Description for Terms and Conditions. MSRP/phone. | D180: 11.59 | E180: 0 | F180: 0 | G180: 0 | L180: USD
B181: 4870-48820-HWR | C181: One Year Hardware Replacement, VVX 250. Provides 8X5 Tier 1 and Next Business Day Advance Replacement. Avail only at prod purch. See Service Description for Terms and Conditions. MSRP/Device. | D181: 3.38 | E181: 0 | F181: 0 | G181: 0 | L181: USD
B182: 4870-48820-RTF | C182: Limited Lifetime Hardware Replacement, VVX 250. Provides 8X5 Tier 1 and 10 Day Return to Factory Parts Replacement. Available only at time of product purchase. See Service Description for Terms and Conditions. MSRP/phone. | D182: 11.59 | E182: 0 | F182: 0 | G182: 0 | L182: USD
B183: 4870-48830-HWR | C183: One Year Hardware Replacement, VVX 350. Provides 8X5 Tier 1 and Next Business Day Advance Replacement. Avail only at prod purch. See Service Description for Terms and Conditions. MSRP/Device. | D183: 3.38 | E183: 0 | F183: 0 | G183: 0 | L183: USD
B184: 4870-48840-HWR | C184: One Year Hardware Replacement, VVX 450. Provides 8X5 Tier 1 and Next Business Day Advance Replacement. Avail only at prod purch. See Service Description for Terms and Conditions. MSRP/Device. | D184: 3.38 | E184: 0 | F184: 0 | G184: 0 | L184: USD
B185: 4870-48840-RTF | C185: Limited Lifetime Hardware Replacement, VVX 450. Provides 8X5 Tier 1 and 10 Day Return to Factory Parts Replacement. Available only at time of product purchase. See Service Description for Terms and Conditions. MSRP/phone. | D185: 11.59 | E185: 0 | F185: 0 | G185: 0 | L185: USD
B186: 4870-49720-112 | C186: Premier, One Year, CCX 500 Business Media Phone | D186: 11.59 | E186: 0 | F186: 0 | G186: 0 | L186: USD
B187: 4870-49720-312 | C187: Premier, Three Year, CCX 500 Business Media Phone | D187: 30.91 | E187: 0 | F187: 0 | G187: 0 | L187: USD
B188: 4870-49780-112 | C188: Premier, One Year, CCX 600 Business Media Phone | D188: 13.52 | E188: 0 | F188: 0 | G188: 0 | L188: USD
B189: 4870-49780-312 | C189: Premier, Three Year, CCX 600 Business Media Phone | D189: 36.7 | E189: 0 | F189: 0 | G189: 0 | L189: USD
B190: 4870-49780-HWR | C190: One Year Hardware Replacement, CCX 600 Business Media Phone. 8X5 Tier 1 NBD Adv Replace Avail only at prod purch See Serv Desc for Terms/Cond MSRP/device | D190: 3.86 | E190: 0 | F190: 0 | G190: 0 | L190: USD
B191: 4870-51014-445 | C191: Partner Premier Software Service 8X5, Three Year, RealPresence Clariti Concurrent User License, Perpetual (Qty 150-499 only) | D191: 1179.54 | E191: 0 | F191: 0 | G191: 0 | L191: USD
B192: 4870-51015-445 | C192: Partner Premier Software Service 8X5, Three Year, RealPresence Clariti Concurrent User License, Perpetual (Qty 500+ only) | D192: 1104.54 | E192: 0 | F192: 0 | G192: 0 | L192: USD
B193: 4870-51023-442 | C193: Consultalo con tu ejecutivo | E193: 0 | F193: 0 | G193: 0
B194: 4870-60896-112 | C194: Premier, One Year, EagleEyeIV 12x camera with USB 2.0 interface. Compatible with MSR Skype Room System and Trio 8800/8500 Visual+ Collaboration Kit. | D194: 125.57 | E194: 0 | F194: 0 | G194: 0 | L194: USD
B195: 4870-60896-312 | C195: Premier, Three Year, EagleEye IV 12x camera with USB 2.0 interface. Compatible with Trio 8800/8500 Visual+ Collaboration Kit and other ecosystems. | D195: 338.07 | E195: 0 | F195: 0 | G195: 0 | L195: USD
B196: 4870-60896-801 | C196: Service re-activation fee, For product less than one year out of support coverage | D196: 37.9 | E196: 0 | F196: 0 | G196: 0 | L196: USD
B197: 4870-63430-160 | C197: Partner Premier, One Year, RealPresence Group 500 - 720p: Group 500 HD codec, EagleEye III cam., univ. remote | D197: 1545.45 | E197: 0 | F197: 0 | G197: 0 | L197: USD
B198: 4870-63530-112 | C198: Premier, One Year, Real Presence Group 300-720p: Group 300 HD codec, EagleEye Acoustic camera | D198: 358.35 | E198: 0 | F198: 0 | G198: 0 | L198: USD
B199: 4870-64250-103 | C199: UPGRADE Premier Three Year, 1st Year upgrade, RealPresence Group 500-720p: Group 500 HD codec, EagleEyeIV-12x camera. Available only at time of product purchase (Asia/Japan 1 yr std, CALA 1 yr prem) | D199: 2168.47 | E199: 0 | F199: 0 | G199: 0 | L199: USD
B200: 4870-64250-112 | C200: Premier, One Year, RealPresence Group 500-720p: Group 500 HD codec, EagleEyeIV-12x camera | D200: 1275 | E200: 0 | F200: 0 | G200: 0 | L200: USD
B201: 4870-64250-160 | C201: Partner Premier, One Year, RealPresence Group 500-720p: Group 500 HD codec, EagleEyeIV-12x camera | D201: 900 | E201: 0 | F201: 0 | G201: 0 | L201: USD
B202: 4870-64250-351 | C202: UPGRADE Partner Premier Three Year, 1st yr upgrade, RealPresence Group 500-720p: Group 500 HD codec, EagleEyeIV-12x camera. Available only at time of product purchase (Asia/Japan 1 yr std, CALA 1 yr prem) | D202: 930.68 | E202: 0 | F202: 0 | G202: 0 | L202: USD
B203: 4870-64250-801 | C203: Service re-activation fee, Group 500 720p EE IV, for product less than one year out of support coverage | D203: 432.06 | E203: 0 | F203: 0 | G203: 0 | L203: USD
... 221 more rows

Sheet PANASONIC (hidden)
A3: IMPORTACIONES FABIOLA DE CANCUN, S.A. DE C.V. | D3: Fecha | F3: =TODAY() -> 2026-04-16
A4: Av. Lopez Portillo, SM66, Mza3, Lotes 27 y 28, Cancun, Quintana Roo, Mex. C.P. 77510 | D4: N.º de presupuesto | F4: 000/2022MX
A5: Telefono 998 8873848, 8875514, 8875947, 8873750. | D5: Id. del cliente | F5: IFC930505GC1
A6: ventas@importacionesfabiola.com | D6: Tipo de Cambio USD | F6: 19.88
A7: PRESUPUESTO PARA :
A8: MACHOTE DE COTIZACIONES | D8: Vigencia de la Cotizacion: | F8: =F3+15 -> 2026-05-01
A9: ATN A QUIEN CORRESPONDA: | D9: Autor: | F9: MAXIMO CHAN NOH
A10: MAXIMO CHAN NOH | D10: Movil | F10: 9982169741
A11: GERENTE DE COMPRAS | D11: Movil | F11: 9981623186
D12: Email | F12: maxosan@hotmail.com
A14: Cant. | B14: Modelo | C14: Descripcion del Producto | D14: Precio Unitario | E14: Importe | F14: Iva | G14: Total | H14: Clave | I14: Marca | J14: Grupo | K14: Precio | L14: Moneda
B15: 7160-0487-00-P | C15: Gamber- Johnson Vehicle Docking Station for the Panasonic-G1 Tablet computer. | E15: =D15*A15 -> 0 | F15: =E15*16% -> 0 | G15: =E15+F15 -> 0 | L15: USD
B16: AIO BNESS-B+ | C16: Consultalo con tu ejecutivo | E16: =D16*A16 -> 0 | F16: =E16*16% -> 0 | G16: =E16+F16 -> 0
B17: AIO BNESS-B1+ | C17: Consultalo con tu ejecutivo | E17: 0 | F17: 0 | G17: 0 | L17: USD
B18: AIO BNESS-SMALL | C18: Consultalo con tu ejecutivo | E18: 0 | F18: 0 | G18: 0 | L18: USD
B19: AIO BNESS-W | C19: Consultalo con tu ejecutivo | E19: 0 | F19: 0 | G19: 0 | L19: USD
B20: AIO ESS 100-B | C20: Consultalo con tu ejecutivo | E20: 0 | F20: 0 | G20: 0 | L20: USD
B21: AIO ESS 100-W | C21: Consultalo con tu ejecutivo | E21: 0 | F21: 0 | G21: 0 | L21: USD
B22: AIO ESS 130-B | C22: Consultalo con tu ejecutivo | E22: 0 | F22: 0 | G22: 0 | L22: USD
B23: AIO ESS 230-B | C23: Consultalo con tu ejecutivo | E23: 0 | F23: 0 | G23: 0 | L23: USD
B24: AIO ESS 230-W | C24: Consultalo con tu ejecutivo | E24: 0 | F24: 0 | G24: 0 | L24: USD
B25: AIO Start-B+ | C25: Consultalo con tu ejecutivo | E25: 0 | F25: 0 | G25: 0 | L25: USD
B26: AIO Start-B1+ | C26: Consultalo con tu ejecutivo | E26: 0 | F26: 0 | G26: 0 | L26: USD
B27: AIO Start-W+ | C27: Consultalo con tu ejecutivo | E27: 0 | F27: 0 | G27: 0 | L27: USD
B28: AIO Start-W1+ | C28: Consultalo con tu ejecutivo | E28: 0 | F28: 0 | G28: 0
B29: ALLINONE VIDEOACC | C29: Consultalo con tu ejecutivo | E29: 0 | F29: 0 | G29: 0 | L29: USD
B30: ALLINONE VIDEOACC-W | C30: Consultalo con tu ejecutivo | E30: 0 | F30: 0 | G30: 0 | L30: USD
B31: BNC-3M | C31: Consultalo con tu ejecutivo | E31: 0 | F31: 0 | G31: 0 | L31: USD
B32: BONIFICACION OBSOLETO PANASONIC | C32: Consultalo con tu ejecutivo | E32: 0 | F32: 0 | G32: 0 | L32: USD
B33: BONIFICACION PANASONIC | C33: Consultalo con tu ejecutivo | E33: 0 | F33: 0 | G33: 0 | L33: USD
B34: BONO PM PANASONIC | C34: Consultalo con tu ejecutivo | E34: 0 | F34: 0 | G34: 0 | L34: USD
B35: CANCELACION OBSEQUIO PANASONIC | C35: Consultalo con tu ejecutivo | E35: 0 | F35: 0 | G35: 0 | L35: USD
B36: CANCELACION PANASONIC | C36: Consultalo con tu ejecutivo | E36: 0 | F36: 0 | G36: 0 | L36: USD
B37: CF-195H9AUFP | C37: Consultalo con tu ejecutivo | E37: 0 | F37: 0 | G37: 0 | L37: USD
B38: CF-195H9AXFP | C38: Consultalo con tu ejecutivo | E38: 0 | F38: 0 | G38: 0 | L38: USD
B39: CF-31WFL48FP | C39: Consultalo con tu ejecutivo | E39: 0 | F39: 0 | G39: 0 | L39: USD
B40: CF-31WFLA9MP | C40: Consultalo con tu ejecutivo | E40: 0 | F40: 0 | G40: 0 | L40: USD
B41: CF-33GZ046VM | C41: Toughbook 33 Win10 Pro, Intel Core i5-10310U 1.7GHz (4.4GHz) vPro, 12" QHD Gloved Multi Touch+Digitizer, 16GB, 512GB SSD, Intel WiFi a/b/g/n/ac, TPM 2.0, Bluetooth, Dual Pass, Infrared Webcam, 8MP Cam, Flat, Premium Keyboard | D41: 3611 | E41: 0 | F41: 0 | G41: 0 | L41: USD
B42: CF-53SASZGMP | C42: Consultalo con tu ejecutivo | E42: 0 | F42: 0 | G42: 0
B43: CF-53SASZYMP | C43: Consultalo con tu ejecutivo | E43: 0 | F43: 0 | G43: 0 | L43: USD
B44: CF-AA5713AM | C44: Consultalo con tu ejecutivo | E44: 0 | F44: 0 | G44: 0 | L44: USD
B45: CF-LNDDC80I | C45: Lind 80 Watt Isolated DC Adapter for Forklifts with 20-60 VDC Input hatdware installations (bare wire) | D45: 249 | E45: 0 | F45: 0 | G45: 0 | L45: USD
B46: CHAR-H+AMP | C46: Utilie H+ 100 ExtensionES Adicionales | D46: 12141.26 | E46: 0 | F46: 0 | G46: 0 | L46: USD
B47: CHAR-H+B | C47: Utilie H+ Base 100 Extensiones | D47: 51712.45 | E47: 0 | F47: 0 | G47: 0 | L47: USD
B48: CURSO DE CAPACITACION PANASONIC | C48: Consultalo con tu ejecutivo | E48: 0 | F48: 0 | G48: 0 | L48: USD
B49: DQ-DCC018AD | C49: Consultalo con tu ejecutivo | E49: 0 | F49: 0 | G49: 0
B50: DQ-TCC008AD | C50: Consultalo con tu ejecutivo | E50: 0 | F50: 0 | G50: 0 | L50: USD
B51: DS-PAN-211-P | C51: Consultalo con tu ejecutivo | E51: 0 | F51: 0 | G51: 0
B52: ERROR EN DESCUENTO PANASONIC | C52: Consultalo con tu ejecutivo | E52: 0 | F52: 0 | G52: 0
B53: EXTRAVIO DE MERCANCIA PANASONIC | C53: Consultalo con tu ejecutivo | E53: 0 | F53: 0 | G53: 0
B54: FONDOS COOP PANASONIC | C54: Consultalo con tu ejecutivo | E54: 0 | F54: 0 | G54: 0 | L54: USD
B55: FZ-55A0701TP | C55: LAR MEXICO SPECIFIC, WIN10 PRO MUI, INTEL CORE I5-8365U 1.6GHZ, VPRO, 14.0" HD, 512GB SSD, 8GB, INTEL WI-FI, BLUETOOTH, TPM 2.0, INFRARED WEBCAM, SPANISH KEYBOARD, DVD, FLAT | D55: 2104 | E55: 0 | F55: 0 | G55: 0
B56: FZ-BAZ1908 | C56: 8GB MEMORY FOR FZ-55 MK1 | D56: 144.15 | E56: 0 | F56: 0 | G56: 0 | L56: USD
B57: FZ-G1+WWAN+MicroSD | C57: Consultalo con tu ejecutivo | E57: 0 | F57: 0 | G57: 0 | L57: USD
B58: FZ-G1AAHA9MP | C58: Consultalo con tu ejecutivo | E58: 0 | F58: 0 | G58: 0 | L58: USD
B59: FZ-G1AAHAKMP | C59: Consultalo con tu ejecutivo | E59: 0 | F59: 0 | G59: 0
B60: FZ-G1FA3AXMP | C60: Consultalo con tu ejecutivo | E60: 0 | F60: 0 | G60: 0
B61: FZ-G1FA3LXMP | C61: Consultalo con tu ejecutivo | E61: 0 | F61: 0 | G61: 0 | L61: USD
B62: FZ-G1FS4GXCM | C62: Consultalo con tu ejecutivo | E62: 0 | F62: 0 | G62: 0
B63: FZ-G1J0013CM | C63: Consultalo con tu ejecutivo | E63: 0 | F63: 0 | G63: 0 | L63: USD
B64: FZ-G1U1061VM | C64: Windows 10 Pro, Intel Core i5 7300U 2.60GHz, 10.1" WUXGA Gloved Multi Touch + Digitizer LCD, 256GB Solid State Drive, 8GB, Wi Fi, Bluetooth, Dual Pass (Ch1:none/Ch2:none), Flat, Camera, Infrared Hello Webcam, TPM 2.0, Standard batter | D64: 2419.45 | E64: 0 | F64: 0 | G64: 0 | L64: USD
B65: FZ-G1U1096VM | C65: TOUGHPAD Panasonic FZ-G1, Intel Core i5 2.6 GHz, Dual Pass, 8 MP CAM, 256 GB SSD, 8 GB Ram, Win 10 Pro | D65: 1831 | E65: 0 | F65: 0 | G65: 0 | L65: USD
B66: FZ-G2AZ002VM | C66: Consultalo con tu ejecutivo | E66: 0 | F66: 0 | G66: 0 | L66: USD
B67: FZ-G2AZ00JVM | C67: Tablet de uso rudo de 10" que se convierte fácilmente en una laptop con teclado opcional | D67: 1894 | E67: 0 | F67: 0 | G67: 0 | L67: USD
B68: FZ-M1CEAAEEP | C68: Consultalo con tu ejecutivo | E68: 0 | F68: 0 | G68: 0 | L68: USD
B69: FZ-M1CEAAXMP | C69: Consultalo con tu ejecutivo | E69: 0 | F69: 0 | G69: 0
B70: FZ-VEBG11AU | C70: Consultalo con tu ejecutivo | E70: 0 | F70: 0 | G70: 0 | L70: USD
B71: FZ-VEKG21LM | C71: Consultalo con tu ejecutivo | E71: 0 | F71: 0 | G71: 0 | L71: USD
B72: FZ-VNPG11U-S | C72: Consultalo con tu ejecutivo | E72: 0 | F72: 0 | G72: 0 | L72: USD
B73: FZ-VPFG11U | C73: Consultalo con tu ejecutivo | E73: 0 | F73: 0 | G73: 0 | L73: USD
B74: FZ-VZSU88U | C74: Consultalo con tu ejecutivo | E74: 0 | F74: 0 | G74: 0 | L74: USD
B75: Garantia Extend 2 | C75: Consultalo con tu ejecutivo | E75: 0 | F75: 0 | G75: 0 | L75: USD
B76: GP-VD131 | C76: Camara PTZ Full HD para videoconferencia, HDMI, 3X zoom optico, 4X zoom digital, cubre de 10 m2 hasta 40m2 | D76: 33100 | E76: 0 | F76: 0 | G76: 0 | L76: USD
B77: GP-VD151 | C77: Camara PTZ Full HD para videoconferencia, HDMI, 12X zoom optico, 10X zoom digital, cubre de 10 m2 hasta 80m2 | D77: 45200 | E77: 0 | F77: 0 | G77: 0 | L77: USD
B78: HTS32-C1 | C78: Consultalo con tu ejecutivo | E78: 0 | F78: 0 | G78: 0 | L78: USD
B79: HTS32-C2-B | C79: Consultalo con tu ejecutivo | E79: 0 | F79: 0 | G79: 0 | L79: USD
B80: HTS32-C2-W | C80: Consultalo con tu ejecutivo | E80: =D80*A80 -> 0 | F80: =E80*16% -> 0 | G80: =E80+F80 -> 0 | L80: USD
B81: HTS32-INTROB | C81: Consultalo con tu ejecutivo | E81: 0 | F81: 0 | G81: 0
B82: HTS32-INTROW | C82: Consultalo con tu ejecutivo | E82: 0 | F82: 0 | G82: 0 | L82: USD
B83: HTS32TDM-B | C83: Consultalo con tu ejecutivo | E83: 0 | F83: 0 | G83: 0 | L83: USD
B84: HTS32TDM-W | C84: Consultalo con tu ejecutivo | E84: 0 | F84: 0 | G84: 0 | L84: USD
B85: HTS32-TS | C85: Consultalo con tu ejecutivo | E85: 0 | F85: 0 | G85: 0
B86: HTS-IZZI-B | C86: Consultalo con tu ejecutivo | E86: 0 | F86: 0 | G86: 0 | L86: USD
B87: INN.11401 | C87: Consultalo con tu ejecutivo | E87: 0 | F87: 0 | G87: 0 | L87: USD
B88: INN.13402 | C88: Consultalo con tu ejecutivo | E88: 0 | F88: 0 | G88: 0 | L88: USD
B89: INN.13408 | C89: Consultalo con tu ejecutivo | E89: 0 | F89: 0 | G89: 0 | L89: USD
B90: JT-B1APAAEMP | C90: Consultalo con tu ejecutivo | E90: 0 | F90: 0 | G90: 0 | L90: USD
B91: JT-B1APAAEMP - R | C91: Consultalo con tu ejecutivo | E91: 0 | F91: 0 | G91: 0 | L91: USD
B92: JT-B1APAAZ1M | C92: Consultalo con tu ejecutivo | E92: 0 | F92: 0 | G92: 0 | L92: USD
B93: JT-B1APAAZMP | C93: Consultalo con tu ejecutivo | E93: 0 | F93: 0 | G93: 0 | L93: USD
B94: KAFAT92A-T | C94: Consultalo con tu ejecutivo | E94: 0 | F94: 0 | G94: 0 | L94: USD
B95: KV-N1028X | C95: Consultalo con tu ejecutivo | E95: 0 | F95: 0 | G95: 0 | L95: USD
B96: KV-N1028X-M | C96: Consultalo con tu ejecutivo | E96: 0 | F96: 0 | G96: 0 | L96: USD
B97: KV-N1058X | C97: Consultalo con tu ejecutivo | E97: 0 | F97: 0 | G97: 0 | L97: USD
B98: KV-N1058X-M | C98: Consultalo con tu ejecutivo | E98: 0 | F98: 0 | G98: 0 | L98: USD
B99: KV-S1026C-M2 | C99: Consultalo con tu ejecutivo | E99: 0 | F99: 0 | G99: 0 | L99: USD
B100: KV-S1027C-M2 | C100: Consultalo con tu ejecutivo | E100: 0 | F100: 0 | G100: 0 | L100: USD
B101: KV-S1037X-M | C101: Consultalo con tu ejecutivo | E101: 0 | F101: 0 | G101: 0 | L101: USD
B102: KV-S1057C-M2 | C102: Consultalo con tu ejecutivo | E102: 0 | F102: 0 | G102: 0 | L102: USD
B103: KV-S2087-M | C103: Consultalo con tu ejecutivo | E103: 0 | F103: 0 | G103: 0 | L103: USD
B104: KV-S8147-M | C104: Consultalo con tu ejecutivo | E104: 0 | F104: 0 | G104: 0 | L104: USD
B105: KV-SL1056-M2 | C105: Consultalo con tu ejecutivo | E105: 0 | F105: 0 | G105: 0 | L105: USD
B106: KV-SL1066-M | C106: Consultalo con tu ejecutivo | E106: 0 | F106: 0 | G106: 0 | L106: USD
B107: KV-SL3066-M | C107: Consultalo con tu ejecutivo | E107: 0 | F107: 0 | G107: 0 | L107: USD
B108: KV-SS061-M | C108: Consultalo con tu ejecutivo | E108: 0 | F108: 0 | G108: 0 | L108: USD
B109: KV-SS065-U | C109: Consultalo con tu ejecutivo | E109: 0 | F109: 0 | G109: 0
B110: KX-A227X | C110: CABLE PARA CONEXION A BATERIA EXTERNA (RESPALDO DE ENERGIA) PARA TA308LA | D110: 831.51 | E110: 0 | F110: 0 | G110: 0
B111: KX-A228XJ | C111: CABLE PARA BATERIA DE RESPALDO DE ENERGIA (FUENTES TIPO S Y M) | D111: 2121.08 | E111: 0 | F111: 0 | G111: 0 | L111: USD
B112: KX-A229XJ | C112: CABLE PARA BATERIA DE RESPALDO DE ENERGIA PARA FUENTE TIPO L | D112: 3952.91 | E112: 0 | F112: 0 | G112: 0 | L112: USD
B113: KX-A239X | C113: Fuente de poder para teléfonos IP de la serie KX-NT300 y KX-NT500 | D113: 761.42 | E113: 0 | F113: 0 | G113: 0
B114: KX-A406 | C114: REPETIDOR INALAMBRICO PARA AMPLIAR LA COBERTURA DEL SISTEMA KX-TGP600 | D114: 5869.92 | E114: 0 | F114: 0 | G114: 0 | L114: USD
B115: KX-A412 | C115: Cable de AC para NSX1000/2000 | D115: 330.11 | E115: 0 | F115: 0 | G115: 0 | L115: USD
B116: KX-A422X | C116: Adaptador de Corriente para KX-HDV230, HDV330 y KX-UT670 | D116: 1399.03 | E116: 0 | F116: 0 | G116: 0 | L116: USD
B117: KX-A423X | C117: Fuente de poder para telefono HDV130 | D117: 176.64 | E117: 0 | F117: 0 | G117: 0 | L117: USD
B118: KX-A424X | C118: Adaptador de Corriente para KX-HDV430 | D118: 884.63 | E118: 0 | F118: 0 | G118: 0 | L118: USD
B119: KX-A432X | C119: OPTIONAL WALL MOUNTING KIT - WALL MOUNT KIT FOR UT113/123 | D119: 388.48 | E119: 0 | F119: 0 | G119: 0 | L119: USD
B120: KX-A432X-B | C120: OPTIONAL WALL MOUNTING KIT - WALL MOUNT KIT FOR UT113-B/123-B - BLACK | D120: 349.07 | E120: 0 | F120: 0 | G120: 0 | L120: USD
B121: KX-A433X | C121: ACCESORIO PARA MONTAJE EN PARED PARA TELEFONOS NT553X/556X/560X y UT13X/248X | D121: 388.48 | E121: 0 | F121: 0 | G121: 0 | L121: USD
B122: KX-A433X-B | C122: ACCESORIO PARA MONTAJE EN PARED PARA TELEFONOS NT553X-B/556X-B/560X-B y UT13X-B/248X-B | D122: 349.07 | E122: 0 | F122: 0 | G122: 0 | L122: USD
B123: KX-A434X | C123: OPTIONAL WALL MOUNTING KIT - WALL MOUNT KIT OR UT670 | D123: 391.32 | E123: 0 | F123: 0 | G123: 0 | L123: USD
B124: KX-A440 | C124: Soporte para pared Telefono HDV130 | D124: 356 | E124: 0 | F124: 0 | G124: 0 | L124: USD
B125: KX-AT7730X | C125: TELEFONO MULTILINEA ANALOGO, 12 TECLAS FLEXIBLES, MANOS LIBRES, PANTALLA LCD DE 1 LINEA. | D125: 3389.31 | E125: 0 | F125: 0 | G125: 0 | L125: USD
B126: KX-AT7730XB | C126: TELEFONO MULTILINEA ANALOGO, 12 TECLAS FLEXIBLES, MANOS LIBRES, PANTALLA LCD DE 1 LINEA COLOR NEGRO. | D126: 3389.31 | E126: 0 | F126: 0 | G126: 0 | L126: USD
B127: KX-DT321X-B | C127: Consultalo con tu ejecutivo | E127: 0 | F127: 0 | G127: 0 | L127: USD
B128: KX-DT333X-B | C128: Consultalo con tu ejecutivo | E128: 0 | F128: 0 | G128: 0 | L128: USD
B129: KX-DT390X-B | C129: Consultalo con tu ejecutivo | E129: 0 | F129: 0 | G129: 0 | L129: USD
B130: KX-DT521X | C130: NUEVO TELEFONO PROPIETARIO DIGITAL, PANTALLA LCD NITIDA RETROILUMINADA Y DE MAYOR TAMANO, COMPATIBLE CON BANDA ANCHA Y AUDIFONO (HAC) ALTAVOZ, 8 NIVELES DE VOLUMEN, 30 TONOS DE LLAMADA COLOR BLANCO | D130: 3324.71 | E130: 0 | F130: 0 | G130: 0 | L130: USD
B131: KX-DT521X-B | C131: NUEVO TELEFONO PROPIETARIO DIGITAL, PANTALLA LCD NITIDA, RETROILUMINADA Y DE MAYOR TAMANO, COMPATIBLE CON BANDA ANCHA Y AUDIFONO (HAC) ALTAVOZ, 8 NIVELES DE VOLUMEN, 30 TONOS DE LLAMADA COLOR NEGRO | D131: 3324.71 | E131: 0 | F131: 0 | G131: 0 | L131: USD
B132: KX-DT543X | C132: 24 TECLAS CO, PANTALLA DE 3 LINEAS LCD, MANOS LIBRES, COLOR BLANCO | D132: 4363.69 | E132: 0 | F132: 0 | G132: 0 | L132: USD
B133: KX-DT543X-B | C133: 24 TECLAS CO, PANTALLA DE 3 LINEAS LCD, MANOS LIBRES, COLOR NEGRO | D133: 4363.69 | E133: 0 | F133: 0 | G133: 0 | L133: USD
B134: KX-DT546X | C134: 24 TECLAS DE CO, PANTALLA DE 6 LINEAS LCD, MANOS LIBRES COLOR BLANCO. | D134: 6857.56 | E134: 0 | F134: 0 | G134: 0 | L134: USD
B135: KX-DT546X-B | C135: Teléfono exclusivo digital premium, con pantalla retroiluminada de 6 líneas, 24 teclas programables y altavoz full duplex(color negro). | D135: 6857.56 | E135: 0 | F135: 0 | G135: 0 | L135: USD
B136: KX-DT590X | C136: Consola DSS ( 48 TECLAS) | D136: 3491.58 | E136: 0 | F136: 0 | G136: 0 | L136: USD
B137: KX-DT590X-B | C137: Consola DSS ( 48 TECLAS) negro | D137: 3491.58 | E137: 0 | F137: 0 | G137: 0 | L137: USD
B138: KX-FA54A | C138: Consultalo con tu ejecutivo | E138: 0 | F138: 0 | G138: 0 | L138: USD
B139: KX-FA57A | C139: Consultalo con tu ejecutivo | E139: 0 | F139: 0 | G139: 0 | L139: USD
B140: KX-FAD422AD | C140: Consultalo con tu ejecutivo | E140: 0 | F140: 0 | G140: 0 | L140: USD
B141: KX-FAT431AD | C141: Consultalo con tu ejecutivo | E141: 0 | F141: 0 | G141: 0 | L141: USD
B142: KX-FAT92A-T | C142: Consultalo con tu ejecutivo | E142: 0 | F142: 0 | G142: 0 | L142: USD
B143: KX-FP701ME | C143: Consultalo con tu ejecutivo | E143: 0 | F143: 0 | G143: 0
B144: KX-FT981ME-B | C144: Consultalo con tu ejecutivo | E144: =D144*A144 -> 0 | F144: =E144*16% -> 0 | G144: =E144+F144 -> 0 | L144: USD
B145: KX-HDV100LA | C145: Teléfono Sip básico, pantalla 2.3 LCD, No PoE, incluye adaptador AC, 1 Puerto LAN, XML, blanco. | D145: 1430.74 | E145: 0 | F145: 0 | G145: 0 | L145: USD
B146: KX-HDV100LAB | C146: Telefono Sip basico, pantalla 2.3 LCD, No PoE, incluye adaptador AC, 1 Puerto LAN, XML, negro. | D146: 1430.74 | E146: 0 | F146: 0 | G146: 0
B147: KX-HDV130X | C147: Telefono SIP | D147: 1650.53 | E147: 0 | F147: 0 | G147: 0 | L147: USD
B148: KX-HDV130XB | C148: KX-HDV130B - PANASONIC - Telefono SIP VOIP - 2 Lineas - Pantalla LCD 2,3¨, audio HD - Altavoz fullduplex, 2 puertos Lan - PoE | D148: 1650.53 | E148: 0 | F148: 0 | G148: 0 | L148: USD
B149: KX-HDV20X | C149: Botonera IP serie HDV, 40 botones flexibles, color blanco. | D149: 3290.41 | E149: 0 | F149: 0 | G149: 0 | L149: USD
B150: KX-HDV20XB | C150: Botonera IP serie HDV, 40 botones flexibles, color negro. | D150: 3290.41 | E150: 0 | F150: 0 | G150: 0 | L150: USD
B151: KX-HDV230X | C151: KX-HDV230X - PANASONIC- Telefono SIP VOIP (4-line backlit LCD, 12 FF keys x2, 2 Giga Ether port, PoE)BLANCO | D151: 4577.96 | E151: 0 | F151: 0 | G151: 0 | L151: USD
B152: KX-HDV230XB | C152: KX-HDV230XB - PANASONIC- Telefono SIP VOIP (4-line backlit LCD, 12 FF keys x2, 2 Giga Ether port, PoE)Negro | D152: 4577.96 | E152: 0 | F152: 0 | G152: 0 | L152: USD
B153: KX-HDV330X | C153: Telefono SIP, pantalla 4.3 a color TFT LCD touch, PoE, Audio HD, Bluetooth, 2 Puertos LAN, XML, blanco. | D153: 5865.45 | E153: 0 | F153: 0 | G153: 0 | L153: USD
B154: KX-HDV330XB | C154: Telefono SIP, pantalla 4.3 a color TFT LCD touch, PoE, Audio HD, Bluetooth, 2 Puertos LAN, XML, negro. | D154: 5865.45 | E154: 0 | F154: 0 | G154: 0 | L154: USD
B155: KX-HDV430X | C155: Telefono SIP con camara, pantalla 4.3 a color TFT LCD touch, PoE, Audio HD, Bluetooth, 2 Puertos LAN, XML, blanco. | D155: 9800.38 | E155: 0 | F155: 0 | G155: 0 | L155: USD
B156: KX-HDV430XB | C156: Telefono SIP con camara, pantalla 4.3 a color TFT LCD touch, PoE, Audio HD, Bluetooth, 2 Puertos LAN, XML, negro. | D156: 9800.38 | E156: 0 | F156: 0 | G156: 0 | L156: USD
B157: KX-HT82460X | C157: Tarjeta para 2 porteros y 2 contrachapas para HTS32 | D157: 2389.81 | E157: 0 | F157: 0 | G157: 0 | L157: USD
B158: KX-HT82470X | C158: Tarjeta de 8 extensiones unilinea para HTS32 | D158: 4037.11 | E158: 0 | F158: 0 | G158: 0 | L158: USD
B159: KX-HT82480X | C159: Tarjeta para 4 troncales analogicas para HTS32. Caller ID incluido | D159: 3191.89 | E159: 0 | F159: 0 | G159: 0
B160: KX-HTS32-100B | C160: Consultalo con tu ejecutivo | E160: 0 | F160: 0 | G160: 0 | L160: USD
B161: KX-HTS32-100W | C161: Consultalo con tu ejecutivo | E161: 0 | F161: 0 | G161: 0 | L161: USD
B162: KX-HTS32-230B | C162: Consultalo con tu ejecutivo | E162: 0 | F162: 0 | G162: 0 | L162: USD
B163: KX-HTS32-230B-1 | C163: Consultalo con tu ejecutivo | E163: 0 | F163: 0 | G163: 0
B164: KX-HTS32-230LAN | C164: Consultalo con tu ejecutivo | E164: 0 | F164: 0 | G164: 0
B165: KX-HTS32-230W | C165: Consultalo con tu ejecutivo | E165: 0 | F165: 0 | G165: 0
B166: KX-HTS32-230X | C166: Consultalo con tu ejecutivo | E166: 0 | F166: 0 | G166: 0
B167: KX-HTS32LA | C167: KX-HTS32MX - PANASONIC - Unidad 8 SLT x 4 CO - Caller ID integrado para lineas y extensiones - 8 ch DISA - DSP integrada - 2 horas de grabación - 3 puertos rj45 | D167: 9373.6 | E167: 0 | F167: 0 | G167: 0
B168: KX-HTS32MX | C168: KX-HTS32MX - PANASONIC - Unidad 8 SLT x 4 CO - Caller ID integrado para lineas y extensiones - 8 ch DISA - DSP integrada - 2 horas de grabación - 3 puertos rj45 | D168: 9373.6 | E168: 0 | F168: 0 | G168: 0
B169: KX-NCP0158CE | C169: CELDA PARA 8CH DECT CS (IP CONNECTION) SE CONECTA A PUERTO DE RED | D169: 24733.7 | E169: 0 | F169: 0 | G169: 0
B170: KX-NCP1000BX | C170: Consultalo con tu ejecutivo | E170: 0 | F170: 0 | G170: 0 | L170: USD
B171: KX-NCP1104XJ | C171: Consultalo con tu ejecutivo | E171: 0 | F171: 0 | G171: 0
B172: KX-NCP1170XJ | C172: TARJETA DE 4 EXTENSIONES HIBRIDA-DIGITALES | D172: 8224.33 | E172: 0 | F172: 0 | G172: 0
B173: KX-NCP1171XJ | C173: TARJETA DE 8 EXTENSIONES DIGITALES | D173: 5810.1 | E173: 0 | F173: 0 | G173: 0 | L173: USD
B174: KX-NCP1172XJ | C174: Consultalo con tu ejecutivo | E174: 0 | F174: 0 | G174: 0 | L174: USD
B175: KX-NCP1173XJ | C175: Consultalo con tu ejecutivo | E175: 0 | F175: 0 | G175: 0
B176: KX-NCP1174XJ | C176: Consultalo con tu ejecutivo | E176: 0 | F176: 0 | G176: 0 | L176: USD
B177: KX-NCP1180X | C177: Consultalo con tu ejecutivo | E177: 0 | F177: 0 | G177: 0 | L177: USD
B178: KX-NCP1188XJ | C178: Consultalo con tu ejecutivo | E178: 0 | F178: 0 | G178: 0 | L178: USD
B179: KX-NCP1190XJ | C179: Consultalo con tu ejecutivo | E179: 0 | F179: 0 | G179: 0 | L179: USD
B180: KX-NCS2010WJ | C180: CA Thin Client | D180: 42615.61 | E180: 0 | F180: 0 | G180: 0 | L180: USD
B181: KX-NCS2020WJ | C181: CSTA MUX Key | D181: 46966.01 | E181: 0 | F181: 0 | G181: 0 | L181: USD
B182: KX-NCS2201WJ | C182: LICENCIA CA PRO 1 USUARIO | D182: 3623.12 | E182: 0 | F182: 0 | G182: 0 | L182: USD
B183: KX-NCS2201XJ | C183: Consultalo con tu ejecutivo | E183: 0 | F183: 0 | G183: 0 | L183: USD
B184: KX-NCS2205WJ | C184: COMMUNICATION ASSISTANT PROFESIONAL 5-LICENSE | D184: 16437.76 | E184: 0 | F184: 0 | G184: 0 | L184: USD
B185: KX-NCS2205XJ | C185: Consultalo con tu ejecutivo | E185: 0 | F185: 0 | G185: 0 | L185: USD
B186: KX-NCS2210WJ | C186: COMMUNICATION ASSISTANT PROFESSIONAL 10-LICENSE | D186: 30192.49 | E186: 0 | F186: 0 | G186: 0 | L186: USD
B187: KX-NCS2210XJ | C187: Consultalo con tu ejecutivo | E187: 0 | F187: 0 | G187: 0 | L187: USD
B188: KX-NCS2240WJ | C188: LICENCIA CA PRO 40 USUARIOS | D188: 71120.36 | E188: 0 | F188: 0 | G188: 0 | L188: USD
B189: KX-NCS2240XJ | C189: Consultalo con tu ejecutivo | E189: 0 | F189: 0 | G189: 0 | L189: USD
B190: KX-NCS2249WJ | C190: Activation Key for CA PRO for 128 Users (CA Pro128users) | D190: 167736.64 | E190: 0 | F190: 0 | G190: 0 | L190: USD
B191: KX-NCS2301WJ | C191: LICENCIA DE ACTIVACION | D191: 15144.13 | E191: 0 | F191: 0 | G191: 0 | L191: USD
B192: KX-NCS2301XJ | C192: Consultalo con tu ejecutivo | E192: 0 | F192: 0 | G192: 0 | L192: USD
B193: KX-NCS2401WJ | C193: LICENCIA CA PARA CONSOLA OPERADORA | D193: 26838.06 | E193: 0 | F193: 0 | G193: 0
B194: KX-NCS2901WJ | C194: LICENCIA DE 1 USUARIO COMMUNICATION ASSISTANT NETWORK | D194: 3048.72 | E194: 0 | F194: 0 | G194: 0 | L194: USD
B195: KX-NCS2901XJ | C195: Consultalo con tu ejecutivo | E195: 0 | F195: 0 | G195: 0 | L195: USD
B196: KX-NCS2905WJ | C196: LICENCIA DE 5 USUARIOS COMMUNICATION ASSISTANT NETWORK | D196: 12967.82 | E196: 0 | F196: 0 | G196: 0 | L196: USD
B197: KX-NCS2905XJ | C197: Consultalo con tu ejecutivo | E197: 0 | F197: 0 | G197: 0 | L197: USD
B198: KX-NCS2910WJ | C198: LICENIA DE 10 USUARIOS COMMUNICATION ASSISTANT NETWORK | D198: 21642.37 | E198: 0 | F198: 0 | G198: 0 | L198: USD
B199: KX-NCS2910XJ | C199: Consultalo con tu ejecutivo | E199: 0 | F199: 0 | G199: 0 | L199: USD
B200: KX-NCS2940WJ | C200: COMMUNICATION ASSISTANT EN RED PARA 40 USUARIOS | D200: 71120.36 | E200: 0 | F200: 0 | G200: 0 | L200: USD
B201: KX-NCS2940XJ | C201: Consultalo con tu ejecutivo | E201: 0 | F201: 0 | G201: 0 | L201: USD
B202: KX-NCS2949WJ | C202: CA Network (128 users) | D202: 167736.64 | E202: 0 | F202: 0 | G202: 0 | L202: USD
B203: KX-NCS3102WJ | C203: LICENCIA DE 1 CANAL PARA TRONCAL IP H.323 O SIP GW | D203: 3220.42 | E203: 0 | F203: 0 | G203: 0 | L203: USD
... 600 more rows

Sheet Alcoholimetros (hidden)
A3: IMPORTACIONES FABIOLA DE CANCUN, S.A. DE C.V. | D3: Fecha | F3: =TODAY() -> 2026-04-16
A4: Av. Lopez Portillo, SM66, Mza3, Lotes 27 y 28, Cancun, Quintana Roo, Mex. C.P. 77510 | D4: N.º de presupuesto | F4: 000/2022MX
A5: Telefono 998 8873848, 8875514, 8875947, 8873750. | D5: Id. del cliente | F5: IFC930505GC1
A6: ventas@importacionesfabiola.com | D6: Tipo de Cambio USD | F6: 20
A7: PRESUPUESTO:
A8: CLIENTE: | B8: CONCENTRADORA HOTELES VIRREYES, S. DE R.L. DE C.V. / CHL080522GK1 | D8: Vigencia de la Cotizacion: | F8: =F3+15 -> 2026-05-01
A9: DOMICILIO: | B9: AV. FRACCION 7 MZA 22 LOTE 046-1 X XCALACOCO | D9: Autor: | F9: MAXIMO CHAN NOH
A10: ATENCION: | B10: SR. JESUS MARTINEEZ | D10: Movil | F10: 9982169741
A11: TELEFONO: | B11: 984 113 4426 | D11: Movil | F11: 9981623186
A12: EMAIL: | B12: jesus.martinez@viceroyhotelsandresorts.com | D12: Email | F12: maxosan@hotmail.com
A14: Cant. | B14: Modelo | C14: Descripcion del Producto | D14: Precio Unitario | E14: Importe | F14: Iva | G14: Total | H14: Clave | I14: Marca | J14: Grupo | K14: Precio | L14: Moneda
B15: IBLOW10 | C15: Alcoholimetro iBlow10 - Cero Tolerancia - Sentech | D15: 11684.736 | E15: =D15*A15 -> 0 | F15: =E15*0.16 -> 0 | G15: =E15+F15 -> 0
B16: EBS-10 | C16: Alcoholimetro Alcoscan EBS-010 - Sentech | D16: 13388.76 | E16: =D16*A16 -> 0 | F16: 0 | G16: =E16+F16 -> 0
B17: IBLOW10C | C17: Sentech - iBlow10C Alcoholimetro | D17: 18284.736 | E17: 0 | F17: 0 | G17: 0
B18: AL4000 | C18: Alcoholimetro de pared AL4000 sin pantalla - Sentech | D18: 20329.476 | E18: 0 | F18: 0 | G18: 0
B19: ADBS | C19: Alcoholímetro de Pared ADBs - Sentech | D19: 23430.336 | E19: 0 | F19: 0 | G19: 0
B20: ALP-1 MT KIT | C20: Alcoholimetro Alcoscan ALP-1 BT c/ Impr. BT - Sentech | D20: 26777.52 | E20: 0 | F20: 0 | G20: 0
B21: 6000 | C21: Alcoholimetro Personal AL6000 - Sentech | D21: 2840.04 | E21: 0 | F21: 0 | G21: 0
B22: 7000 | C22: Alcoholimetro personal AlcoScan AL7000 - Sentech | D22: 3164.616 | E22: 0 | F22: 0 | G22: 0
B23: ALP-1011 | C23: Modulo sensor reemplazable ALP- 1 | D23: 5103.792 | E23: 0 | F23: 0 | G23: 0
B24: BOQAL67-50 | C24: Boquillas para Alcoholímetros AL6000 y AL7000 - Sentech | D24: 180 | E24: 0 | F24: 0 | G24: 0
B25: SEN6-R | C25: Sensor Modular AL6000 - DUAL- RED | D25: 533.232 | E25: 0 | F25: 0 | G25: 0
B26: AL4M | C26: Sensor Modular p/ AL4000 | D26: 0 | E26: 0 | F26: 0 | G26: 0
B27: SEN7 | C27: Sensor Modular con 2 entradas para Alcoholimetro AL7000 | D27: 533.232 | E27: 0 | F27: 0 | G27: 0
B28: Sen-EBS-010 | C28: Sensor para Alcoholímetro EBS- 010 | D28: 4665.78 | E28: 0 | F28: 0 | G28: 0
B29: SEN7-DOT | C29: Sensor Premium AL7000 US DOT | D29: 533.232 | E29: 0 | F29: 0 | G29: 0
B30: SEN6-DOT | C30: Sensor Prestige AL6000 US DOT | D30: 533.232 | E30: 0 | F30: 0 | G30: 0
B31: 11303 | C31: Alcoholimetro FC5 Hornet - LIFELOC | D31: 17131.848 | E31: 0 | F31: 0 | G31: 0
B32: 11011SPAN | C32: Alcoholimetro FC10 - LIFELOC | D32: 21694.8 | E32: 0 | F32: 0 | G32: 0
B33: 11111SPAN | C33: Alcoholimetro FC10 Plus - LIFELOC | D33: 23868.156 | E33: 0 | F33: 0 | G33: 0
B34: 11211SPAN | C34: Alcoholimetro FC20 - LIFELOC | D34: 30853.968 | E34: 0 | F34: 0 | G34: 0
B35: 11213SPAN | C35: Alcoholimetro FC20BT - Solo Equipo - LIFELOC | D35: 34734.96 | E35: 0 | F35: 0 | G35: 0
B36: 11312 | C36: Alcoholimetro LX9, Bateria recargable incluye boquillas - Lifeloc | D36: 37063.56 | E36: 0 | F36: 0 | G36: 0
B37: 11231SPAN | C37: Alcoholimetro FC20 - Kit con Impresora - LIFELOC | D37: 51229.224 | E37: 0 | F37: 0 | G37: 0
B38: 11233SPAN | C38: Alcoholimetro FC20BT - c/ Imp. y Bluetooth - LIFELOC | D38: 58020.972 | E38: 0 | F38: 0 | G38: 0
B39: 11313 | C39: Alcoholimetro LX9 BT Kit, con bateria recargable e Impresora BT - Lifeloc | D39: 51584.976 | E39: 0 | F39: 0 | G39: 0
B40: 11262SPAN | C40: Alcoholimetro FC20BT DMS c/ Impresora y Tecl. - LIFELOC | D40: 66753.228 | E40: 0 | F40: 0 | G40: 0
B41: 11315 | C41: Alcoholimetro LX9 DMS BT Kit,con bateria recargable, teclado e Impresora BT - Lifeloc | D41: 70052.076 | E41: 0 | F41: 0 | G41: 0
B42: 12800 | C42: Alcoholimetro SENTINEL de pared | D42: 83441.532 | E42: 0 | F42: 0 | G42: 0
B43: 11267 | C43: Alcoholimetro FC20BT GPS DMS - LIFELOC | D43: 82665.336 | E43: 0 | F43: 0 | G43: 0
B44: 13043 | C44: Boquillas EasyTab para Alcoholímetros Lifeloc | D44: 841.716 | E44: 0 | F44: 0 | G44: 0
B45: 13050 | C45: Boquillas para Alcoholimetro LX9 modelo L360 - paquete con 150 piezas - Lifeloc | D45: 1596.756 | E45: 0 | F45: 0 | G45: 0
B46: 15213 | C46: Solución de Alcohol 500mL | D46: 487.02 | E46: 0 | F46: 0 | G46: 0
B47: 24111800 15001 | C47: Tanque de Gas Seco 34L .100% BAC | D47: 10062.888 | E47: 0 | F47: 0 | G47: 0
B48: 12811 | C48: Simulador EasyCal para alcoholímetros Lifeloc FC10, FC10Plus, FC20 y FC20BT | D48: 58538.436 | E48: 0 | F48: 0 | G48: 0
B49: 8327701 | C49: 8327701 Draeger Alcoholimetro Alcotest 5000 - $12,490.83 Draeger | D49: 0 | E49: 0 | F49: 0 | G49: 0
B50: 8322660 | C50: Draeger - ALCOTEST 6820 Alcoholimetro multi-lengua, de Celda de Combustion con memoria para 5000 pruebas y conectividad a PC. Incluye: estuche, 2 baterias AA y 3 boquillas. | D50: 32049.192 | E50: 0 | F50: 0 | G50: 0
B51: 8319760 | C51: Draeger - Alcoholimetro Alcotest 7510 | D51: 74185.896 | E51: 0 | F51: 0 | G51: 0
B52: 93-002671 | C52: Safir Alcoholimetro IR SERES Modelo Safir Evolution Kit con Impresora incluida | D52: 125193.6 | E52: 0 | F52: 0 | G52: 0
B53: 95-000255 | C53: Safir Boquillas p/IR SERES Modelo Safir - Contiene 25 | D53: 322.152 | E53: 0 | F53: 0 | G53: 0
B54: 6810690C | C54: Boquillas para alcoholimetro modelos: 3000, 6510, 6810, 6820, 7510 - Contiene 100 | D54: 877.2 | E54: 0 | F54: 0 | G54: 0
B55: 8319310 | C55: Draeger - Impresora Portatil | D55: 33132.42 | E55: 0 | F55: 0 | G55: 0
B56: 6810/6820 | C56: Alcotest 6810/6820 | D56: 0 | E56: 0 | F56: 0 | G56: 0
B57: EBS-10 / EBS-0190 | C57: Alcoholimetro Alcoscan EBS-0190 sentech | D57: 13388.76 | E57: 0 | F57: 0 | G57: 0
B58: AL4000 | C58: Alcoholimetro de Pared AL4000 sin Pantalla sentech | D58: 20329.476 | E58: 0 | F58: 0 | G58: 0
B59: TVL-LBP | C59: KIT TVL (12 MICAS BRONCE Y CINTA NEGRO/AMARILLO) | D59: 3926.7 | E59: 0 | F59: 0 | G59: 0
B60: TVL-LSP | C60: KIT TVL (INCLUYE 12 MICAS PLATA Y CINTA NEGRO/AMARILLO) | D60: 3926.7 | E60: 0 | F60: 0 | G60: 0
B61: TVL-LRP | C61: KIT TVL (INCLUYE 12 MICAS ROJAS Y CINTA NEGRO/AMARILLO) | D61: 3926.7 | E61: 0 | F61: 0 | G61: 0
B62: DISTRACT GAME2 | C62: Distract a Match Game V2 | D62: 4960.056 | E62: 0 | F62: 0 | G62: 0
B63: SMASHMATCH | C63: Smash Match Impairment Challenge | D63: 4960.056 | E63: 0 | F63: 0 | G63: 0
B64: PROGRAM KIT CG2 | C64: Concussion Goggle | D64: 5684.976 | E64: 0 | F64: 0 | G64: 0
B65: FV-BL | C65: Goggle Etiqueta Azul Vision Clara | D65: 6066.528 | E65: 0 | F65: 0 | G65: 0
B66: FV-BLN | C66: Goggle Etiqueta Azul Vision Nocturna | D66: 6066.528 | E66: 0 | F66: 0 | G66: 0
B67: FV-W | C67: Goggle Etiqueta Blanca Vision Clara | D67: 6066.528 | E67: 0 | F67: 0 | G67: 0
B68: FV-WN | C68: Goggle Etiqueta Blanca Vision Nocturna | D68: 6066.528 | E68: 0 | F68: 0 | G68: 0
B69: FV-B | C69: Goggle Etiqueta Bronce Vision Clara | D69: 6066.5328 | E69: 0 | F69: 0 | G69: 0
B70: FV-BN | C70: Goggle Etiqueta Bronce Vision Nocturna | D70: 6066.528 | E70: 0 | F70: 0 | G70: 0
B71: FV-BK | C71: Goggle Etiqueta Negra Vision Clara | D71: 6066.528 | E71: 0 | F71: 0 | G71: 0
B72: FV-BKN | C72: Goggle Etiqueta Negra Vision Nocturna | D72: 6066.528 | E72: 0 | F72: 0 | G72: 0
B73: FV-S | C73: Goggle Etiqueta Plateada Vision Clara | D73: 6066.528 | E73: 0 | F73: 0 | G73: 0
B74: FV-SN | C74: Goggle Etiqueta Plateada Vision Nocturna | D74: 6066.528 | E74: 0 | F74: 0 | G74: 0
B75: FV-R | C75: Goggle Etiqueta Roja Vision Clara | D75: 6066.528 | E75: 0 | F75: 0 | G75: 0
B76: FV-RN | C76: Goggle Etiqueta Roja Vision Nocturna | D76: 6066.528 | E76: 0 | F76: 0 | G76: 0
B77: SUM-IT-CUP | C77: Sum It Cup Complete | D77: 12193.464 | E77: 0 | F77: 0 | G77: 0
B78: CG2 PROGRAM KIT | C78: Concussion Goggle Kit | D78: 23735.112 | E78: 0 | F78: 0 | G78: 0
B79: Fatal-Marihuana- | C79: Marihuana Basico | D79: 29966.976 | E79: 0 | F79: =E79*0.16 -> 0 | G79: 0
B80: Starter | D80: 0 | E80: =D80*A80 -> 0 | F80: 0 | G80: =E80+F80 -> 0
B81: TVL BPsp | C81: TVL Budget Pack | D81: 31477.248 | E81: 0 | F81: 0 | G81: 0
B82: FTLRAC-KIT | C82: Fatal Reaction Distract a Match 2 Game Kit | D82: 37391.16 | E82: 0 | F82: 0 | G82: 0
B83: PKDIESEL.BKBP | C83: Prime Pedal Kart - Carro Tubular de Pedales | D83: 42541.968 | E83: 0 | F83: 0 | G83: 0
B84: DIESDD | C84: Tapete de Actividades al Conductor Distraido | D84: 43813.788 | E84: 0 | F84: 0 | G84: 0
B85: FV DD Program Kit | C85: Kit Programa - Somnolento y distraído | D85: 44847.132 | E85: 0 | F85: 0 | G85: 0
B86: TVL Kit Nocturno | C86: TVL Nocturno | D86: 45467.136 | E86: 0 | F86: 0 | G86: 0
B87: TVL-SKCC | C87: TVL Starter Kit | D87: 45467.136 | E87: 0 | F87: 0 | G87: 0
B88: AAB0840 | C88: ALCOTEST PRUEBA RAPIDA DE ALCOHOL EN ALIENTO INCLUYE GLOBO. KIT CON 25 PUERBAS | D88: 2459.16 | E88: 0 | F88: 0 | G88: 0
B89: CCP02200 | C89: CHECKPOINT PRUEBA RAPIDA DE ALIENTO. KIT CON 25 PRUEBAS | D89: 2459.16 | E89: 0 | F89: 0 | G89: 0
D90: 0 | E90: 0 | F90: 0 | G90: 0
D91: 0 | E91: 0 | F91: 0 | G91: 0
E92: 0 | F92: 0 | G92: 0
A93: =SUBTOTAL(109,SaleItems_Table8[Cant.]) -> 0 | B93: PIEZAS | F93: TOTAL M.N. | G93: =SUM(G15:G92) -> 0
A94: NOTAS IMPORTANTES:
A95: 1.- Tiempo de entrega: DE 5 A 6 Dias Habiles despues de recibir su pedido o comprobante de pago.
A96: 2.- Forma de pago: Transferencia electronica, Efectivo o Cheque.
A97: 3.- Vigencia de la cotizacion: 15 dias habiles.
A98: 4.- Los precios cotizados son considerados para pago de contado o transferencia electronica.
B99: Esperando sea de su entera satisfaccion quedo a sus ordenes para cualquier comentario o duda que tenga al respecto.
C101: A T E N T A M E N T E
C102: IMPORTACIONES FABIOLA DE CANCUN, S.A. DE C.V.
C103: MAXIMO CHAN / VENTAS
